{"text_format":"1","workbook":"xlsx","n_sheets":5,"sheets":["Form","Sheet1","Hidden List and Formulas","SAP Post","JV"],"not_rendered":{"charts":0,"images":1,"macros":1,"external_links":0,"defined_names":4,"comments":1,"pivot_tables":0},"unopened":[],"bounds":{"document_bytes":16777216,"sheet_cells":100000,"rows_first":2000,"rows_last":500,"rows_between":2000,"halvings":0,"cell_chars":16384,"cell_head_chars":4096},"cells_cut":0,"cells_raw":0,"read":"whole","date_system":"1900"}

{"sheet":"Form","index":0,"n_rows":53,"n_cols":22,"rows_kept":53,"cut":false,"hidden":false,"merged":[[1,2,1,10],[3,4,3,10],[20,3,20,8],[20,9,20,16],[23,2,24,2],[13,4,13,13],[4,1,4,16],[21,3,21,7],[2,0,2,1],[14,1,14,2],[2,4,2,10],[7,0,7,1],[19,1,19,2],[17,1,17,2],[16,1,16,2],[18,1,18,2],[13,19,14,20],[16,19,17,20],[18,19,19,20],[18,18,19,18],[16,18,17,18],[13,18,14,18],[52,0,52,17],[31,4,31,15],[26,4,26,15],[27,4,27,15],[28,4,28,15],[29,4,29,15],[36,4,36,15],[30,4,30,15],[37,4,37,15],[45,0,45,16],[33,4,33,15],[34,4,34,15],[38,4,38,15],[39,4,39,15],[40,4,40,15],[44,4,44,15],[50,0,50,17],[51,0,51,17],[23,4,23,15],[24,4,24,15],[19,9,19,16],[19,3,19,8],[23,3,24,3],[21,0,21,1],[23,0,24,0],[35,4,35,15],[41,4,41,15],[32,4,32,15],[23,1,24,1],[43,4,43,15],[25,4,25,15],[42,4,42,15]]}
["Please enable macros to use this form.",null,null," "]
[1,2,null,null,null,null,null,null,null,null,null,null,null,null,null,null,null,"The most updated form can be found at:",null,null,null," "]
["1. Click to start -->",null,null,null,null,null,null,null,null,null,null,null,null,null,null,null,null,"http://vpf.mit.edu/site/cashier/forms "]
[]
[null,"Check Deposit",null,null,null,null,null,null,null,null,null,null,null,null,null,null,null,"V.2.4"]
["2. Please select type of checks"]
[]
[]
[{"$f":"IF(A2=1, \"3. Is the amount over or under $2,000?\",\"3. Please select how checks will be deposited\")","v":"3. Is the amount over or under $2,000?"}]
[]
[]
[{"$f":"IF(A2=1,\"Please print this form and send it along with the checks to:\",IF(B2=1,\"Please print this form and send it along with the checks to:\",\"Please deposit the checks and email the form (as an Excel file) to:\"))","v":"Please print this form and send it along with the checks to:"}]
[{"$f":"IF(A2=1,IF(B2=1,\"Attn: Christina Mansdorf at W98-300\",\"Alumni Association/Office of Records at W98-220\"),IF(B2=1,\"Cashier's Office: NE49-3182B\",\"Cashiers-office@mit.edu\"))","v":"Alumni Association/Office of Records at W98-220"}]
[null,"Fill in blue highlighted fields only.",null,"Department"]
["Date",{"$f":"TODAY()","v":"2014-05-30"},null,{"$f":"IF(SUM(E15:O16)>0,\"Please check line:\",\"\")","v":""},{"$f":"IF(S26=\"\",\"\",26)","v":""},{"$f":"IF(S27=\"\",\"\",27)","v":""},{"$f":"IF(S28=\"\",\"\",28)","v":""},{"$f":"IF(S29=\"\",\"\",29)","v":""},{"$f":"IF(S30=\"\",\"\",30)","v":""},{"$f":"IF(S31=\"\",\"\",31)","v":""},{"$f":"IF(S32=\"\",\"\",32)","v":""},{"$f":"IF(S33=\"\",\"\",33)","v":""},{"$f":"IF(S34=\"\",\"\",34)","v":""},{"$f":"IF(S35=\"\",\"\",35)","v":""},{"$f":"IF(S36=\"\",\"\",36)","v":""}]
["Form #",15048426,null,null,{"$f":"IF(S37=\"\",\"\",37)","v":""},{"$f":"IF(S38=\"\",\"\",38)","v":""},{"$f":"IF(S39=\"\",\"\",39)","v":""},{"$f":"IF(S40=\"\",\"\",40)","v":""},{"$f":"IF(S41=\"\",\"\",41)","v":""},{"$f":"IF(S42=\"\",\"\",42)","v":""},{"$f":"IF(S43=\"\",\"\",43)","v":""},{"$f":"IF(S44=\"\",\"\",44)","v":""},{"$f":"IF(S45=\"\",\"\",45)","v":""}]
["Name"]
["Telephone"]
["MIT ID #",null,null,"MIT ID number or email address is required to receive an email receipt."]
["E-mail",null,null,{"$f":"IF(OR(AND(NOT(Q26=0),A26=0),AND(NOT(Q27=0),A27=0),AND(NOT(Q28=0),A28=0),AND(NOT(Q29=0),A26=0),AND(NOT(Q29=0),A26=0),AND(NOT(Q30=0),A30=0),AND(NOT(Q31=0),A31=0),AND(NOT(Q32=0),A32=0),AND(NOT(Q33=0),A33=0),AND(NOT(Q34=0),A34=0),AND(NOT(Q35=0),A35=0),AND(NOT(Q36=0),A36=0),AND(NOT(Q37=0),A37=0),AND(NOT(Q37=0),A37=0),AND(NOT(Q38=0),A38=0),AND(NOT(Q39=0),A39=0),AND(NOT(Q40=0),A40=0),AND(NOT(Q41=0),A41=0),AND(NOT(Q42=0),A42=0),AND(NOT(Q43=0),A43=0),AND(NOT(Q44=0),A44=0),AND(NOT(Q45=0),A45=0),),\"Please include cost object\",\"\")","v":""},null,null,null,null,null,{"$f":"IF(OR(AND(NOT(Q26=0),C26=0),AND(NOT(Q27=0),C27=0),AND(NOT(Q28=0),C28=0),AND(NOT(Q29=0),C29=0),AND(NOT(Q29=0),C26=0),AND(NOT(Q30=0),C30=0),AND(NOT(Q31=0),C31=0),AND(NOT(Q32=0),C32=0),AND(NOT(Q33=0),C33=0),AND(NOT(Q34=0),C34=0),AND(NOT(Q35=0),C35=0),AND(NOT(Q36=0),C36=0),AND(NOT(Q37=0),C37=0),AND(NOT(Q37=0),C37=0),AND(NOT(Q38=0),C38=0),AND(NOT(Q39=0),C39=0),AND(NOT(Q40=0),C40=0),AND(NOT(Q41=0),C41=0),AND(NOT(Q42=0),C42=0),AND(NOT(Q43=0),C43=0),AND(NOT(Q44=0),C44=0),AND(NOT(Q45=0),C45=0),),\"Please make sure GL is included\",\"\")","v":""}]
[null,null,null,{"$f":"IF(OR(AND(NOT(Q26=0),B26=0),AND(NOT(Q27=0),B27=0),AND(NOT(Q28=0),B28=0),AND(NOT(Q29=0),B26=0),AND(NOT(Q29=0),B26=0),AND(NOT(Q30=0),B30=0),AND(NOT(Q31=0),B31=0),AND(NOT(Q32=0),B32=0),AND(NOT(Q33=0),B33=0),AND(NOT(Q34=0),B34=0),AND(NOT(Q35=0),B35=0),AND(NOT(Q36=0),B36=0),AND(NOT(Q37=0),B37=0),AND(NOT(Q37=0),B37=0),AND(NOT(Q38=0),B38=0),AND(NOT(Q39=0),B39=0),AND(NOT(Q40=0),B40=0),AND(NOT(Q41=0),B41=0),AND(NOT(Q42=0),B42=0),AND(NOT(Q43=0),B43=0),AND(NOT(Q44=0),B44=0),AND(NOT(Q45=0),B45=0),),\"Please include country of origin\",\"\")","v":""},null,null,null,null,null,{"$f":"IF(OR(AND(NOT(Q26=0),E26=0),AND(NOT(Q27=0),E27=0),AND(NOT(Q28=0),E28=0),AND(NOT(Q29=0),E29=0),AND(NOT(Q29=0),E26=0),AND(NOT(Q30=0),E30=0),AND(NOT(Q31=0),E31=0),AND(NOT(Q32=0),E32=0),AND(NOT(Q33=0),E33=0),AND(NOT(Q34=0),E34=0),AND(NOT(Q35=0),E35=0),AND(NOT(Q36=0),E36=0),AND(NOT(Q37=0),E37=0),AND(NOT(Q37=0),E37=0),AND(NOT(Q38=0),E38=0),AND(NOT(Q39=0),E39=0),AND(NOT(Q40=0),E40=0),AND(NOT(Q41=0),E41=0),AND(NOT(Q42=0),E42=0),AND(NOT(Q43=0),E43=0),AND(NOT(Q44=0),E44=0),AND(NOT(Q45=0),E45=0),),\"Please make sure description is included\",\"\")","v":""}]
["Total Deposit Expected",null,null,{"$f":"IF(SUM(Q26:Q45)=C22,\" \",\"Please check all deposit amount!\")","v":" "}]
[]
["Cost Object","Country of Origin","G/L Account","G/L Account Name","Description (will appear on statement)",null,null,null,null,null,null,null,null,null,null,null,"Total ","Date of Deposit"]
[null,null,null,null,"40 characters (with spaces) limit",null,null,null,null,null,null,null,null,null,null,null,"Deposit","(if different from today)"]
[null,null,null,{"$f":"IFERROR(VLOOKUP(C26,'Hidden List and Formulas'!C$2:D$16,2,FALSE),IF(C26=\"\",\"\",IF(NOT(LEN(C26)=6),IFERROR(VLOOKUP(C26,'Hidden List and Formulas'!I:J,2,FALSE),\"G/L provided not 6 numbers\"),IFERROR(VLOOKUP(C26,'Hidden List and Formulas'!I:J,2,FALSE),\"G/L provided not in system\"))))","v":""},null,null,null,null,null,null,null,null,null,null,null,null,null,null,{"$f":"IF(C26=800303,\"Please contact Cashier's Office before using 800303 or this will be sent back\",IF(AND(NOT(Q26=0),OR(E26=0,C26=0,B26=0,A26=0)),\"Please Check for Errors\",IF(Q26>=25000,\"Please contact Cashiers office before sending for deposits over $25,000\",\"\")))","v":""}]
[null,null,null,{"$f":"IFERROR(VLOOKUP(C27,'Hidden List and Formulas'!C$2:D$16,2,FALSE),IF(C27=\"\",\"\",IF(NOT(LEN(C27)=6),IFERROR(VLOOKUP(C27,'Hidden List and Formulas'!I:J,2,FALSE),\"G/L provided not 6 numbers\"),IFERROR(VLOOKUP(C27,'Hidden List and Formulas'!I:J,2,FALSE),\"G/L provided not in system\"))))","v":""},null,null,null,null,null,null,null,null,null,null,null,null,null,null,{"$f":"IF(C27=800303,\"Please contact Cashier's Office before using 800303 or this will be sent back\",IF(AND(NOT(Q27=0),OR(E27=0,C27=0,B27=0,A27=0)),\"Please Check for Errors\",IF(Q27>=25000,\"Please contact Cashiers office before sending for deposits over $25,000\",\"\")))","v":""}]
[null,null,null,{"$f":"IFERROR(VLOOKUP(C28,'Hidden List and Formulas'!C$2:D$16,2,FALSE),IF(C28=\"\",\"\",IF(NOT(LEN(C28)=6),IFERROR(VLOOKUP(C28,'Hidden List and Formulas'!I:J,2,FALSE),\"G/L provided not 6 numbers\"),IFERROR(VLOOKUP(C28,'Hidden List and Formulas'!I:J,2,FALSE),\"G/L provided not in system\"))))","v":""},null,null,null,null,null,null,null,null,null,null,null,null,null,null,""]
[null,null,null,{"$f":"IFERROR(VLOOKUP(C29,'Hidden List and Formulas'!C$2:D$16,2,FALSE),IF(C29=\"\",\"\",IF(NOT(LEN(C29)=6),IFERROR(VLOOKUP(C29,'Hidden List and Formulas'!I:J,2,FALSE),\"G/L provided not 6 numbers\"),IFERROR(VLOOKUP(C29,'Hidden List and Formulas'!I:J,2,FALSE),\"G/L provided not in system\"))))","v":""},null,null,null,null,null,null,null,null,null,null,null,null,null,null,""]
[null,null,null,{"$f":"IFERROR(VLOOKUP(C30,'Hidden List and Formulas'!C$2:D$16,2,FALSE),IF(C30=\"\",\"\",IF(NOT(LEN(C30)=6),IFERROR(VLOOKUP(C30,'Hidden List and Formulas'!I:J,2,FALSE),\"G/L provided not 6 numbers\"),IFERROR(VLOOKUP(C30,'Hidden List and Formulas'!I:J,2,FALSE),\"G/L provided not in system\"))))","v":""},null,null,null,null,null,null,null,null,null,null,null,null,null,null,""]
[null,null,null,{"$f":"IFERROR(VLOOKUP(C31,'Hidden List and Formulas'!C$2:D$16,2,FALSE),IF(C31=\"\",\"\",IF(NOT(LEN(C31)=6),IFERROR(VLOOKUP(C31,'Hidden List and Formulas'!I:J,2,FALSE),\"G/L provided not 6 numbers\"),IFERROR(VLOOKUP(C31,'Hidden List and Formulas'!I:J,2,FALSE),\"G/L provided not in system\"))))","v":""},null,null,null,null,null,null,null,null,null,null,null,null,null,null,""]
[null,null,null,{"$f":"IFERROR(VLOOKUP(C32,'Hidden List and Formulas'!C$2:D$16,2,FALSE),IF(C32=\"\",\"\",IF(NOT(LEN(C32)=6),IFERROR(VLOOKUP(C32,'Hidden List and Formulas'!I:J,2,FALSE),\"G/L provided not 6 numbers\"),IFERROR(VLOOKUP(C32,'Hidden List and Formulas'!I:J,2,FALSE),\"G/L provided not in system\"))))","v":""},null,null,null,null,null,null,null,null,null,null,null,null,null,null,""]
[null,null,null,{"$f":"IFERROR(VLOOKUP(C33,'Hidden List and Formulas'!C$2:D$16,2,FALSE),IF(C33=\"\",\"\",IF(NOT(LEN(C33)=6),IFERROR(VLOOKUP(C33,'Hidden List and Formulas'!I:J,2,FALSE),\"G/L provided not 6 numbers\"),IFERROR(VLOOKUP(C33,'Hidden List and Formulas'!I:J,2,FALSE),\"G/L provided not in system\"))))","v":""},null,null,null,null,null,null,null,null,null,null,null,null,null,null,""]
[null,null,null,{"$f":"IFERROR(VLOOKUP(C34,'Hidden List and Formulas'!C$2:D$16,2,FALSE),IF(C34=\"\",\"\",IF(NOT(LEN(C34)=6),IFERROR(VLOOKUP(C34,'Hidden List and Formulas'!I:J,2,FALSE),\"G/L provided not 6 numbers\"),IFERROR(VLOOKUP(C34,'Hidden List and Formulas'!I:J,2,FALSE),\"G/L provided not in system\"))))","v":""},null,null,null,null,null,null,null,null,null,null,null,null,null,null,""]
[null,null,null,{"$f":"IFERROR(VLOOKUP(C35,'Hidden List and Formulas'!C$2:D$16,2,FALSE),IF(C35=\"\",\"\",IF(NOT(LEN(C35)=6),IFERROR(VLOOKUP(C35,'Hidden List and Formulas'!I:J,2,FALSE),\"G/L provided not 6 numbers\"),IFERROR(VLOOKUP(C35,'Hidden List and Formulas'!I:J,2,FALSE),\"G/L provided not in system\"))))","v":""},null,null,null,null,null,null,null,null,null,null,null,null,null,null,""]
[null,null,null,{"$f":"IFERROR(VLOOKUP(C36,'Hidden List and Formulas'!C$2:D$16,2,FALSE),IF(C36=\"\",\"\",IF(NOT(LEN(C36)=6),IFERROR(VLOOKUP(C36,'Hidden List and Formulas'!I:J,2,FALSE),\"G/L provided not 6 numbers\"),IFERROR(VLOOKUP(C36,'Hidden List and Formulas'!I:J,2,FALSE),\"G/L provided not in system\"))))","v":""},null,null,null,null,null,null,null,null,null,null,null,null,null,null,""]
[null,null,null,{"$f":"IFERROR(VLOOKUP(C37,'Hidden List and Formulas'!C$2:D$16,2,FALSE),IF(C37=\"\",\"\",IF(NOT(LEN(C37)=6),IFERROR(VLOOKUP(C37,'Hidden List and Formulas'!I:J,2,FALSE),\"G/L provided not 6 numbers\"),IFERROR(VLOOKUP(C37,'Hidden List and Formulas'!I:J,2,FALSE),\"G/L provided not in system\"))))","v":""},null,null,null,null,null,null,null,null,null,null,null,null,null,null,""]
[null,null,null,{"$f":"IFERROR(VLOOKUP(C38,'Hidden List and Formulas'!C$2:D$16,2,FALSE),IF(C38=\"\",\"\",IF(NOT(LEN(C38)=6),IFERROR(VLOOKUP(C38,'Hidden List and Formulas'!I:J,2,FALSE),\"G/L provided not 6 numbers\"),IFERROR(VLOOKUP(C38,'Hidden List and Formulas'!I:J,2,FALSE),\"G/L provided not in system\"))))","v":""},null,null,null,null,null,null,null,null,null,null,null,null,null,null,""]
[null,null,null,{"$f":"IFERROR(VLOOKUP(C39,'Hidden List and Formulas'!C$2:D$16,2,FALSE),IF(C39=\"\",\"\",IF(NOT(LEN(C39)=6),IFERROR(VLOOKUP(C39,'Hidden List and Formulas'!I:J,2,FALSE),\"G/L provided not 6 numbers\"),IFERROR(VLOOKUP(C39,'Hidden List and Formulas'!I:J,2,FALSE),\"G/L provided not in system\"))))","v":""},null,null,null,null,null,null,null,null,null,null,null,null,null,null,""]
[null,null,null,{"$f":"IFERROR(VLOOKUP(C40,'Hidden List and Formulas'!C$2:D$16,2,FALSE),IF(C40=\"\",\"\",IF(NOT(LEN(C40)=6),IFERROR(VLOOKUP(C40,'Hidden List and Formulas'!I:J,2,FALSE),\"G/L provided not 6 numbers\"),IFERROR(VLOOKUP(C40,'Hidden List and Formulas'!I:J,2,FALSE),\"G/L provided not in system\"))))","v":""},null,null,null,null,null,null,null,null,null,null,null,null,null,null,""]
[null,null,null,{"$f":"IFERROR(VLOOKUP(C41,'Hidden List and Formulas'!C$2:D$16,2,FALSE),IF(C41=\"\",\"\",IF(NOT(LEN(C41)=6),IFERROR(VLOOKUP(C41,'Hidden List and Formulas'!I:J,2,FALSE),\"G/L provided not 6 numbers\"),IFERROR(VLOOKUP(C41,'Hidden List and Formulas'!I:J,2,FALSE),\"G/L provided not in system\"))))","v":""},null,null,null,null,null,null,null,null,null,null,null,null,null,null,""]
[null,null,null,{"$f":"IFERROR(VLOOKUP(C42,'Hidden List and Formulas'!C$2:D$16,2,FALSE),IF(C42=\"\",\"\",IF(NOT(LEN(C42)=6),IFERROR(VLOOKUP(C42,'Hidden List and Formulas'!I:J,2,FALSE),\"G/L provided not 6 numbers\"),IFERROR(VLOOKUP(C42,'Hidden List and Formulas'!I:J,2,FALSE),\"G/L provided not in system\"))))","v":""},null,null,null,null,null,null,null,null,null,null,null,null,null,null,""]
[null,null,null,{"$f":"IFERROR(VLOOKUP(C43,'Hidden List and Formulas'!C$2:D$16,2,FALSE),IF(C43=\"\",\"\",IF(NOT(LEN(C43)=6),IFERROR(VLOOKUP(C43,'Hidden List and Formulas'!I:J,2,FALSE),\"G/L provided not 6 numbers\"),IFERROR(VLOOKUP(C43,'Hidden List and Formulas'!I:J,2,FALSE),\"G/L provided not in system\"))))","v":""},null,null,null,null,null,null,null,null,null,null,null,null,null,null,""]
[null,null,null,{"$f":"IFERROR(VLOOKUP(C44,'Hidden List and Formulas'!C$2:D$16,2,FALSE),IF(C44=\"\",\"\",IF(NOT(LEN(C44)=6),IFERROR(VLOOKUP(C44,'Hidden List and Formulas'!I:J,2,FALSE),\"G/L provided not 6 numbers\"),IFERROR(VLOOKUP(C44,'Hidden List and Formulas'!I:J,2,FALSE),\"G/L provided not in system\"))))","v":""},null,null,null,null,null,null,null,null,null,null,null,null,null,null,""]
[null,null,null,{"$f":"IFERROR(VLOOKUP(C45,'Hidden List and Formulas'!C$2:D$16,2,FALSE),IF(C45=\"\",\"\",IF(NOT(LEN(C45)=6),IFERROR(VLOOKUP(C45,'Hidden List and Formulas'!I:J,2,FALSE),\"G/L provided not 6 numbers\"),IFERROR(VLOOKUP(C45,'Hidden List and Formulas'!I:J,2,FALSE),\"G/L provided not in system\"))))","v":""},null,null,null,null,null,null,null,null,null,null,null,null,null,null,""]
[{"$f":"IF(AND(E15=\"\",F15=\"\",G15=\"\",H15=\"\",I15=\"\",J15=\"\",K15=\"\",L15=\"\",M15=\"\",N15=\"\",O15=\"\",E16=\"\",F16=\"\",G16=\"\",H16=\"\",I16=\"\",J16=\"\",K16=\"\",L16=\"\",M16=\"\"),\"\",\"Please check for mistakes before sending\")","v":""}]
[]
["Total",{"$f":"SUM(Q26:Q45)","v":0},null,null,null,null,null,null,null,null,null,null,null,null,null,null,"Max 20 Lines"]
[{"$f":"RANDBETWEEN(1,99999999)","v":53083451},{"$f":"TODAY()","v":"2014-05-30"}]
[]
["Questions on check deposits and G/L accounts should be sent to Cashiers-Office@mit.edu."]
["Gift-related questions should be sent to RecSec@mit.edu."]
["Please contact Henry Leung at heleung@mit.edu with any technical issues with this form."]

{"sheet":"Sheet1","index":1,"n_rows":105,"n_cols":9,"rows_kept":105,"cut":false,"hidden":true,"merged":[]}
["LOCATION ","Name","Department","PHONE","BLGD ","ACCOUNT/GL",null,"E-MAIL"]
["#",null,null,"#","#","#"]
[26,"Admissions","James Blessing","258-5528","3-001","1387001/1387003-800304",null,"jyb@mit.edu",{"$f":"CONCATENATE(A3,\"-\",B3)","v":"26-Admissions"}]
[71,"Aero/Astro","Ping Lee","253-8964","33-214C",null,null,"pmlee@mit.edu",{"$f":"CONCATENATE(A4,\"-\",B4)","v":"71-Aero/Astro"}]
[53,"Air Force ROTC","Ann Cronin","253-4475","W59-114",null,null,"airforce@mit.edu",{"$f":"CONCATENATE(A5,\"-\",B5)","v":"53-Air Force ROTC"}]
[98,"Alumni Association","Kim Warner","258-6009","W98-318",null,null,"warner@mit.edu",{"$f":"CONCATENATE(A6,\"-\",B6)","v":"98-Alumni Association"}]
[58,"Architecture","Doug Levie","253-9824","7-337B",null,null,"dougl@mit.edu",{"$f":"CONCATENATE(A7,\"-\",B7)","v":"58-Architecture"}]
[12,"Arts at MIT","Stacy Pyron","253-4003","E15-205A",null,null,"stacyp@mit.edu",{"$f":"CONCATENATE(A8,\"-\",B8)","v":"12-Arts at MIT"}]
[104,"Arts Culture & Technology","Andrew Barosy","324-3639","E15-211",null,null,"ajbarosy@mit.edu",{"$f":"CONCATENATE(A9,\"-\",B9)","v":"104-Arts Culture & Technology"}]
[56,"ASO","Gracie White","253-4568","8-328",null,null,"graciew@mit.edu",{"$f":"CONCATENATE(A10,\"-\",B10)","v":"56-ASO"}]
[30,"Athletics","Greg Harris","253-3608","W32-109","various accounts",null,"gharris@mit.edu",{"$f":"CONCATENATE(A11,\"-\",B11)","v":"30-Athletics"}]
[13,"BE Grad Student Board","Susan Jaskela","253-1712","16-267",null,null,"sjj@mit.edu",{"$f":"CONCATENATE(A12,\"-\",B12)","v":"13-BE Grad Student Board"}]
[96,"Building Technology","Kate McAngus","253-0463","5-418",null,null,"mcangus@mit.edu",{"$f":"CONCATENATE(A13,\"-\",B13)","v":"96-Building Technology"}]
[20,"Campus Activities","Lauren Smock-Randall","253-3913","W20-027","1735301-801021/1741100",null,"laurensr@mit.edu ",{"$f":"CONCATENATE(A14,\"-\",B14)","v":"20-Campus Activities"}]
[27,"Card Office","Lin Lee Shueh","253-3475","W20-021","1679400-800303",null,"sllee@mit.edu",{"$f":"CONCATENATE(A15,\"-\",B15)","v":"27-Card Office"}]
[10,"Cashiers","Cheryl Whelan","253-5426","NE49-3077",100150,null,"cwhelan@mit.edu",{"$f":"CONCATENATE(A16,\"-\",B16)","v":"10-Cashiers"}]
[103,"CEE Geotech","Carolyn Jundzilo-Comer","253-3280","1-342",null,null,"jundzilo@mit.edu",{"$f":"CONCATENATE(A17,\"-\",B17)","v":"103-CEE Geotech"}]
[80,"Center for Transportation & Logistics","Nick Burns","253-0118","E40-282",null,null,"nburns@mit.edu",{"$f":"CONCATENATE(A18,\"-\",B18)","v":"80-Center for Transportation & Logistics"}]
[92,"Civil & Environmental Engineering ","Nancy Cook","253-7104","1-284",null,null,"pwhesley@MIT.EDU",{"$f":"CONCATENATE(A19,\"-\",B19)","v":"92-Civil & Environmental Engineering "}]
[62,"Community Giving","Traci Swartz","253-7914","E19-432",null,null,"tswartz@mit.edu",{"$f":"CONCATENATE(A20,\"-\",B20)","v":"62-Community Giving"}]
[77,"Community Service Fund","Emily Paramore","253-1988","11-245",null,null,"paramore@mit.edu",{"$f":"CONCATENATE(A21,\"-\",B21)","v":"77-Community Service Fund"}]
[64,"Community Services","Traci Swartz","253-7914","E19-432",null,null,"tswartz@mit.edu",{"$f":"CONCATENATE(A22,\"-\",B22)","v":"64-Community Services"}]
[46,"Conference Services","Sudha Cheruku","253-1703","12-156",null,null,"scheruku@MIT.EDU",{"$f":"CONCATENATE(A23,\"-\",B23)","v":"46-Conference Services"}]
[40,"Copy Tech ","Rita DelPrete","258-0334","3-015A","various accounts",null,"ritadel@mit.edu",{"$f":"CONCATENATE(A24,\"-\",B24)","v":"40-Copy Tech "}]
[99,"CTPIDLogo2","Clinton Campbell","258-7973","E38-659",null,null,"clintonc@mit.edu",{"$f":"CONCATENATE(A25,\"-\",B25)","v":"99-CTPIDLogo2"}]
[49,"Dental","Tom Cafarella","258-5254","E23-530","1662000-801055",null,"cafa@med.mit.edu",{"$f":"CONCATENATE(A26,\"-\",B26)","v":"49-Dental"}]
[100,"D-Lab","Elisha Clark","324-4887","N51-319",null,null,"eliclark@mit.edu",{"$f":"CONCATENATE(A27,\"-\",B27)","v":"100-D-Lab"}]
[{"$f":"COUNT(A11:A27)","v":17},"DLC's Deposits to Bof A",null,null,null,null,null,null,{"$f":"CONCATENATE(A28,\"-\",B28)","v":"17-DLC's Deposits to Bof A"}]
[{"$f":"COUNT(A1:A27)","v":25},"DLC's Deposits to Bof A",null,null,null,null,null,null,{"$f":"CONCATENATE(A29,\"-\",B29)","v":"25-DLC's Deposits to Bof A"}]
[79,"DMSE","Jared Embelton","252-1163","16-244",null,null,"jarede@mit.edu",{"$f":"CONCATENATE(A30,\"-\",B30)","v":"79-DMSE"}]
[14,"Document Services","Judith Gallagher","253-4307","14-0551",null,null,"jeggalag@mit.edu",{"$f":"CONCATENATE(A31,\"-\",B31)","v":"14-Document Services"}]
[21,"DSL","Lee Finnegan","258-0327","W32-109","various accounts",null,"finny@mit.edu",{"$f":"CONCATENATE(A32,\"-\",B32)","v":"21-DSL"}]
[55,"EAPS","Mary Elliff","253-7934","E25-604",null,null,"melliff@mit.edu",{"$f":"CONCATENATE(A33,\"-\",B33)","v":"55-EAPS"}]
[101,"Edgerton Center","Sandi Lipnoski","253-4629","4-408",null,null,"slipnoski@mit.edu",{"$f":"CONCATENATE(A34,\"-\",B34)","v":"101-Edgerton Center"}]
[67,"Educational Computing Initiatives","Meg Westland","253-7663","9-315",null,null,"westlund@mit.edu",{"$f":"CONCATENATE(A35,\"-\",B35)","v":"67-Educational Computing Initiatives"}]
[59,"EECS","Maria Nargi","253-4609","38-409D","1467100-420226",null,"mnargi@mit.edu",{"$f":"CONCATENATE(A36,\"-\",B36)","v":"59-EECS"}]
[52,"Entrepreneurship Center","Pat Fuligni","253-3972","0ne Amherst St Camb MA 02140",null,null,"pfuligni@mit.edu",{"$f":"CONCATENATE(A37,\"-\",B37)","v":"52-Entrepreneurship Center"}]
[69,"Facilities","Patti Pisani","253-3932","NE49-2600",null,null,"ppisani@mit.edu",{"$f":"CONCATENATE(A38,\"-\",B38)","v":"69-Facilities"}]
[50,"Faculty Club","Emily Gould","253-2111","E52-643","1078219-800303",null,"egould@mit.edu",{"$f":"CONCATENATE(A39,\"-\",B39)","v":"50-Faculty Club"}]
[11,"FSILG","Scott Klemm","617-452-4053","W20-020A",null,null,"info@fsilg.coop",{"$f":"CONCATENATE(A40,\"-\",B40)","v":"11-FSILG"}]
[33,"FX/Womens League","Sis deBordenave","253-3656","10-342","2735471-800303",null,"esdeb@mit.edu",{"$f":"CONCATENATE(A41,\"-\",B41)","v":"33-FX/Womens League"}]
[106,"GELP","Eliana Rynyon","617-324-7697","35-316",null,null,"erunyon@mit.edu",{"$f":"CONCATENATE(A42,\"-\",B42)","v":"106-GELP"}]
[65,"General Councel","Mary Ellen Gearin","253-2177","10-370",null,null,"gearin@mit.edu",{"$f":"CONCATENATE(A43,\"-\",B43)","v":"65-General Councel"}]
[72,"Graduate Students Council","Imani Ivery","253-2195","50-220",null,null,"imani@mit.edu ",{"$f":"CONCATENATE(A44,\"-\",B44)","v":"72-Graduate Students Council"}]
[102,"Health Plans","Lucy Walsh","258-5332","E23-308",null,null,"walsh@med.mit.edu",{"$f":"CONCATENATE(A45,\"-\",B45)","v":"102-Health Plans"}]
[32,"HFC","Alison Blaisdell","452-2340","W35-293","1672300-801061",null,"blaisdell@mit.edu",{"$f":"CONCATENATE(A46,\"-\",B46)","v":"32-HFC"}]
[93,"History Office","Margo Collett","253-4965","E51-255",null,null,"mcollett@mit.edu ",{"$f":"CONCATENATE(A47,\"-\",B47)","v":"93-History Office"}]
[42,"HST","Charlene Chow","324-4039","E25-510","Holly Ann Paiva",null,"charc@mit.edu",{"$f":"CONCATENATE(A48,\"-\",B48)","v":"42-HST"}]
[74,"Human Resources","Isadora Choute","715-4779","E19-215",null,null,"ichoute@mit.edu",{"$f":"CONCATENATE(A49,\"-\",B49)","v":"74-Human Resources"}]
[83,"ILP","Susan Shansky/Janet Cronin","253-0423","W98-300",null,null,"shansky@ilp.mit.edu, cronin@ilp.mit.edu",{"$f":"CONCATENATE(A50,\"-\",B50)","v":"83-ILP"}]
[37,"Kavli","Teresa Santiago","253-7078","37-287",null,null,"teresa@mit.edu",{"$f":"CONCATENATE(A51,\"-\",B51)","v":"37-Kavli"}]
[66,"Lab for Nuclear Science","Alan Beatrice","258-5443","26-519",null,null,"beatrice@mit.edu",{"$f":"CONCATENATE(A52,\"-\",B52)","v":"66-Lab for Nuclear Science"}]
[36,"Langer Lab","Constance Beal/Tiffany Greaves","258-5290","E25-342",null,null,"cjbeal@mit.edu, tiffanyg@mit.edu",{"$f":"CONCATENATE(A53,\"-\",B53)","v":"36-Langer Lab"}]
[89,"LGO/SDM","Davicia Neves","258-6744","E40-315",null,null,"davicia@mit.edu",{"$f":"CONCATENATE(A54,\"-\",B54)","v":"89-LGO/SDM"}]
[70,"Libraries","Macrina Rizzo","253-5639","14S-326","various accounts",null,"msrizzo@mit.edu",{"$f":"CONCATENATE(A55,\"-\",B55)","v":"70-Libraries"}]
[76,"Linquistics/Philosophy","Matthew Sikorski","253-4141","32-D808",null,null,"mattski@mit.edu",{"$f":"CONCATENATE(A56,\"-\",B56)","v":"76-Linquistics/Philosophy"}]
[34,"List Visual Arts Center","Barbara Pine","253-9497","E15-109",null,null,"barbra@media.mit.edu",{"$f":"CONCATENATE(A57,\"-\",B57)","v":"34-List Visual Arts Center"}]
[75,"Math","Susan Ferguson","253-3778","2-236",null,null,"susanf@math.mit.edu",{"$f":"CONCATENATE(A58,\"-\",B58)","v":"75-Math"}]
[95,"McCormick Hall","Colleen Honohan","253-5963","W4/133",null,null,"chonohan@mit.edu ",{"$f":"CONCATENATE(A59,\"-\",B59)","v":"95-McCormick Hall"}]
[39,"Medical","Gloria Raymond","253-4468","E23-313",null,null,"raym@med.mit.edu",{"$f":"CONCATENATE(A60,\"-\",B60)","v":"39-Medical"}]
[41,"Medical Billing","Stephanie Johnson","253-0556","E23-395",null,null,"sjohn@med.mit.edu",{"$f":"CONCATENATE(A61,\"-\",B61)","v":"41-Medical Billing"}]
[82,"Minority Education","Lorena Tovar","253-5010","4-113",null,null,"ltovar@mit.edu",{"$f":"CONCATENATE(A62,\"-\",B62)","v":"82-Minority Education"}]
[94,"MISTI","Richelle Amado","324-3066","E40-428",null,null,"ramado@mit.edu   ",{"$f":"CONCATENATE(A63,\"-\",B63)","v":"94-MISTI"}]
[108,"MIT CSB-PHD Program","Jacqueline Blair Carota","617-324-4144","68-230A",null,null,"jcarota@mit.edu",{"$f":"CONCATENATE(A64,\"-\",B64)","v":"108-MIT CSB-PHD Program"}]
[110,"MIT Economics","Loida Morales","253-3390","E19-719",null,null,"lmorales@mit.edu ",{"$f":"CONCATENATE(A65,\"-\",B65)","v":"110-MIT Economics"}]
[109,"MIT Endicott House","Marilyn Mygan","617-715-4900","80 Haven St Dedham Ma 02026",null,null,"mmygan@mit.edu",{"$f":"CONCATENATE(A66,\"-\",B66)","v":"109-MIT Endicott House"}]
[25,"MITAC","Diane Tavitian","253-7990","E19-432","1105400-800303",null,"dtavit@mit.edu",{"$f":"CONCATENATE(A67,\"-\",B67)","v":"25-MITAC"}]
[45,"MPC","Barbara Layne","253-2185","76-653",null,null,"blayne@mit.edu",{"$f":"CONCATENATE(A68,\"-\",B68)","v":"45-MPC"}]
[85,"MTA-MITHAS","Stephanie Muto","253-3210","4-246",null,null,"smuto@mit.edu",{"$f":"CONCATENATE(A69,\"-\",B69)","v":"85-MTA-MITHAS"}]
[18,"Muddy Charles","Michael Grenier","253-4920","50-256","1078236-800303",null,"michaelgrenier@gmail.com",{"$f":"CONCATENATE(A70,\"-\",B70)","v":"18-Muddy Charles"}]
[60,"Museum","Alex Aho","253-5669","N52-227","1376000-801035",null,"aaho@mit.edu",{"$f":"CONCATENATE(A71,\"-\",B71)","v":"60-Museum"}]
[44,"OCW","Isadora Choute","715-4779","E70-810",null,null,"ichoute@mit.edu",{"$f":"CONCATENATE(A72,\"-\",B72)","v":"44-OCW"}]
[43,"ODGE","Idalia Cuevas","253-9463","3-138",null,null,"icuevas@mit.edu",{"$f":"CONCATENATE(A73,\"-\",B73)","v":"43-ODGE"}]
[81,"Office of the President","D'Artagna Matthews","253-5530","3-207",null,null,"dmatthew@mit.edu",{"$f":"CONCATENATE(A74,\"-\",B74)","v":"81-Office of the President"}]
[91,"Ombuds Office","Kate Schenck","253-5921","10-213",null,null,"kates@mit.edu",{"$f":"CONCATENATE(A75,\"-\",B75)","v":"91-Ombuds Office"}]
[19,"Optical","Roger Proulx","258-5367","W20-027","1662100-800303",null,"rprou@mit.edu",{"$f":"CONCATENATE(A76,\"-\",B76)","v":"19-Optical"}]
[24,"Parking Office","Robynn Cruz-Walker","253-4754","W20-022","various accounts",null,"rcruz@mit.edu",{"$f":"CONCATENATE(A77,\"-\",B77)","v":"24-Parking Office"}]
[23,"Pharmacy","Patti Foley","253-5359","E23-197","1666900-800303",null,"fole@med.mit.edu",{"$f":"CONCATENATE(A78,\"-\",B78)","v":"23-Pharmacy"}]
[84,"PHYSICAL OCEANOGRAPHY","Christine Maglio","253-6602","54-1614",null,null,"cmaglio@mit.edu",{"$f":"CONCATENATE(A79,\"-\",B79)","v":"84-PHYSICAL OCEANOGRAPHY"}]
[73,"Physics","Rebecca Maitland","253-4802","4-304",null,null,"maitland@MIT.EDU",{"$f":"CONCATENATE(A80,\"-\",B80)","v":"73-Physics"}]
[88,"Plasma Science & Fusion Center","Marcia Tech-Mora","253-8103","NW16-210",null,null,"mora@psfc@mit.edu",{"$f":"CONCATENATE(A81,\"-\",B81)","v":"88-Plasma Science & Fusion Center"}]
[28,"Press","Charles Hale","258-0577","E39-313A","various accounts",null,"chale@mit.edu",{"$f":"CONCATENATE(A82,\"-\",B82)","v":"28-Press"}]
[38,"Press Bookstore","John Jenkins","253-5249","E38-176","various accounts",null,"jjkenins@mit.edu",{"$f":"CONCATENATE(A83,\"-\",B83)","v":"38-Press Bookstore"}]
[48,"Press Journals","June McCaull","258-0593","E39-311","1336100-800303",null,"jmccaull@mit.edu",{"$f":"CONCATENATE(A84,\"-\",B84)","v":"48-Press Journals"}]
[57,"Professional Education -SP","Heather Vigeveno","253-2103","35-433",null,null,"vigeveno@mite.du",{"$f":"CONCATENATE(A85,\"-\",B85)","v":"57-Professional Education -SP"}]
[47,"Property Office","Mike MCCarthy","253-2779","NE49-4021",null,null,"mmccarth@mit.edu",{"$f":"CONCATENATE(A86,\"-\",B86)","v":"47-Property Office"}]
[78,"Public Service Center","Lorena Tovar","258-9357","4-104",null,null,"ltovar@mit.edu",{"$f":"CONCATENATE(A87,\"-\",B87)","v":"78-Public Service Center"}]
[63,"QCC","Traci Swartz","253-7914","E19-432",null,null,"tswartz@mit.edu",{"$f":"CONCATENATE(A88,\"-\",B88)","v":"63-QCC"}]
[87,"Radio Society","Steve Finberg","258-3754","P.O.Box 397082","MS29 555 Tech Sq Camb Ma 01239",null,"w1gsl@mit.edu",{"$f":"CONCATENATE(A89,\"-\",B89)","v":"87-Radio Society"}]
[86,"Real Estate","Cheryl Gillespie","258-5673","9-321",null,null,"cheryl@mit.edu",{"$f":"CONCATENATE(A90,\"-\",B90)","v":"86-Real Estate"}]
[15,"REFI","Christine Martignetti","452-3966","E48-200","CROSS CO CODE",null,"cmartig@mit.edu",{"$f":"CONCATENATE(A91,\"-\",B91)","v":"15-REFI"}]
[31,"Registrar's Office","Pauline Blair","258-6446","5-119","1745500-801054",null,"pblair@mit.edu",{"$f":"CONCATENATE(A92,\"-\",B92)","v":"31-Registrar's Office"}]
[61,"Retirees","Traci Swartz","253-7914","E19-432",null,null,"tswartz@mit.edu",{"$f":"CONCATENATE(A93,\"-\",B93)","v":"61-Retirees"}]
[68,"Sea Grant","Tim Downes/Trudi Walters","253-7138","E38-303","blackwal@mit.edu",null,"tdownes@mit.edu; blackwell@mit.edu ",{"$f":"CONCATENATE(A94,\"-\",B94)","v":"68-Sea Grant"}]
[105,"SHASS","Ana Ludwig","617-715-4525","4-240",null,null,"hernanac@mit.edu",{"$f":"CONCATENATE(A95,\"-\",B95)","v":"105-SHASS"}]
[54,"Singapore MIT Alliance","Michael Leskiw","452-3024","8-407",null,null,"mleskiw@mit.edu",{"$f":"CONCATENATE(A96,\"-\",B96)","v":"54-Singapore MIT Alliance"}]
[16,"Sloan","Chris Tyson/Seung AH","253-2935","EE20-442C","1225202/3914700",null,"ctyson@mit.ed",{"$f":"CONCATENATE(A97,\"-\",B97)","v":"16-Sloan"}]
[35,"Student Group Deposits","Mary Mango","253-2091","W20-549","various accounts",null,"mmango@mit.edu",{"$f":"CONCATENATE(A98,\"-\",B98)","v":"35-Student Group Deposits"}]
[90,"Technology Review","Olivia Male","475-8014","One Main St","CROSS CO CODE",null,"olivia.male@technologyreview.com",{"$f":"CONCATENATE(A99,\"-\",B99)","v":"90-Technology Review"}]
[97,"Terrascope","Debra Aczel","253-4074","16-177A",null,null,"daczel@mit.edu",{"$f":"CONCATENATE(A100,\"-\",B100)","v":"97-Terrascope"}]
[22,"Thirsty Ear","Michael Grenier","253-4920","50-256","1078222-800303",null,"michaelgrenier@gmail.com",{"$f":"CONCATENATE(A101,\"-\",B101)","v":"22-Thirsty Ear"}]
[17,"TLO","Laura Koebler","253-6966","NE18-501","1175700-800303",null,"lkoebler@mit.edu",{"$f":"CONCATENATE(A102,\"-\",B102)","v":"17-TLO"}]
[51,"UAAP","Shelly Isaac","253-9765","7-104",null,null,"sisaac@mit.edu",{"$f":"CONCATENATE(A103,\"-\",B103)","v":"51-UAAP"}]
[107,"UPOP","Eliana Rynyon","617-324-7697","35-316",null,null,"erunyon@mit.edu",{"$f":"CONCATENATE(A104,\"-\",B104)","v":"107-UPOP"}]
[29,"Urban Studies & Planning","Janine Marchese","253-1907","7-337",null,null,"neen610@mit.edu",{"$f":"CONCATENATE(A105,\"-\",B105)","v":"29-Urban Studies & Planning"}]

{"sheet":"Hidden List and Formulas","index":2,"n_rows":2282,"n_cols":11,"rows_kept":2282,"cut":false,"hidden":true,"merged":[]}
[null,"GL",null,"Name",null,"(I do not know)",null,null,"Gl Account Id","Gl Account Name"]
[null,801035,{"$f":"CONCATENATE(B2,\"-\",D2)","v":"801035-Sales"},{"$f":"VLOOKUP(B2,I:J,2,FALSE)","v":"Sales"},null,"United States of America     ",null,null,102072,"Glen V & Phyllis F Dorflinger Charitable Remainder",102072]
[null,801050,"801050-Non Degree Program Fees",{"$f":"VLOOKUP(B3,I:J,2,FALSE)","v":"Non Degree Program Fees"},null,"Canada        ",null,null,102073,"Vernon H Grigg Charitable Remainder Unitrust",102073]
[null,801018,"801018-Income - Outside Services","Income - Outside Services",null,"Albania        ",null,null,102074,"Henry Clyde Jonson Annuity Trust",102074]
[null,801063,"801063-Conferences & Events Revenue","Conferences & Events Revenue",null,"Algeria        ",null,null,102075,"Victor K & Elizabeth T Atkins Unitrust",102075]
[null,800304,"800304-Fee Income","Fee Income",null,"Andorra        ",null,null,102076,"Edgar P Eaton Jr (1944) - G A Unitrust",102076]
[null,801053,"801053-Subscriptions Revenue","Subscriptions Revenue",null,"Angola        ",null,null,102077,"Denman K McNear Unitrust",102077]
[null,801055,"801055-Medical/Dental Insurance Revenue","Medical/Dental Insurance Revenue",null,"Antigua and Barbadus      ",null,null,102078,"George B Raymond 1955 Unitrust",102078]
[null,801054,"801054-Transcript Fees","Transcript Fees",null,"Argentina        ",null,null,102079,"Edward(1934) & Annette Asch Char Remain Unitrust",102079]
[null,800600,"800600-Sponsored Billings","Sponsored Billings",null,"Armenia        ",null,null,102080,"James A Stern Charitable Remainder Unitrust",102080]
[null,801019,"801019-Permissions Revenue","Permissions Revenue",null,"Australia        ",null,null,102081,"Gunther W Balz Unitrust",102081]
[null,800311,"800311-Expense Reimbursement","Expense Reimbursement",null,"Austria        ",null,null,102082,"Harold A B Mcinnes Unitrust",102082]
[null,801021,"801021-Income - Building Usage","Income - Building Usage",null,"Azerbaijan        ",null,null,102083,"Ernest U Buckman Unitrust",102083]
[null,420050,"420050-Travel Expenses","Travel Expenses",null,"Bahamas        ",null,null,102084,"John M and Jane G Bradley Unitrust",102084]
[null,420070,"420070-Travel-Foreign Expenses","Travel-Foreign Expenses",null,"Bahrain        ",null,null,102085,"Nancy & Bryron Lutman Charit Remaind Unitrst",102085]
[null,null,"-",null,null,"Bangladesh        ",null,null,102086,"Katherine S Hazen Unitrust",102086]
[null,null,"-",null,null,"Barbados        ",null,null,102087,"Landon T Clay Fund",102087]
[null,null,"-",null,null,"Belarus        ",null,null,102088,"John(1941)&Elizabeth Stern Chart Remainbl Unitrust",102088]
[null,null,"-",null,null,"Belgium        ",null,null,102089,"Paul M Cook Fund",102089]
[null,null,"-",null,null,"Belize        ",null,null,102090,"J Marshall Cole",102090]
[null,null,"-",null,null,"Benin        ",null,null,102091,"Topsfield Fund #1",102091]
[null,null,"-",null,null,"Bhutan        ",null,null,102092,"C B & R J Damartini (1941) Unitrust",102092]
[null,null,"-",null,null,"Bolivia        ",null,null,102093,"Donald(1950)&Sigrid Harnsberger Chart Rem Trust",102093]
[null,null,"-",null,null,"Botswana        ",null,null,102094,"Compton Pooled Income Fund",102094]
[null,null,"-",null,null,"Brazil        ",null,null,102095,"Geroge R & Mary Jo Dvorak (1945) Unitrust",102095]
[null,null,"-",null,null,"Brunei Darussalam       ",null,null,102096,"Paul K (1947) Mary L Schilling Unitrust",102096]
[null,null,"-",null,null,"Bulgaria        ",null,null,102097,"David B Powers Unitrust #3",102097]
[null,null,"-",null,null,"Burkina Faso       ",null,null,102098,"Anonymous O Research Fund",102098]
[null,null,"-",null,null,"Burundi        ",null,null,102099,"Herbert F (1944) & Glenna Knape Unitrust",102099]
[null,null,"-",null,null,"Cambodia        ",null,null,102100,"Concordia Chen (1962) Unitrust",102100]
[null,null,"-",null,null,"Cameroon        ",null,null,102101,"Faculty Memorial Association (FMA)",102101]
[null,null,"-",null,null,"Cape Verde       ",null,null,102102,"Warren L Towle Unitrust",102102]
[null,null,"-",null,null,"Central African Republic      ",null,null,102103,"Doris & David (1926) Powers Unitrust",102103]
[null,null,"-",null,null,"Chad        ",null,null,102104,"The Best Charity Remainder Unitrust",102104]
[null,null,"-",null,null,"Chile        ",null,null,102105,"Harris E Dexter",102105]
[null,null,"-",null,null,"China        ",null,null,102106,"Edwin G Roos (1944) Annuity Trust",102106]
[null,null,"-",null,null,"Colombia        ",null,null,102107,"Lawrence De Neufville Unitrust",102107]
[null,null,"-",null,null,"Comors        ",null,null,102108,"Floyd A Lyon Unitrust #2",102108]
[null,null,"-",null,null,"Congo        ",null,null,102109,"Albert B Van Rennes 5% Unitrust",102109]
[null,null,"-",null,null,"Costa Rica       ",null,null,102110,"Eben S Draper",102110]
[null,null,"-",null,null,"Côte D'Ivoire       ",null,null,102111,"Stata Development Fund",102111]
[null,null,"-",null,null,"Croatia        ",null,null,102112,"Robert R & Elizabeth T Imsande Unitrust",102112]
[null,null,"-",null,null,"Cuba        ",null,null,102113,"Ruth W & James A Levitan Unitrust",102113]
[null,null,"-",null,null,"Cyprus        ",null,null,102114,"Frances E Magnus Unitrust",102114]
[null,null,"-",null,null,"Czech Republic       ",null,null,102115,"Richard M Adler (1946) Unitrust",102115]
[null,null,"-",null,null,"the Democratic People's Republic of Korea   ",null,null,102116,"John J (1945) and K L Freiberger Unitrust",102116]
[null,null,"-",null,null,"the Democratic Republic of the Congo   ",null,null,102117,"Henry Clyde Johnson 1936 Sch Fund",102117]
[null,null,"-",null,null,"Denmark        ",null,null,102118,"Herbert & Dorothy Grier Char Rem Unitrust",102118]
[null,null,"-",null,null,"Djibouti        ",null,null,102119,"Stanley N (1942) & Thelma L Golembe Unitrust",102119]
[null,null,"-",null,null,"Dominica        ",null,null,102120,"Robert L & Ruth N Hayes Unitrust",102120]
[null,null,"-",null,null,"Dominican Republic       ",null,null,102121,"Brian G R Hughes Fund",102121]
[null,null,"-",null,null,"Ecuador        ",null,null,102122,"Barbara Lago Unitrust",102122]
[null,null,"-",null,null,"Egypt        ",null,null,102123,"D R Weedon Jr (1941) Unitrust 2",102123]
[null,null,"-",null,null,"El Salvadoor       ",null,null,102124,"HM(1994)& GB Paynter Chart Remind Unitrust",102124]
[null,null,"-",null,null,"Equatoral Guinea       ",null,null,102125,"Anonymous O Building Fund",102125]
[null,null,"-",null,null,"Eritrea        ",null,null,102126,"John T Toland Unitrust",102126]
[null,null,"-",null,null,"Estonia        ",null,null,102127,"Peter M Lang (1951) Chart Remain Unitrust",102127]
[null,null,"-",null,null,"Ethiopia        ",null,null,102128,"A Tobey & Natalie Yu Chart Remain Unitrust",102128]
[null,null,"-",null,null,"Fiji        ",null,null,102129,"D R Weedon Jr Unitrust #3",102129]
[null,null,"-",null,null,"Finland        ",null,null,102130,"Marjorie Leggett Chartiable Remainder Unitrust",102130]
[null,null,"-",null,null,"France        ",null,null,102131,"L & B Weinberg Chartiable Remainder Unitrust",102131]
[null,null,"-",null,null,"Gabon        ",null,null,102132,"Henry Clyde Johnson Annuity II",102132]
[null,null,"-",null,null,"Gambia        ",null,null,102133,"Taplin Fund",102133]
[null,null,"-",null,null,"Georgia        ",null,null,102134,"Ralph Huntington Gift Annuity Pool",102134]
[null,null,"-",null,null,"Germany        ",null,null,102135,"James B (1944) & Eliz R Angell Unitrust",102135]
[null,null,{"$f":"CONCATENATE(B66,\"-\",D66)","v":"-"},null,null,"Ghana        ",null,null,102136,"Edwin G Roos Annunity Trust #2",102136]
[null,null,"-",null,null,"Greece        ",null,null,102137,"Gertrude D LaCroix Unitrust",102137]
[null,null,"-",null,null,"Grenada        ",null,null,102138,"Raymond S Stata Annuity Trust",102138]
[null,null,"-",null,null,"Guatemala        ",null,null,102139,"Claude M McCord Jr Unitrust",102139]
[null,null,"-",null,null,"Guinea        ",null,null,102140,"Income Fund A",102140]
[null,null,"-",null,null,"Guinea Bissau       ",null,null,102141,"Artisan Partners L P",102141]
[null,null,"-",null,null,"Guyana        ",null,null,102142,"Charles & Joan Lawson Unitrust",102142]
[null,null,"-",null,null,"Haiti        ",null,null,102143,"Edward L Hoyt Charitable Remainder Unitrust",102143]
[null,null,"-",null,null,"Honduras        ",null,null,102144,"Eleanor & William Howlett Charitable Remainder",102144]
[null,null,"-",null,null,"Hungary        ",null,null,102145,"Investments Pool A Templeton Management",102145]
[null,null,"-",null,null,"Iceland        ",null,null,102146,"Clifford H Heselton Charitable Remainder Unitrust",102146]
[null,null,"-",null,null,"India        ",null,null,102147,"Income Pool Fund",102147]
[null,null,"-",null,null,"Indonesia        ",null,null,102148,"P J Solondz Charitable Remainder Unitrust",102148]
[null,null,"-",null,null,"Iran (Islamic Republic of)     ",null,null,102149,"Walter P (1941) & Carolyn Y Keith Unitrust",102149]
[null,null,"-",null,null,"Iraq        ",null,null,102150,"Independent Residence Development",102150]
[null,null,"-",null,null,"Ireland        ",null,null,102151,"H J Kaiser Family Foundation",102151]
[null,null,"-",null,null,"Israel        ",null,null,102152,"Alfreda & Melvin Posin Charitable Remain Unitrust",102152]
[null,null,"-",null,null,"Italy        ",null,null,102153,"Earp F Jennings Jr (1939) Unitrust",102153]
[null,null,"-",null,null,"Jamaica        ",null,null,102154,"Edward Webster Unitrust",102154]
[null,null,"-",null,null,"Japan        ",null,null,102155,"Herbert W (1946) &  Virginia G Oedel",102155]
[null,null,"-",null,null,"Jordan        ",null,null,102156,"Investments Pool A - Supplemental #2",102156]
[null,null,"-",null,null,"Kazakhstan        ",null,null,102157,"G & A Noble Charitable Remainder Unitrust",102157]
[null,null,"-",null,null,"Kenya        ",null,null,102158,"K & L (1942) Stouse Jr Charit Remainder Unitrust",102158]
[null,null,"-",null,null,"Kiribati        ",null,null,102159,"Dana W (1952) & O Jeanne D'Arc Mayo Unitrust",102159]
[null,null,"-",null,null,"Kuwait        ",null,null,102160,"CM Clay 1948 Charitable Remainder Unitrust",102160]
[null,null,"-",null,null,"Kyrgyzstan        ",null,null,102161,"Floyd A Lyon 42 Unitrust",102161]
[null,null,"-",null,null,"Lao People’s Democratic Republic",null,null,102162,"Mary Frances P Wagley Charitable Unitrust",102162]
[null,null,"-",null,null,"Latvia        ",null,null,102163,"McMillan Charitable Remainder Unitrust",102163]
[null,null,"-",null,null,"Lebanon        ",null,null,102164,"Harold J (1939) & Elizabeth S Muckley Annity",102164]
[null,null,"-",null,null,"Lesotho        ",null,null,102165,"Denman \"48 & Barbara McNear Charitable",102165]
[null,null,"-",null,null,"Liberia        ",null,null,102166,"James F Howy (1943) Charitable Remainder",102166]
[null,null,"-",null,null,"Libya        ",null,null,102167,"Charles L Wellard Unitrust #2",102167]
[null,null,"-",null,null,"Liechtenstein        ",null,null,102168,"Sarah B Cutler Remainder Unitrust",102168]
[null,null,"-",null,null,"Lithuania        ",null,null,102169,"Allen Latham Jr Unitrust",102169]
[null,null,"-",null,null,"Luxembourg        ",null,null,102170,"Gustaf Lindberg",102170]
[null,null,"-",null,null,"Madagascar        ",null,null,102171,"S E & L A Lunden Unitrust",102171]
[null,null,"-",null,null,"Malawi        ",null,null,102172,"William R Hauke Jr Unitrust",102172]
[null,null,"-",null,null,"Malaysia        ",null,null,102173,"William & Florence Coffee Unitrust",102173]
[null,null,"-",null,null,"Maldives        ",null,null,102174,"Edwrad O Vetter (1942) Fund",102174]
[null,null,"-",null,null,"Mali        ",null,null,102175,"Gordon K & Marion O Lister",102175]
[null,null,"-",null,null,"Malta        ",null,null,102176,"R & N Sebell Charitable Remainder Unitrust",102176]
[null,null,"-",null,null,"Marshall Islands       ",null,null,102177,"FW & EF Greer Charitable Remain Unitrust",102177]
[null,null,"-",null,null,"Mauritania        ",null,null,102178,"Harold & Elizabeth Muckley Annunity Trust #3",102178]
[null,null,"-",null,null,"Mauritius        ",null,null,102179,"Walter M May Charitable Remainder",102179]
[null,null,"-",null,null,"Mexico        ",null,null,102180,"Gladys F MacDonald Unitrust #1",102180]
[null,null,"-",null,null,"Micronesia, Federated States of     ",null,null,102181,"Gladys F MacDonald Unitrust #2",102181]
[null,null,"-",null,null,"Monaco        ",null,null,102182,"Gilbert & Alice Noble Charitable Remainder",102182]
[null,null,"-",null,null,"Mongolia        ",null,null,102183,"Gladys F MacDonald Unitrust #4",102183]
[null,null,"-",null,null,"Montenegro        ",null,null,102184,"Thomas & Sally Defazio Unitrust",102184]
[null,null,"-",null,null,"Morocco        ",null,null,102185,"John F McCarty #2",102185]
[null,null,"-",null,null,"Mozambique        ",null,null,102186,"The McLaurin Pooled Income Fund",102186]
[null,null,"-",null,null,"Myanmar        ",null,null,102187,"William F Mullen Unitrust",102187]
[null,null,"-",null,null,"Namibia        ",null,null,102188,"Milton R McGuire Unitrust",102188]
[null,null,"-",null,null,"Nauru        ",null,null,102189,"Katherine & Louis Stouce Charitable Remainder",102189]
[null,null,"-",null,null,"Nepal        ",null,null,102190,"Jean Montagu (1955) Unitrust",102190]
[null,null,"-",null,null,"Nethrelands        ",null,null,102191,"Jacqueline & Bruce (1949) Calhoun Trust",102191]
[null,null,"-",null,null,"New Zealand       ",null,null,102232,"Royden L. Burbank (1919) Charitable Remainder Unit",102232]
[null,null,"-",null,null,"Nicaragua        ",null,null,102233,"David S Saxon Unitrust",102233]
[null,null,"-",null,null,"Niger        ",null,null,102234,"Lindsay Russell Charitable Unitrust",102234]
[null,null,"-",null,null,"Nigeria        ",null,null,102235,"P Rudovsky & J Mackay Charitable Remainder Unitrus",102235]
[null,null,"-",null,null,"Norway        ",null,null,102236,"Robert Welles #1 Unitrust",102236]
[null,null,"-",null,null,"Oman        ",null,null,102237,"Robert Welles #2 Unitrust",102237]
[null,null,"-",null,null,"Pakistan        ",null,null,102238,"Investment Land & Buildings-Pool A",102238]
[null,null,"-",null,null,"Palau        ",null,null,102239,"Investment Land & Buildings-Pool C",102239]
[null,null,{"$f":"CONCATENATE(B130,\"-\",D130)","v":"-"},null,null,"Panama        ",null,null,102240,"Investment-Construction in Process",102240]
[null,null,"-",null,null,"Papua New Guinea      ",null,null,102241,"Accumulated Depreciation-Investments",102241]
[null,null,"-",null,null,"Paraguay        ",null,null,102244,"Investments Pool A Wellington Real Asset Fund",102244]
[null,null,"-",null,null,"Peru        ",null,null,102245,"Milton H Streeter Unitrust",102245]
[null,null,"-",null,null,"Philippines        ",null,null,102246,"Unemployee Comp Insurance Reserve",102246]
[null,null,"-",null,null,"Poland        ",null,null,102247,"C M Clay (1948) Charitable Remainder Unitrust #2",102247]
[null,null,"-",null,null,"Portugal        ",null,null,102248,"Dr. Edward E. David Jr. Unitrust",102248]
[null,null,"-",null,null,"Qatar        ",null,null,102249,"Investment",102249]
[null,null,"-",null,null,"Republic of Korea      ",null,null,102250,"F P Vonolker",102250]
[null,null,"-",null,null,"Republic of Moldova      ",null,null,102251,"Samuel Blake Charitable Remainder Unitrust",102251]
[null,null,"-",null,null,"Romania        ",null,null,102252,"Richard P Gruen Charitable Remainder #2",102252]
[null,null,"-",null,null,"Russian Federation       ",null,null,102253,"Kenneth & Jeanne Wadleigh Unitrust",102253]
[null,null,"-",null,null,"Rwanda        ",null,null,102254,"Stanley & Sheila Sydney Charitable Remainder Unitr",102254]
[null,null,"-",null,null,"Saint Kitts and Nevis     ",null,null,102255,"Edwin G Roos & Mary Ann Evans Charitable Rem Ut #5",102255]
[null,null,"-",null,null,"Saint Lucia       ",null,null,102256,"Jean & Kyra Montagu Unitrust #2",102256]
[null,null,"-",null,null,"Saint Vincent and the Grenadines    ",null,null,102257,"D & J Bishop Charitable Remainder Initrust",102257]
[null,null,"-",null,null,"Samoa        ",null,null,102258,"Arthur & Carol Chen Unitrust",102258]
[null,null,"-",null,null,"San Marino       ",null,null,102259,"A Tobey & Natalie Yu Unitrust #2",102259]
[null,null,"-",null,null,"Sao Tome and Principe     ",null,null,102260,"Hubert E. Knipmeyer Charitable Remainder Unitrust",102260]
[null,null,"-",null,null,"Saudi Arabia       ",null,null,102261,"Charles H. &  Ann E Spaulding Unitrust #2",102261]
[null,null,"-",null,null,"Senegal        ",null,null,102262,"HEFA Deposits - Settlement Account",102262]
[null,null,"-",null,null,"Serbia        ",null,null,102263,"Ralph L. Evans Jr. Unitrust",102263]
[null,null,"-",null,null,"Seychelles        ",null,null,102264,"Thomas G. (1962) & Louise T. Burns Unitrust",102264]
[null,null,"-",null,null,"Sierra Leone       ",null,null,102265,"Jonathan Whitney",102265]
[null,null,"-",null,null,"Singapore        ",null,null,102266,"Internal Loan Settlement",102266]
[null,null,"-",null,null,"Slovakia        ",null,null,102267,"Kathlyn Langford Wolfe Prize In M S H &",102267]
[null,null,"-",null,null,"Slovenia        ",null,null,102268,"Special Distribution - FY2000",102268]
[null,null,"-",null,null,"Soloman Islands       ",null,null,102269,"Inv - City of London Global Nat'l Resources",102269]
[null,null,"-",null,null,"Somalia        ",null,null,102270,"Ronald A. Kunrtz Unitrust #1",102270]
[null,null,"-",null,null,"South Africa       ",null,null,102271,"Ronald A. Kurtz Unitrust #3",102271]
[null,null,"-",null,null,"South Sudan       ",null,null,102272,"Series J Swap - Merrill",102272]
[null,null,"-",null,null,"Spain        ",null,null,102273,"Series J Swap - Lehman",102273]
[null,null,"-",null,null,"Sri Lanka       ",null,null,102192,"Nuclear Reactor Laboratory Fund",102192]
[null,null,null,null,null,"Sudan        ",null,null,102193,"Carl M Mueller Unitrust",102193]
[null,null,null,null,null,"Suriname        ",null,null,102194,"M&R Cowen Charitable Remainder Unitrust",102194]
[null,null,null,null,null,"Swaziland        ",null,null,102195,"Museum Of Science Cooperative",102195]
[null,null,null,null,null,"Sweden        ",null,null,102196,"Pool A Acadian Asset Management",102196]
[null,null,null,null,null,"Switzerland        ",null,null,102197,"Joseph M Buswell Unitrust",102197]
[null,null,null,null,null,"Syrian Arab Republic      ",null,null,102198,"James S Parsons Unitrust",102198]
[null,null,null,null,null,"Tajikstan        ",null,null,102199,"Gordon A Pope (1939) Unitrust",102199]
[null,null,null,null,null,"Thailand        ",null,null,102200,"Richard Piez Unitrust",102200]
[null,null,null,null,null,"the former Yugoslav Republic of Macedonia   ",null,null,102201,"Pool A Hansverger Global Investors",102201]
[null,null,null,null,null,"Timore Leste       ",null,null,102202,"Edwin G Roos & Mary Ann Evans Charitable Rem Ut #4",102202]
[null,null,null,null,null,"Togo        ",null,null,102203,"Research Gift & Opns Pool",102203]
[null,null,null,null,null,"Tonga        ",null,null,102204,"Pic-Tel Fund",102204]
[null,null,null,null,null,"Trinidad and Tobago      ",null,null,102205,"David B Powers Unitrust",102205]
[null,null,null,null,null,"Tunisia        ",null,null,102206,"M & R Cowen Charitable Remainder Unitrust",102206]
[null,null,null,null,null,"Turkey        ",null,null,102207,"Anonymous K Cancer Ctr Res Fund Investment",102207]
[null,null,null,null,null,"Turkmenistan        ",null,null,102208,"Richard Meyers Unitrust",102208]
[null,null,null,null,null,"Tuvalu        ",null,null,102209,"James S Parson Unitrust II",102209]
[null,null,null,null,null,"Uganda        ",null,null,102210,"David & Doris Powers Unitrust #2",102210]
[null,null,null,null,null,"Ukraine        ",null,null,102211,"Michael V & Jeanette Herasimchuk Unitrust",102211]
[null,null,null,null,null,"United Arab Emirates      ",null,null,102212,"WB Rogers Pooled Income Fund",102212]
[null,null,null,null,null,"United Kingdom of Great Britain and Northern Ireland ",null,null,102213,"WA & JF Rosenblith Unitrust",102213]
[null,null,null,null,null,"the United Republic of Tanzania    ",null,null,102214,"A & C Handleman Charitable Remainder Unitrust",102214]
[null,null,null,null,null,"Uruguay        ",null,null,102215,"M & R Cowen Charitable Remainder Unitrust",102215]
[null,null,null,null,null,"Uzbekistan        ",null,null,102216,"Richard A. Blanchard Charitable Remainder Unitrust",102216]
[null,null,null,null,null,"Vanuata        ",null,null,102217,"Robert J Shillman Fund",102217]
[null,null,null,null,null,"Venezuela        ",null,null,102218,"David H Koch Cancer Research Fund",102218]
[null,null,null,null,null,"Viet Nam       ",null,null,102219,"R P Gruen Charitable Remainder Unitrust",102219]
[null,null,null,null,null,"Yemen        ",null,null,102220,"MIT Special Assets",102220]
[null,null,null,null,null,"Zambia        ",null,null,102221,"S A Parkinson Charitable Remainder Unitrust",102221]
[null,null,null,null,null,"Zimbabwe        ",null,null,102222,"Special Investment Funds",102222]
[null,null,null,null,null,null,null,null,102223,"Technical Licensing Office (TLO)",102223]
[null,null,null,null,null,null,null,null,102224,"Flyod Lyon Unitrust #3",102224]
[null,null,null,null,null,null,null,null,102225,"W E Scott Charitable Remainder Unitrust",102225]
[null,null,null,null,null,null,null,null,102226,"M & K Brillhart Chartitable Remainder Uniturst",102226]
[null,null,null,null,null,null,null,null,102227,"Katherine & Edward B Walker 1944 Unitrust",102227]
[null,null,null,null,null,null,null,null,102228,"Sander Rubin Charitable Remainder",102228]
[null,null,null,null,null,null,null,null,102229,"G S Balz Charitable Remainder Unitrust",102229]
[null,null,null,null,null,null,null,null,102230,"Anonymous IS Char Remainder Unitrust",102230]
[null,null,null,null,null,null,null,null,102231,"Ronald Kurtz Fund",102231]
[null,null,null,null,null,null,null,null,100000,"EDx Cash Account",100000]
[null,null,null,null,null,null,null,null,100100,"Northgate Mang Security Deposits",100100]
[null,null,null,null,null,null,null,null,100101,"Settlement for Cash",100101]
[null,null,null,null,null,null,null,null,100104,"Pool A Cash - City of London Fund",100104]
[null,null,null,null,null,null,null,null,100105,"Ivestment Cash - Pool A (Artisan)",100105]
[null,null,null,null,null,null,null,null,100106,"Investment Cash - Pool A (Templeton)",100106]
[null,null,null,null,null,null,null,null,100107,"Investment Cash - Pool A Acadian Asset Mngt",100107]
[null,null,null,null,null,null,null,null,100108,"Invest Cash - Pool A Hansberger Global Investor",100108]
[null,null,null,null,null,null,null,null,100109,"Investment Cash - Downtown Assocaites II",100109]
[null,null,null,null,null,null,null,null,100110,"Petty Cash Funds - Departments",100110]
[null,null,null,null,null,null,null,null,100111,"Record Dept Checks Rec/New Cash System",100111]
[null,null,null,null,null,null,null,null,100112,"Record TLO Checks Received",100112]
[null,null,null,null,null,null,null,null,100113,"Investment Cash - Acadian Int'l",100113]
[null,null,null,null,null,null,null,null,100114,"Investment Cash - Artisan Int'l",100114]
[null,null,null,null,null,null,null,null,100115,"Principal Account for Skyline Asset Management",100115]
[null,null,null,null,null,null,null,null,100116,"Investment Cash - Wellington Int'l",100116]
[null,null,null,null,null,null,null,null,100117,"City of London Global Natural Resources",100117]
[null,null,null,null,null,null,null,null,100118,"Commingled International Small Cap Cash",100118]
[null,null,null,null,null,null,null,null,100119,"Petty Cash-SING",100119]
[null,null,null,null,null,null,null,null,100120,"Future Capital Projects Seperately Invested Fund",100120]
[null,null,null,null,null,null,null,null,100121,"Investment Cash - Pool A (Wellington Real Asset)",100121]
[null,null,null,null,null,null,null,null,100122,"Taxable Bonds Cash, Series B",100122]
[null,null,null,null,null,null,null,null,100125,"Lincoln Lab Cash Account",100125]
[null,null,null,null,null,null,null,null,100126,"Tech Review Checking Account",100126]
[null,null,null,null,null,null,null,null,100127,"Bank of America Clearing",100127]
[null,null,null,null,null,null,null,null,100128,"Bank of America Refund",100128]
[null,null,null,null,null,null,null,null,100129,"Investment Cash - Commingled Emerging Markets",100129]
[null,null,null,null,null,null,null,null,100130,"SING Cash Account",100130]
[null,null,null,null,null,null,null,null,100131,"Bank of America Subscription Refunds",100131]
[null,null,null,null,null,null,null,null,100150,"Cashier Exchange Account",100150]
[null,null,null,null,null,null,null,null,100200,"Credit Union Deposit",100200]
[null,null,null,null,null,null,null,null,100300,"EDx Investments",100300]
[null,null,null,null,null,null,null,null,100320,"MIT Press - Foreign Funds",100320]
[null,null,null,null,null,null,null,null,100400,"MIT Credit Union-DLC's",100400]
[null,null,null,null,null,null,null,null,100405,"MIT BOA - DLC's",100405]
[null,null,null,null,null,null,null,null,100500,"Investment Cash - Pool C Advisory",100500]
[null,null,null,null,null,null,null,null,100501,"Investment Cash - Pool A",100501]
[null,null,null,null,null,null,null,null,100502,"Investment Cash - Pool A (Amerindo)",100502]
[null,null,null,null,null,null,null,null,100503,"Investment Cash - Separately Invested",100503]
[null,null,null,null,null,null,null,null,100504,"Investment Cash - Pool A (Strong)",100504]
[null,null,null,null,null,null,null,null,100505,"Investment Cash - Pool A (Neuberg)",100505]
[null,null,null,null,null,null,null,null,100506,"Investment Cash - Pool C Managed Bonds",100506]
[null,null,null,null,null,null,null,null,100507,"Investment Cash - TR Illiquid Cash",100507]
[null,null,null,null,null,null,null,null,100508,"Investment Cash - PR Illiquid Cash",100508]
[null,null,null,null,null,null,null,null,100510,"Investment Cash - Pool A - Foreign",100510]
[null,null,null,null,null,null,null,null,100511,"State Street Bank Custody Clearing (INV)",100511]
[null,null,null,null,null,null,null,null,100512,"BankBoston Credit Card Clearing (INV)",100512]
[null,null,null,null,null,null,null,null,100513,"Investment Cash Clearing",100513]
[null,null,null,null,null,null,null,null,100514,"Investment Cash - LIFS Pool",100514]
[null,null,null,null,null,null,null,null,100515,"Operating Cash Clearing",100515]
[null,null,null,null,null,null,null,null,100525,"BOA Clearing Account",100525]
[null,null,null,null,null,null,null,null,100526,"BOA Bank Card Services",100526]
[null,null,null,null,null,null,null,null,100527,"BOA Pool C",100527]
[null,null,null,null,null,null,null,null,100528,"BOA BCS IMPREST",100528]
[null,null,null,null,null,null,null,null,100530,"Cashiers Deposits -- 712-0035",100530]
[null,null,null,null,null,null,null,null,100531,"Payroll Batch -- 8305-0738",100531]
[null,null,null,null,null,null,null,null,100532,"Payroll Garnishment",100532]
[null,null,null,null,null,null,null,null,100533,"PR Concentration 8011-7704",100533]
[null,null,null,null,null,null,null,null,100535,"Student Services Center - Cash",100535]
[null,null,null,null,null,null,null,null,100536,"Student Activities Deposits",100536]
[null,null,null,null,null,null,null,null,100537,"Student Financial Services Direct Deposit BankAcct",100537]
[null,null,null,null,null,null,null,null,100540,"Cambridge Trust Co",100540]
[null,null,null,null,null,null,null,null,100541,"Medicare Part D",100541]
[null,null,null,null,null,null,null,null,100542,"Campus Accounts Payable Cash",100542]
[null,null,null,null,null,null,null,null,100550,"Kwajalein Branch Bank of Hawaii",100550]
[null,null,null,null,null,null,null,null,100555,"Bank of America Benefits Accounting ACH Debit",100555]
[null,null,null,null,null,null,null,null,100556,"Escrow Acctng",100556]
[null,null,null,null,null,null,null,null,100560,"Campus Accounts Payable Cash",100560]
[null,null,null,null,null,null,null,null,100561,"MIT Air Force Special Account",100561]
[null,null,null,null,null,null,null,null,100562,"MIT Army Special Account",100562]
[null,null,null,null,null,null,null,null,100563,"MIT Navy Special Account",100563]
[null,null,null,null,null,null,null,null,100564,"Activities Pilot BankBoston Balance",100564]
[null,null,null,null,null,null,null,null,100565,"Residential Life Programs Finance",100565]
[null,null,null,null,null,null,null,null,100566,"Investment - Common Fund",100566]
[null,null,null,null,null,null,null,null,100567,"Cash - Barton",100567]
[null,null,null,null,null,null,null,null,100568,"Cash Reclassification",100568]
[null,null,null,null,null,null,null,null,100569,"Cash - WMBR",100569]
[null,null,null,null,null,null,null,null,100570,"Singapore Accounts Payable Cash",100570]
[null,null,null,null,null,null,null,null,100571,"Singapore Cash - BOA - USD",100571]
[null,null,null,null,null,null,null,null,100572,"Singapore Cash - Citibank ACH",100572]
[null,null,null,null,null,null,null,null,100573,"Singapore Cash - Citibank Cash Deposit",100573]
[null,null,null,null,null,null,null,null,100574,"Singapore Cash - Bank of America Fixed Deposit",100574]
[null,null,null,null,null,null,null,null,100575,"Asset conversion for Fixed Asset",100575]
[null,null,null,null,null,null,null,null,100580,"BOA-Government Money Market",100580]
[null,null,null,null,null,null,null,null,100581,"BOA-MIT Euro Concentration",100581]
[null,null,null,null,null,null,null,null,100582,"BOA-MIT SUTD Concentration",100582]
[null,null,null,null,null,null,null,null,100583,"MIT India Trust (Central Bank of India)",100583]
[null,null,null,null,null,null,null,null,100585,"BOA-MIT INCOMING WIRE",100585]
[null,null,null,null,null,null,null,null,100930,"to be reused",100930]
[null,null,null,null,null,null,null,null,101000,"Interfund Receivables (Payable)",101000]
[null,null,null,null,null,null,null,null,101200,"Accounts Receivable - General - Reconciliation",101200]
[null,null,null,null,null,null,null,null,101201," TLO A/R - General - Reconciliation",101201]
[null,null,null,null,null,null,null,null,101202,"A/R - Novartis",101202]
[null,null,null,null,null,null,null,null,101205,"Accounts Receivable - Sponsored - Reconciliation",101205]
[null,null,null,null,null,null,null,null,101206,"A/R - Sponsored - Reconciliation - Downpayment",101206]
[null,null,null,null,null,null,null,null,101210,"SING ForEx - AR Currency Adjustments",101210]
[null,null,null,null,null,null,null,null,101220,"Accounts Receivable - Control Account",101220]
[null,null,null,null,null,null,null,null,101221,"Accounts Receivable - Cash - Clearing",101221]
[null,null,null,null,null,null,null,null,101222,"Accounts Receivable - Consolidation Entries",101222]
[null,null,null,null,null,null,null,null,101225,"A/R Internal Order Settlement Account",101225]
[null,null,null,null,null,null,null,null,101226,"Lyme Loan 270 Albany St Prin Repayment",101226]
[null,null,null,null,null,null,null,null,101227,"Cashiers Distribution Clearing Cash & Checks",101227]
[null,null,null,null,null,null,null,null,101228,"DB Plan Administrative Expenses",101228]
[null,null,null,null,null,null,null,null,101229,"AR - Retiree Welfare Medical Plan",101229]
[null,null,null,null,null,null,null,null,101230,"AR - Barton",101230]
[null,null,null,null,null,null,null,null,101231,"Receivable for EB and Vacation Carryforward",101231]
[null,null,null,null,null,null,null,null,101232,"Advance Payroll",101232]
[null,null,null,null,null,null,null,null,101233,"Receivable - BSSF F&A Carryforward",101233]
[null,null,null,null,null,null,null,null,101234,"Receivable - F&A Carryforward",101234]
[null,null,null,null,null,null,null,null,101235,"General Accounts Receivable Deduction",101235]
[null,null,null,null,null,null,null,null,101236,"AR # EDX DUE TO/FROM RECEIVABLES",101236]
[null,null,null,null,null,null,null,null,101237,"AR # EDX DUE TO/FROM RECEIVABLES",101237]
[null,null,null,null,null,null,null,null,101238,"Accounts Receivable from MGHPCC",101238]
[null,null,null,null,null,null,null,null,101300,"A/R Foreign License",101300]
[null,null,null,null,null,null,null,null,101301,"A/R List Rental Revenue",101301]
[null,null,null,null,null,null,null,null,101302,"A/R Single Copy Sales",101302]
[null,null,null,null,null,null,null,null,101303,"Receivables - Investments Sold",101303]
[null,null,null,null,null,null,null,null,101304,"Receivables - Dividends and Interest",101304]
[null,null,null,null,null,null,null,null,101305,"Receivables John Hancock - GAC",101305]
[null,null,null,null,null,null,null,null,101306,"Receivables - Other",101306]
[null,null,null,null,null,null,null,null,101307,"Unrealized G/L - Investments",101307]
[null,null,null,null,null,null,null,null,101308,"Unrealized G/L - Accounts Receivable",101308]
[null,null,null,null,null,null,null,null,101309,"Unrealized Gain/Loss - Other",101309]
[null,null,null,null,null,null,null,null,101310,"BOA - Pension Payroll",101310]
[null,null,null,null,null,null,null,null,101311,"Tax Receivables",101311]
[null,null,null,null,null,null,null,null,101312,"Claims Receivables",101312]
[null,null,null,null,null,null,null,null,101313,"SSB Securtiies Lending",101313]
[null,null,null,null,null,null,null,null,101314,"Annuities Receivable",101314]
[null,null,null,null,null,null,null,null,101315,"Workers Comp - cash collateral",101315]
[null,null,null,null,null,null,null,null,101316,"Provision of Claims Receivables",101316]
[null,null,null,null,null,null,null,null,101317,"Claims Receivable - Cleared",101317]
[null,null,null,null,null,null,null,null,101318,"Claims Receivable - Forgiven",101318]
[null,null,null,null,null,null,null,null,101319,"Claims-Check Clearing",101319]
[null,null,null,null,null,null,null,null,101320,"Do not use this account.",101320]
[null,null,null,null,null,null,null,null,101501,"Paid Pledges",101501]
[null,null,null,null,null,null,null,null,101502,"Pledges Receivable",101502]
[null,null,null,null,null,null,null,null,101503,"Discount on Pledge Receivable",101503]
[null,null,null,null,null,null,null,null,101504,"Allowance for Uncollectable Pledges",101504]
[null,null,null,null,null,null,null,null,101506,"Pledges Receivable- Settlement Account",101506]
[null,null,null,null,null,null,null,null,101507,"Pledges Receivable Consolidation",101507]
[null,null,null,null,null,null,null,null,101531,"For later use",101531]
[null,null,null,null,null,null,null,null,101600,"Contracts in Progress",101600]
[null,null,null,null,null,null,null,null,101601,"Lincoln CIP",101601]
[null,null,null,null,null,null,null,null,101602,"Contracts in Progress - Consolidation Entries",101602]
[null,null,null,null,null,null,null,null,101700,"Inventory - General",101700]
[null,null,null,null,null,null,null,null,101701,"Endicott House Inventory",101701]
[null,null,null,null,null,null,null,null,101702,"Microreproduction Inventory",101702]
[null,null,null,null,null,null,null,null,101703,"Inventory Settlement",101703]
[null,null,null,null,null,null,null,null,101708,"MITAC Inventory Activities",101708]
[null,null,null,null,null,null,null,null,101712,"Medical Dept Pharmacy Inventory Expense",101712]
[null,null,null,null,null,null,null,null,101714,"Museum Shop",101714]
[null,null,null,null,null,null,null,null,101716,"Microcomputer Center Inventory",101716]
[null,null,null,null,null,null,null,null,101718,"Museum Inventory",101718]
[null,null,null,null,null,null,null,null,101720,"PC Service Inventory",101720]
[null,null,null,null,null,null,null,null,101722,"Graphic Arts - Mailing Service Inventory",101722]
[null,null,null,null,null,null,null,null,101724,"Graphic Arts Miscellaneous Inventory",101724]
[null,null,null,null,null,null,null,null,101726,"Graphic Arts - Offset Inventory",101726]
[null,null,null,null,null,null,null,null,101728,"Taunton Surplus Warehouse",101728]
[null,null,null,null,null,null,null,null,101729,"Lab Supplies - General Inventory",101729]
[null,null,null,null,null,null,null,null,101730,"MIT Press Bound Books",101730]
[null,null,null,null,null,null,null,null,101734,"MIT Press Computer Composition 1",101734]
[null,null,null,null,null,null,null,null,101736,"MIT Press Journals Inventory - WIP",101736]
[null,null,null,null,null,null,null,null,101738,"MIT Press - Journals Computer",101738]
[null,null,null,null,null,null,null,null,101740,"Inventory Asset Account",101740]
[null,null,null,null,null,null,null,null,101742,"MIT Press - Paper Inventory",101742]
[null,null,null,null,null,null,null,null,101744,"MIT Press Folded and Gathered Stock",101744]
[null,null,null,null,null,null,null,null,101745,"Journals Software Development",101745]
[null,null,null,null,null,null,null,null,101746,"MIT Press WIP Inventory",101746]
[null,null,null,null,null,null,null,null,101748,"Cable Inventory",101748]
[null,null,null,null,null,null,null,null,101750,"Building Service Stock",101750]
[null,null,null,null,null,null,null,null,101752,"Stockroom E19",101752]
[null,null,null,null,null,null,null,null,101754,"Carpentry Stock",101754]
[null,null,null,null,null,null,null,null,101756,"Locksmith Stock",101756]
[null,null,null,null,null,null,null,null,101758,"Paint Stock",101758]
[null,null,null,null,null,null,null,null,101760,"Glass and Shade Stock",101760]
[null,null,null,null,null,null,null,null,101766,"Broad Inventory",101766]
[null,null,null,null,null,null,null,null,101799,"Institute Inventories Settlements",101799]
[null,null,null,null,null,null,null,null,101801,"Deferred Charges - Suspense",101801]
[null,null,null,null,null,null,null,null,101802,"Deferred Charges - Clearing Accounts",101802]
[null,null,null,null,null,null,null,null,101804,"Deferred Charges - Other",101804]
[null,null,null,null,null,null,null,null,101805,"Deferred Charges - Allocation",101805]
[null,null,null,null,null,null,null,null,101806,"Deferred Charges - Lab & Facilities",101806]
[null,null,null,null,null,null,null,null,101807,"Barton # Other Assets",101807]
[null,null,null,null,null,null,null,null,101808,"Deferred Charges - Consolidation Entries",101808]
[null,null,null,null,null,null,null,null,101810,"Deferred Pension Expense",101810]
[null,null,null,null,null,null,null,null,101811,"Non Current Retirement Asset",101811]
[null,null,null,null,null,null,null,null,101812,"SING Deferred Expenses - EB Allocation",101812]
[null,null,null,null,null,null,null,null,101815,"Faculty Mortgage",101815]
[null,null,null,null,null,null,null,null,101899,"Deferred Charges Settlement Difference",101899]
[null,null,null,null,null,null,null,null,101900,"Refinancing Agreement Notes",101900]
[null,null,null,null,null,null,null,null,101901,"Refinancing Interest Notes",101901]
[null,null,null,null,null,null,null,null,101902,"Middle Income Loan Fund",101902]
[null,null,null,null,null,null,null,null,101903,"HK Brown - R E Development LN",101903]
[null,null,null,null,null,null,null,null,101904,"Bursars",101904]
[null,null,null,null,null,null,null,null,101905,"A J & F Casaretto Loan Fund",101905]
[null,null,null,null,null,null,null,null,101906,"Deans Loan Fund",101906]
[null,null,null,null,null,null,null,null,101907,"Jurgis J Geguzis Loan Fund",101907]
[null,null,null,null,null,null,null,null,101908,"Graduate Loan Fund",101908]
[null,null,null,null,null,null,null,null,101909,"Hanks Loan Fund",101909]
[null,null,null,null,null,null,null,null,101910,"Guaranteed Loan Program - MIT",101910]
[null,null,null,null,null,null,null,null,101911,"Kerr Foundation",101911]
[null,null,null,null,null,null,null,null,101912,"Clive Lacy Student Loans",101912]
[null,null,null,null,null,null,null,null,101913,"Livanos Loan Fund",101913]
[null,null,null,null,null,null,null,null,101914,"George H May Loan Fund",101914]
[null,null,null,null,null,null,null,null,101915,"NDSL - 5%",101915]
[null,null,null,null,null,null,null,null,101916,"R M Parsons Student Loan Fund",101916]
[null,null,null,null,null,null,null,null,101917,"Proctor & Gamble - Chem Eng Loan",101917]
[null,null,null,null,null,null,null,null,101918,"Tech Co - Maker Loans",101918]
[null,null,null,null,null,null,null,null,101919,"GE Fnd Forgivable Loan Fund",101919]
[null,null,null,null,null,null,null,null,101920,"GE Forgivable Loans - Woman & Minorities",101920]
[null,null,null,null,null,null,null,null,101921,"Second Century Loan Fund",101921]
[null,null,null,null,null,null,null,null,101922,"Technology Loan Fund",101922]
[null,null,null,null,null,null,null,null,101923,"Tech Loan Fund - 2 - L Unsubidized",101923]
[null,null,null,null,null,null,null,null,101924,"Tech Loan Fund - 2 - GL Fed-Guarantee",101924]
[null,null,null,null,null,null,null,null,101925,"Tech Loan Fund - 2 - FL For Stud Sub",101925]
[null,null,null,null,null,null,null,null,101926,"9% GSL Before 10/1/81",101926]
[null,null,null,null,null,null,null,null,101927,"US Steel Loan Receivable",101927]
[null,null,null,null,null,null,null,null,101928,"GSL - Help 8%",101928]
[null,null,null,null,null,null,null,null,101929,"Allowance for Doubtful Loan Accounts",101929]
[null,null,null,null,null,null,null,null,101930,"Student Loan Settlement",101930]
[null,null,null,null,null,null,null,null,101931,"Short Term Cash Advance Clearing",101931]
[null,null,null,null,null,null,null,null,101932,"Cash Account Outside Scholarships",101932]
[null,null,null,null,null,null,null,null,101933,"Outside Hospital Income Clearing",101933]
[null,null,null,null,null,null,null,null,101934,"Parent Loans Notes Receivable",101934]
[null,null,null,null,null,null,null,null,101935,"Health Service Income Clearing",101935]
[null,null,null,null,null,null,null,null,101936,"Cash Payments - GSL",101936]
[null,null,null,null,null,null,null,null,101937,"MIT Stafford Loans",101937]
[null,null,null,null,null,null,null,null,101938,"Direct Loans",101938]
[null,null,null,null,null,null,null,null,101939,"Fast Fund",101939]
[null,null,null,null,null,null,null,null,101940,"Spon Billing Clearing - Bursar",101940]
[null,null,null,null,null,null,null,null,101941,"Student Fees Receivable",101941]
[null,null,null,null,null,null,null,null,101942,"Reserve For Doubtful Accounts",101942]
[null,null,null,null,null,null,null,null,101943,"Student Fees Clearing - Advances",101943]
[null,null,null,null,null,null,null,null,101944,"Student Fees Clearing - P/R Ded",101944]
[null,null,null,null,null,null,null,null,101945,"Student Fees Clearing - Cash",101945]
[null,null,null,null,null,null,null,null,101946,"Student Loans Receivable Clearing",101946]
[null,null,null,null,null,null,null,null,101947,"Student Loan Issues Clearing",101947]
[null,null,null,null,null,null,null,null,101948,"Checks Returned Unpaid - TLF",101948]
[null,null,null,null,null,null,null,null,101949,"Student Receivable Credit Balances",101949]
[null,null,null,null,null,null,null,null,101950,"Woods Hole Student Receivable",101950]
[null,null,null,null,null,null,null,null,101951,"Short Term Loan Repayment - Clearing",101951]
[null,null,null,null,null,null,null,null,101952,"SAR Collection Account",101952]
[null,null,null,null,null,null,null,null,101953,"Educational Loan Fund",101953]
[null,null,null,null,null,null,null,null,101954,"LDAN Clearing II",101954]
[null,null,null,null,null,null,null,null,101955,"Installment Credit Plan - Tuition",101955]
[null,null,null,null,null,null,null,null,101956,"Sponsored Billing - Fall",101956]
[null,null,null,null,null,null,null,null,101957,"Account Receivable - Control Spon Billing",101957]
[null,null,null,null,null,null,null,null,101958,"Sponsored Billing - Summer",101958]
[null,null,null,null,null,null,null,null,101959,"Electronics Education Fdn Loan",101959]
[null,null,null,null,null,null,null,null,101960,"H J & I R Lohbiller Loan Fund",101960]
[null,null,null,null,null,null,null,null,101970,"Created in error",101970]
[null,null,null,null,null,null,null,null,101971,"Created in error",101971]
[null,null,null,null,null,null,null,null,101998,"Student Notes-Consolidation GL",101998]
[null,null,null,null,null,null,null,null,101999,"Student Notes Receivable - Settlement Account",101999]
[null,null,null,null,null,null,null,null,102000,"Investments Pool A",102000]
[null,null,null,null,null,null,null,null,102001,"Investments Pool A - Supplemental",102001]
[null,null,null,null,null,null,null,null,102002,"Investments Pool A - Foreign",102002]
[null,null,null,null,null,null,null,null,102003,"H & L Aldrich Unitrust",102003]
[null,null,null,null,null,null,null,null,102004,"Investments Pool C",102004]
[null,null,null,null,null,null,null,null,102005,"Investments Pool C - Equities",102005]
[null,null,null,null,null,null,null,null,102006,"EH Cumpston Charitable Remainder Unitrust",102006]
[null,null,null,null,null,null,null,null,102007,"Quentin D Groves Unitrust",102007]
[null,null,null,null,null,null,null,null,102008,"Daniel K Ludwig Chair Fund #2",102008]
[null,null,null,null,null,null,null,null,102009,"George P Edmonds Jr Unitrust",102009]
[null,null,null,null,null,null,null,null,102010,"Harold J Muckley Annuity Trust",102010]
[null,null,null,null,null,null,null,null,102011,"Ivan R Cottrell Immunology Research Fund",102011]
[null,null,null,null,null,null,null,null,102012,"Y T Li Scholarship Fund",102012]
[null,null,null,null,null,null,null,null,102013,"George W Clark Unitrust",102013]
[null,null,null,null,null,null,null,null,102014,"Anonymous H U",102014]
[null,null,null,null,null,null,null,null,102015,"Anonymous R S",102015]
[null,null,null,null,null,null,null,null,102016,"Anonymous A Y Unitrust",102016]
[null,null,null,null,null,null,null,null,102017,"Albert L Zesiger (1951) Athletic Center Fund",102017]
[null,null,null,null,null,null,null,null,102018,"H&D Grier Chartable Remainder Unitrust #2",102018]
[null,null,null,null,null,null,null,null,102019,"Anonymous T H Unitrust",102019]
[null,null,null,null,null,null,null,null,102020,"David Austin Professorship",102020]
[null,null,null,null,null,null,null,null,102021,"David M Austin Trust",102021]
[null,null,null,null,null,null,null,null,102022,"Francis H Zenie Fund",102022]
[null,null,null,null,null,null,null,null,102023,"Leonard Bezark Unitrust",102023]
[null,null,null,null,null,null,null,null,102024,"Thomas Creamer Unitrust",102024]
[null,null,null,null,null,null,null,null,102025,"C S Mercer (1939) Unitrust",102025]
[null,null,null,null,null,null,null,null,102026,"John H Wills Unitrust",102026]
[null,null,null,null,null,null,null,null,102027,"Charles H & Ann Spaulding Unitrust",102027]
[null,null,null,null,null,null,null,null,102028,"Skyline Asset Management",102028]
[null,null,null,null,null,null,null,null,102029,"Richard P Dickson Unitrust",102029]
[null,null,null,null,null,null,null,null,102030,"James & Ellen Brayton Charitble Remainder Unitrust",102030]
[null,null,null,null,null,null,null,null,102031,"Ralph B Chapin (1937) Fund",102031]
[null,null,null,null,null,null,null,null,102032,"Metrowest Charitable Remainder Unitrust",102032]
[null,null,null,null,null,null,null,null,102033,"Matthew & Linda Fox Unitrust",102033]
[null,null,null,null,null,null,null,null,102034,"Albert F Clear Unitrust",102034]
[null,null,null,null,null,null,null,null,102035,"Alex W Dreyfus Professorship",102035]
[null,null,null,null,null,null,null,null,102036,"Anonymous HB (NA) Unitrust",102036]
[null,null,null,null,null,null,null,null,102037,"J M Campbell (1925) Unitrust",102037]
[null,null,null,null,null,null,null,null,102038,"Ira G ruckshank Unitrust",102038]
[null,null,null,null,null,null,null,null,102039,"Sameul E & Leila Lunden Unitrust 2",102039]
[null,null,null,null,null,null,null,null,102040,"Roger A Krey (1936) Unitrust",102040]
[null,null,null,null,null,null,null,null,102041,"Harl & Lois Aldrich Unitrust #2",102041]
[null,null,null,null,null,null,null,null,102042,"D Reid Weedon Unitrust",102042]
[null,null,null,null,null,null,null,null,102043,"David G Blanck Jr (1946) Unitrust",102043]
[null,null,null,null,null,null,null,null,102044,"Paul B Ostergaard Unitrust",102044]
[null,null,null,null,null,null,null,null,102045,"Gordon Y Billard",102045]
[null,null,null,null,null,null,null,null,102046,"John B Drisko (1927) Annuity Trust",102046]
[null,null,null,null,null,null,null,null,102047,"John B Drisko (1927) Unitrust",102047]
[null,null,null,null,null,null,null,null,102048,"Paul V Bollerman Unitrust",102048]
[null,null,null,null,null,null,null,null,102049,"Donald C Berkey (1942) Unitrust",102049]
[null,null,null,null,null,null,null,null,102050,"Walter D Binger",102050]
[null,null,null,null,null,null,null,null,102051,"Robert W Adenbaum Unitrust",102051]
[null,null,null,null,null,null,null,null,102052,"Anonymous A W Unitrust",102052]
[null,null,null,null,null,null,null,null,102053,"William R Stern (1940) Unitrust",102053]
[null,null,null,null,null,null,null,null,102054,"John C (1947) E Nancy Martin Unitrust",102054]
[null,null,null,null,null,null,null,null,102055,"William H Maxwell Unitrust",102055]
[null,null,null,null,null,null,null,null,102056,"SP (1968) & PR Marks Charitb Remainder Unitrust",102056]
[null,null,null,null,null,null,null,null,102057,"William A Wynat (1944) Charitable Remaind Unitrust",102057]
[null,null,null,null,null,null,null,null,102058,"Class of 1952 Special Purpose Fund",102058]
[null,null,null,null,null,null,null,null,102059,"Claude W Brenner Unitrust",102059]
[null,null,null,null,null,null,null,null,102060,"Future Capital Projects",102060]
[null,null,null,null,null,null,null,null,102061,"William A M Aburden Professorship",102061]
[null,null,null,null,null,null,null,null,102062,"Louis Berger Fellowship Fund",102062]
[null,null,null,null,null,null,null,null,102063,"Joseph Shrier Unitrust",102063]
[null,null,null,null,null,null,null,null,102064,"Arthur W Vogeley Unitrust",102064]
[null,null,null,null,null,null,null,null,102065,"Charles L Wellard Unitrust",102065]
[null,null,null,null,null,null,null,null,102066,"L C Biedenharn JR 1944 Unitrust",102066]
[null,null,null,null,null,null,null,null,102067,"Pool A Strong/Cornelivson Capital Management",102067]
[null,null,null,null,null,null,null,null,102068,"Pool A - Amerindo Investment Advisors",102068]
[null,null,null,null,null,null,null,null,102069,"Pool A Neuberger and Berman",102069]
[null,null,null,null,null,null,null,null,102070,"Langdon S Flowers Unitrust",102070]
[null,null,null,null,null,null,null,null,102071,"Ned C (1949) & Jane C Bemis Rice Unitrust",102071]
[null,null,null,null,null,null,null,null,171016,"Accum Deprec Equipment",171016]
[null,null,null,null,null,null,null,null,171017,"Accumulated Depreciation Lab Equipment",171017]
[null,null,null,null,null,null,null,null,171018,"Accumulated Depreciation Capitalized Software",171018]
[null,null,null,null,null,null,null,null,171019,"Accumulated Depreciation Office Equipment",171019]
[null,null,null,null,null,null,null,null,171020,"Computer Equip greater than $4k",171020]
[null,null,null,null,null,null,null,null,171021,"Accumulated Depreciation Computer > $4k",171021]
[null,null,null,null,null,null,null,null,180000,"EDx Computer Equipment",180000]
[null,null,null,null,null,null,null,null,180010,"EDx Allowance for Depreciation - Computer",180010]
[null,null,null,null,null,null,null,null,180011,"Allowance for Depreciation - Leasehold Improvement",180011]
[null,null,null,null,null,null,null,null,180012,"EDx Allowance for Depreciation - Other",180012]
[null,null,null,null,null,null,null,null,180200,"EDx Long Term Asset",180200]
[null,null,null,null,null,null,null,null,181000,"EDx Leasehold Improv",181000]
[null,null,null,null,null,null,null,null,182000,"EDx Equipment Other",182000]
[null,null,null,null,null,null,null,null,200000,"EDx Account Payable",200000]
[null,null,null,null,null,null,null,null,200005,"Reconciliation Account for A/P Downpayment",200005]
[null,null,null,null,null,null,null,null,200010,"Reconciliation Account For A/P Vendors",200010]
[null,null,null,null,null,null,null,null,200015,"Cash Discount A/P Clearing - Net",200015]
[null,null,null,null,null,null,null,null,200016,"Accounts Payable - Edx Due to/from",200016]
[null,null,null,null,null,null,null,null,200019,"GE MC Purchasing Card",200019]
[null,null,null,null,null,null,null,null,200020,"Small Differences From A/P Invoice Posting",200020]
[null,null,null,null,null,null,null,null,200021,"PO Invoice Clearing",200021]
[null,null,null,null,null,null,null,null,200022,"BOA Visa Purchasing Card",200022]
[null,null,null,null,null,null,null,null,200023,"EPayables Clearing Account",200023]
[null,null,null,null,null,null,null,null,200024,"Ghost Card Liability Clearing",200024]
[null,null,null,null,null,null,null,null,200025,"Blue Cross Clearing Account",200025]
[null,null,null,null,null,null,null,null,200026,"Accounts Payable - General",200026]
[null,null,null,null,null,null,null,null,200027,"Northgate Management",200027]
[null,null,null,null,null,null,null,null,200028,"AMEX Corp Card",200028]
[null,null,null,null,null,null,null,null,200029,"Liability For Student Loans",200029]
[null,null,null,null,null,null,null,null,200030,"VISA Purchasing Card",200030]
[null,null,null,null,null,null,null,null,200031,"Accounts Payable - Special Year End Accrual",200031]
[null,null,null,null,null,null,null,null,200032,"Accounts Paybable - Securities",200032]
[null,null,null,null,null,null,null,null,200033,"MIT Press Royalties & Permissions Payable",200033]
[null,null,null,null,null,null,null,null,200034,"MIT Press Accounts Payable Special",200034]
[null,null,null,null,null,null,null,null,200035,"Canadian GST",200035]
[null,null,null,null,null,null,null,null,200036,"Accrued Wages",200036]
[null,null,null,null,null,null,null,null,200037,"Accounts Payable - Early Retirement",200037]
[null,null,null,null,null,null,null,null,200038,"AP-F&A Carryforward",200038]
[null,null,null,null,null,null,null,null,200039,"Accrued Interest Expense",200039]
[null,null,null,null,null,null,null,null,200040,"Input Tax Clearing on Downpayments",200040]
[null,null,null,null,null,null,null,null,200041,"Output Tax Clearing on Downpayments",200041]
[null,null,null,null,null,null,null,null,200042,"A/P & Accrual Settlement",200042]
[null,null,null,null,null,null,null,null,200043,"Accrued Utilities Expenses",200043]
[null,null,null,null,null,null,null,null,200044,"Liability for Workmans Compensation",200044]
[null,null,null,null,null,null,null,null,200045,"EB Carryforward",200045]
[null,null,null,null,null,null,null,null,200046,"A/P & Accruals - Barton",200046]
[null,null,null,null,null,null,null,null,200047,"Payable to Whitehead",200047]
[null,null,null,null,null,null,null,null,200048,"Canadian GST Payments",200048]
[null,null,null,null,null,null,null,null,200049,"A/P - Consolidation Entries",200049]
[null,null,null,null,null,null,null,null,200050,"Withholding Tax",200050]
[null,null,null,null,null,null,null,null,200051,"Prescription Fill Withholding",200051]
[null,null,null,null,null,null,null,null,200052,"Accrued Medical Claims Reserve - Traditional",200052]
[null,null,null,null,null,null,null,null,200053,"Accrued Medical Claims Reserve - Flexible",200053]
[null,null,null,null,null,null,null,null,200054,"Student Extended Plan",200054]
[null,null,null,null,null,null,null,null,200055,"AP-BISSF F&A Carryforward",200055]
[null,null,null,null,null,null,null,null,200056,"Exspouse Insurance",200056]
[null,null,null,null,null,null,null,null,200057,"Hypothetical Tax",200057]
[null,null,null,null,null,null,null,null,200058,"Massachusetts Performer Withholding Tax",200058]
[null,null,null,null,null,null,null,null,200059,"A/P & Accrual Settlement",200059]
[null,null,null,null,null,null,null,null,200060,"A/P - Other Liabilities",200060]
[null,null,null,null,null,null,null,null,200061,"A/P Federal Government -- Return Sponsor funds",200061]
[null,null,null,null,null,null,null,null,200062,"Accrued Interest Due to Airforce",200062]
[null,null,null,null,null,null,null,null,200063,"Withholding Tax (US Based)",200063]
[null,null,null,null,null,null,null,null,200064,"Withholding Tax (Sing Based)",200064]
[null,null,null,null,null,null,null,null,200065,"Intercompany Payable to MIT",200065]
[null,null,null,null,null,null,null,null,200070,"AP - MIT due to/from",200070]
[null,null,null,null,null,null,null,null,200080,"A/P - Goods Receipt / Invoice Receipt Clearing",200080]
[null,null,null,null,null,null,null,null,200090,"Accounts Payable - General II",200090]
[null,null,null,null,null,null,null,null,200100,"Payable for Investment Purchases",200100]
[null,null,null,null,null,null,null,null,200101,"Payable for Cash Overdraft",200101]
[null,null,null,null,null,null,null,null,200102,"Payable to Plan Members",200102]
[null,null,null,null,null,null,null,null,200103,"Payable for Administrative Expenses",200103]
[null,null,null,null,null,null,null,null,200110,"Payable for Other",200110]
[null,null,null,null,null,null,null,null,200111,"A/P - Securities Lending",200111]
[null,null,null,null,null,null,null,null,200112,"A/P - Minority Interest in MIT Invested Assets",200112]
[null,null,null,null,null,null,null,null,200200,"ForEx - AP Currency Adjustments",200200]
[null,null,null,null,null,null,null,null,200900,"Dorm Rental Summer Sessions Program",200900]
[null,null,null,null,null,null,null,null,200901,"Westgate MSH Rents In Advance",200901]
[null,null,null,null,null,null,null,null,200902,"Summer Term Tuition In Advance",200902]
[null,null,null,null,null,null,null,null,200903,"Tuition Income - Special Summer Courses",200903]
[null,null,null,null,null,null,null,null,200904,"Automatic Circultion System",200904]
[null,null,null,null,null,null,null,null,200905,"Dorm Rentals - Year End CLearing",200905]
[null,null,null,null,null,null,null,null,200906,"Other Deferred Tuition net of Financial Aid",200906]
[null,null,null,null,null,null,null,null,200999,"Tax Deferred W/H -New Annuities - 457B",200999]
[null,null,null,null,null,null,null,null,201000,"BC/BS Deductions - Staff",201000]
[null,null,null,null,null,null,null,null,201001,"BC/BS Deductions  - Non-Staff",201001]
[null,null,null,null,null,null,null,null,201002,"BC/BS Option 2 - Staff Deductions",201002]
[null,null,null,null,null,null,null,null,201003,"BC/BS Option 2 - Non-Staff Deductions",201003]
[null,null,null,null,null,null,null,null,201004,"Tax Deferred Withholding - VanGuard",201004]
[null,null,null,null,null,null,null,null,201005,"Group Life Insurance Deductions-Old Life",201005]
[null,null,null,null,null,null,null,null,201006,"Tax Deferred Withholding - Prudential",201006]
[null,null,null,null,null,null,null,null,201007,"Tax Deferred Withholding - TIAA - CREF",201007]
[null,null,null,null,null,null,null,null,201008,"Tax Deferred Witholding-Fidelity",201008]
[null,null,null,null,null,null,null,null,201009,"Employees Union Dues",201009]
[null,null,null,null,null,null,null,null,201010,"Tax Deferred W/H-TIAA (Doctors)",201010]
[null,null,null,null,null,null,null,null,201011,"Tax Deferred Withholding - Non Staff",201011]
[null,null,null,null,null,null,null,null,201012,"FICA Tax Withholding - Cambridge",201012]
[null,null,null,null,null,null,null,null,201013,"FICA Tax Withholding - Lincoln",201013]
[null,null,null,null,null,null,null,null,201014,"State Withholding-Massachusetts-Cambridge",201014]
[null,null,null,null,null,null,null,null,201015,"State Withholding-Massachusetts-Lincoln",201015]
[null,null,null,null,null,null,null,null,201016,"State Tax Withholding - California",201016]
[null,null,null,null,null,null,null,null,201017,"State Tax Withholding - Hawaii",201017]
[null,null,null,null,null,null,null,null,201018,"Kwajalein Tax",201018]
[null,null,null,null,null,null,null,null,201019,"Tuition Assistance Plan Tax",201019]
[null,null,null,null,null,null,null,null,201020,"State Tax Withholding - Pennsylvania",201020]
[null,null,null,null,null,null,null,null,201021,"StateTax Withholding - New Mexico",201021]
[null,null,null,null,null,null,null,null,201022,"State Tax Withholding - North Carolina",201022]
[null,null,null,null,null,null,null,null,201023,"State Tax Withholding - Mississippi",201023]
[null,null,null,null,null,null,null,null,201024,"State Tax Withholding - Virginia",201024]
[null,null,null,null,null,null,null,null,201025,"State Tax Withholding - Nevada",201025]
[null,null,null,null,null,null,null,null,201026,"State Tax Withholding New York",201026]
[null,null,null,null,null,null,null,null,201027,"State Tax Withholding - Maryland",201027]
[null,null,null,null,null,null,null,null,201028,"StateTax Withholding - District of Columbia",201028]
[null,null,null,null,null,null,null,null,201029,"City Tax Withholding - New York",201029]
[null,null,null,null,null,null,null,null,201030,"Chapter 13 Payroll Deductions",201030]
[null,null,null,null,null,null,null,null,201031,"Tax Overpayments",201031]
[null,null,null,null,null,null,null,null,201032,"Fed Income Tax Withheld - Cambridge",201032]
[null,null,null,null,null,null,null,null,201033,"Fed'l Tax Account Non-Res Aliens Non-Fel",201033]
[null,null,null,null,null,null,null,null,201034,"Fed Income Tax Withheld - Lincoln",201034]
[null,null,null,null,null,null,null,null,201035,"Fed'l Tax Non-Res Aliens Fellowship",201035]
[null,null,null,null,null,null,null,null,201036,"MIT Retirement Plan Employee Deductions",201036]
[null,null,null,null,null,null,null,null,201037,"Unemployment Tax Liability",201037]
[null,null,null,null,null,null,null,null,201038,"State Tax Withholding - Colorado",201038]
[null,null,null,null,null,null,null,null,201039,"State Tax Withholding Ohio",201039]
[null,null,null,null,null,null,null,null,201040,"State Tax Withholding Alabama",201040]
[null,null,null,null,null,null,null,null,201041,"Tech Cash Deductions",201041]
[null,null,null,null,null,null,null,null,201042,"State Tax Withholding Illinois",201042]
[null,null,null,null,null,null,null,null,201043,"Fed#l Tax W/H of LTD",201043]
[null,null,null,null,null,null,null,null,201051,"Singapore GST Liability",201051]
[null,null,null,null,null,null,null,null,201100,"Unidentified Cash Rec-Eff 2/21/72",201100]
[null,null,null,null,null,null,null,null,201101,"MIT Press - Unidentified Cash",201101]
[null,null,null,null,null,null,null,null,201102,"Reserve Account For Student Insurance Prog",201102]
[null,null,null,null,null,null,null,null,201103,"Student Health Insurance",201103]
[null,null,null,null,null,null,null,null,201104,"Other Deferred Income",201104]
[null,null,null,null,null,null,null,null,201105,"Liabilities To Life Income Funds",201105]
[null,null,null,null,null,null,null,null,201106,"LIF LIability-Consolidation",201106]
[null,null,null,null,null,null,null,null,201110,"Unidentified Wire Transfers",201110]
[null,null,null,null,null,null,null,null,201111,"Perkins (NDSL) Stud Loan - Fed Gvt Contrib",201111]
[null,null,null,null,null,null,null,null,201112,"Perkins (NDSL) Student Loans Admin Exp",201112]
[null,null,null,null,null,null,null,null,201113,"US Office of Education - Bad Loans",201113]
[null,null,null,null,null,null,null,null,201114,"Perkins (NDSL) Interest Income",201114]
[null,null,null,null,null,null,null,null,201115,"National Direct - Mass Contribution",201115]
[null,null,null,null,null,null,null,null,201116,"Liability Account For Agency Funds",201116]
[null,null,null,null,null,null,null,null,201117,"Liabilities For Unexpended Commitment",201117]
[null,null,null,null,null,null,null,null,201118,"Liabilities For Overhead Fluctuation",201118]
[null,null,null,null,null,null,null,null,201119,"Liabilities For Staff Self Insurance",201119]
[null,null,null,null,null,null,null,null,201120,"Collection & Disbursement Of Mass Sales",201120]
[null,null,null,null,null,null,null,null,201121,"Westgate MSH - Accrued Liabilities",201121]
[null,null,null,null,null,null,null,null,201122,"MacGregor House Accrued Liabilities",201122]
[null,null,null,null,null,null,null,null,201123,"MSH Eastgate Accrued Liabilities",201123]
[null,null,null,null,null,null,null,null,201124,"Unidentified Wire Transfer & Credit Card Receipts",201124]
[null,null,null,null,null,null,null,null,201125,"Unemployment Reserve",201125]
[null,null,null,null,null,null,null,null,201126,"California State Sales Tax",201126]
[null,null,null,null,null,null,null,null,201127,"Liability Starr Foundation Agency Fund",201127]
[null,null,null,null,null,null,null,null,201200,"Liabilities - Deposits/Witholdings",201200]
[null,null,null,null,null,null,null,null,201201,"Liabilities - Deferred Revenues",201201]
[null,null,null,null,null,null,null,null,201202,"Liabilities - Other Credits",201202]
[null,null,null,null,null,null,null,null,201203,"Deferred Revenue & Other Credit - Consolidation",201203]
[null,null,null,null,null,null,null,null,201204,"Liability for Asset Retirement Obligation-Fin 47",201204]
[null,null,null,null,null,null,null,null,201205,"ARO Liability-Bates (Fin 47, FAS 143)",201205]
[null,null,null,null,null,null,null,null,201206,"Accured Benefits Liability",201206]
[null,null,null,null,null,null,null,null,201207,"Liabilities - EB (SING only)",201207]
[null,null,null,null,null,null,null,null,201208,"Other credits-payroll related",201208]
[null,null,null,null,null,null,null,null,201210,"WMBR - Other Liabilities",201210]
[null,null,null,null,null,null,null,null,201306,"Fed Income Tax Withheld - Lincoln",201306]
[null,null,null,null,null,null,null,null,202000,"Advances from Sponsors",202000]
[null,null,null,null,null,null,null,null,202001,"Advances from Sponsors - Departmental",202001]
[null,null,null,null,null,null,null,null,202002,"Advances From Sponsors - Lincoln Lab",202002]
[null,null,null,null,null,null,null,null,202003,"Advance From Sponsor - SMART",202003]
[null,null,null,null,null,null,null,null,202004,"Advances - Campus Settlement",202004]
[null,null,null,null,null,null,null,null,202005,"Advances - Air Force",202005]
[null,null,null,null,null,null,null,null,202006,"Lincoln Advances",202006]
[null,null,null,null,null,null,null,null,202007,"Advances - Campus Manual",202007]
[null,null,null,null,null,null,null,null,202300,"Deferred Revenue - Subscription Liability",202300]
[null,null,null,null,null,null,null,null,202301,"Deferred Revenue - Conference/Events-TECR",202301]
[null,null,null,null,null,null,null,null,202302,"Deferred Revenue - Alumni Subscriptions",202302]
[null,null,null,null,null,null,null,null,202303,"Deferred Revenue - Conference and Events",202303]
[null,null,null,null,null,null,null,null,203100,"Endownment For Educational Plant",203100]
[null,null,null,null,null,null,null,null,203101,"Macgregor House Liability",203101]
[null,null,null,null,null,null,null,null,203102,"Eastgate Liability",203102]
[null,null,null,null,null,null,null,null,203103,"Westgate Liability",203103]
[null,null,null,null,null,null,null,null,203104,"MHEFA Series A",203104]
[null,null,null,null,null,null,null,null,203105,"MHEFA Series B",203105]
[null,null,null,null,null,null,null,null,203106,"Chemical Engineering Advance - Sloan",203106]
[null,null,null,null,null,null,null,null,203107,"MHEFA Series C",203107]
[null,null,null,null,null,null,null,null,203108,"Burton Connor",203108]
[null,null,null,null,null,null,null,null,203109,"MHEFA Series E",203109]
[null,null,null,null,null,null,null,null,203110,"Misc Unfunded Plant",203110]
[null,null,null,null,null,null,null,null,203111,"HEFA - G Liability",203111]
[null,null,null,null,null,null,null,null,203112,"MHEFA Series H",203112]
[null,null,null,null,null,null,null,null,203113,"MHEFA Series H Discount",203113]
[null,null,null,null,null,null,null,null,203114,"351-355 Mass Ave Liability",203114]
[null,null,null,null,null,null,null,null,203115,"HEFA D - Liability",203115]
[null,null,null,null,null,null,null,null,203116,"Random Hall Liability",203116]
[null,null,null,null,null,null,null,null,203117,"Sally Mae - Biology Building",203117]
[null,null,null,null,null,null,null,null,203118,"MTN Series A Cogeneration Debentures",203118]
[null,null,null,null,null,null,null,null,203119,"MTN Series A Cog Debentures Discount",203119]
[null,null,null,null,null,null,null,null,203120,"MTN Series A Century Notes - $50M",203120]
[null,null,null,null,null,null,null,null,203121,"MTN Series A Century Debentures  Discount",203121]
[null,null,null,null,null,null,null,null,203122,"MTN Series A Century Notes - $25M",203122]
[null,null,null,null,null,null,null,null,203123,"MHEFA Series I",203123]
[null,null,null,null,null,null,null,null,203124,"MHEFA Series I Discount",203124]
[null,null,null,null,null,null,null,null,203125,"Notes Payable, Fleet Bank - California Products",203125]
[null,null,null,null,null,null,null,null,203126,"MHEFA Series J-1",203126]
[null,null,null,null,null,null,null,null,203127,"MHEFA Series J-2",203127]
[null,null,null,null,null,null,null,null,203128,"MHEFA Series K",203128]
[null,null,null,null,null,null,null,null,203129,"MHEFA Series K Premium",203129]
[null,null,null,null,null,null,null,null,203130,"MHEFA Series L",203130]
[null,null,null,null,null,null,null,null,203131,"MHEFA Series L Premium",203131]
[null,null,null,null,null,null,null,null,203132,"MHEFA Series M",203132]
[null,null,null,null,null,null,null,null,203133,"MHEFA Series M Premium",203133]
[null,null,null,null,null,null,null,null,203134,"Fleet Student Loan",203134]
[null,null,null,null,null,null,null,null,203135,"Technology Square Loan",203135]
[null,null,null,null,null,null,null,null,203136,"MHEFA Series N",203136]
[null,null,null,null,null,null,null,null,203137,"MHEFA Series N Premium",203137]
[null,null,null,null,null,null,null,null,203138,"MHEFA Series O Principal",203138]
[null,null,null,null,null,null,null,null,203139,"MHEFA Series O Premium/Discount",203139]
[null,null,null,null,null,null,null,null,203140,"Taxable Series B Principal",203140]
[null,null,null,null,null,null,null,null,203141,"Taxable Series B Discount",203141]
[null,null,null,null,null,null,null,null,203200,"Cantabridgia Properties",203200]
[null,null,null,null,null,null,null,null,203201,"G Raymond",203201]
[null,null,null,null,null,null,null,null,203202,"Mortgage Payable",203202]
[null,null,null,null,null,null,null,null,203203,"Co-Generation Facility SLMA Loan",203203]
[null,null,null,null,null,null,null,null,203205,"SLMA Equip Program FY90",203205]
[null,null,null,null,null,null,null,null,203206,"SLMA Equip Program FY91",203206]
[null,null,null,null,null,null,null,null,203207,"SLMA Equip Program FY92",203207]
[null,null,null,null,null,null,null,null,203208,"HEFA F",203208]
[null,null,null,null,null,null,null,null,203209,"SLMA 5ESS IBM Computer",203209]
[null,null,null,null,null,null,null,null,203210,"SLMA Equip Program FY93",203210]
[null,null,null,null,null,null,null,null,203211,"SLMA Equip Program FY94",203211]
[null,null,null,null,null,null,null,null,203212,"SLMA Equip Program FY95",203212]
[null,null,null,null,null,null,null,null,203213,"NDSL - Matching Funds",203213]
[null,null,null,null,null,null,null,null,203214,"Sallie Mae Loan",203214]
[null,null,null,null,null,null,null,null,203215,"Nat'l Shaw Bank - Revolving Loan",203215]
[null,null,null,null,null,null,null,null,203216,"Fleet Bank EQP Prog FY96",203216]
[null,null,null,null,null,null,null,null,203217,"Fleet Bank Equipment Program",203217]
[null,null,null,null,null,null,null,null,203218,"Fleet Loan 270 Albany Street",203218]
[null,null,null,null,null,null,null,null,203219,"Massbank Loan",203219]
[null,null,null,null,null,null,null,null,203220,"Bank of New York",203220]
[null,null,null,null,null,null,null,null,203221,"Broad Capital Lease",203221]
[null,null,null,null,null,null,null,null,203222,"Bank of America Bridge Loan",203222]
[null,null,null,null,null,null,null,null,203223,"Bank of America Loan Expansion Real Estate Pool C",203223]
[null,null,null,null,null,null,null,null,203300,"Short-Term Debt Consolidation",203300]
[null,null,null,null,null,null,null,null,203301,"Health  Insurance Deduction",203301]
[null,null,null,null,null,null,null,null,203302,"Credit Union Deductions",203302]
[null,null,null,null,null,null,null,null,203303,"Net Payroll",203303]
[null,null,null,null,null,null,null,null,203304,"Life Insurance & Other Deductions",203304]
[null,null,null,null,null,null,null,null,203305,"Due to MIT",203305]
[null,null,null,null,null,null,null,null,203306,"Flexible Reimbursement Account Plan",203306]
[null,null,null,null,null,null,null,null,203307,"MIT Health Plan Deduction",203307]
[null,null,null,null,null,null,null,null,203308,"Cobra Payroll",203308]
[null,null,null,null,null,null,null,null,203309,"RWBT Payable",203309]
[null,null,null,null,null,null,null,null,203310,"Garnishment Payroll",203310]
[null,null,null,null,null,null,null,null,203311,"Liability Other - Payroll",203311]
[null,null,null,null,null,null,null,null,203312,"RDBP Payable to MIT - 401h",203312]
[null,null,null,null,null,null,null,null,203320,"Amounts related to obligation of 401h account",203320]
[null,null,null,null,null,null,null,null,210000,"EDx Accrued Liab - Vacation",210000]
[null,null,null,null,null,null,null,null,211000,"EDx Accured Liability - Rent",211000]
[null,null,null,null,null,null,null,null,212000,"EDx Accured Liability - Other",212000]
[null,null,null,null,null,null,null,null,240000,"EDx Withholdings, Deposits & Other Credits",240000]
[null,null,null,null,null,null,null,null,250000,"Edx Advance From Sponsor",250000]
[null,null,null,null,null,null,null,null,260000,"EDx Deferred Revenue",260000]
[null,null,null,null,null,null,null,null,270000,"EDx Notes Payable",270000]
[null,null,null,null,null,null,null,null,300000,"Unrestricted Net Assets - Expendable",300000]
[null,null,null,null,null,null,null,null,300001,"Unrestricted Net Assets Functioning As Endownment",300001]
[null,null,null,null,null,null,null,null,301000,"Temporarily Restricted Net Assets",301000]
[null,null,null,null,null,null,null,null,302000,"Permanently Restricted Net Assets",302000]
[null,null,null,null,null,null,null,null,310000,"EDx Equity",310000]
[null,null,null,null,null,null,null,null,400000,"Summary Posting for Systems",400000]
[null,null,null,null,null,null,null,null,400001,"Anticipated Total",400001]
[null,null,null,null,null,null,null,null,400005,"Summer Faculty-On",400005]
[null,null,null,null,null,null,null,null,400006,"Summer Faculty-On - Reduced EB",400006]
[null,null,null,null,null,null,null,null,400025,"Faculty Salaries Tenured-On",400025]
[null,null,null,null,null,null,null,null,400026,"Faculty Salaries Tenured-On-Reduced EB",400026]
[null,null,null,null,null,null,null,null,400040,"Faculty Salaries Non-Tenured-On",400040]
[null,null,null,null,null,null,null,null,400041,"Faculty Salaries Non-Tenured-On-Reduced EB",400041]
[null,null,null,null,null,null,null,null,400050,"Summer Other Academic-On",400050]
[null,null,null,null,null,null,null,null,400051,"Summer Other Academic-On-Reduced EB",400051]
[null,null,null,null,null,null,null,null,400065,"Summer Faculty Special-On",400065]
[null,null,null,null,null,null,null,null,400070,"Summer Faculty-Off",400070]
[null,null,null,null,null,null,null,null,400071,"Summer Faculty-Off-Reduced EB",400071]
[null,null,null,null,null,null,null,null,400090,"Faculty Salaries Tenured-Off",400090]
[null,null,null,null,null,null,null,null,400091,"Faculty Salaries Tenured-Off-Reduced EB",400091]
[null,null,null,null,null,null,null,null,400105,"Faculty Salaries Non-Tenured-Off",400105]
[null,null,null,null,null,null,null,null,400106,"Faculty Salaries Non-Tenured-Off-Reduced EB",400106]
[null,null,null,null,null,null,null,null,400107,"Spec Prog Comp Teaching - On",400107]
[null,null,null,null,null,null,null,null,400108,"Spec Prog Dir Fee Comp - On",400108]
[null,null,null,null,null,null,null,null,400109,"Special Programs Compensation-On",400109]
[null,null,null,null,null,null,null,null,400110,"Special Programs Compensation-On-Reduced EB",400110]
[null,null,null,null,null,null,null,null,400111,"Spec Prog Curriculum Comp - On",400111]
[null,null,null,null,null,null,null,null,400112,"Spec Prog Design & Dev Comp - On",400112]
[null,null,null,null,null,null,null,null,400113,"Spec Prog Coaching Comp - On",400113]
[null,null,null,null,null,null,null,null,400114,"Spec Prog Inst. Builiding Comp - On",400114]
[null,null,null,null,null,null,null,null,400115,"Summer Other Academic-Off",400115]
[null,null,null,null,null,null,null,null,400116,"Summer Other Academic-Off-Reduced EB",400116]
[null,null,null,null,null,null,null,null,400117,"Spec Prog IFF Hosting Comp - On",400117]
[null,null,null,null,null,null,null,null,400118,"Spec Prog Siting In - On",400118]
[null,null,null,null,null,null,null,null,400119,"Spec Prog Project Mentor - On",400119]
[null,null,null,null,null,null,null,null,400120,"Spec Prog Report Out - On",400120]
[null,null,null,null,null,null,null,null,400121,"Spec Prog Walk-Through - On",400121]
[null,null,null,null,null,null,null,null,400122,"Spec Prog Misc Comp - On",400122]
[null,null,null,null,null,null,null,null,400135,"Faculty Emeriti-On",400135]
[null,null,null,null,null,null,null,null,400136,"Faculty Retired Non-Tenured-On",400136]
[null,null,null,null,null,null,null,null,400137,"Faculty Retired Non-Tenured-Off",400137]
[null,null,null,null,null,null,null,null,400140,"Other Academic Staff-On",400140]
[null,null,null,null,null,null,null,null,400141,"Other Academic Staff-On-Reduced EB",400141]
[null,null,null,null,null,null,null,null,400142,"Other Academic Staff-Professor-On",400142]
[null,null,null,null,null,null,null,null,400143,"Other Academic Staff-Professor-On-Reduced EB",400143]
[null,null,null,null,null,null,null,null,400145,"*NSF Salaries-On",400145]
[null,null,null,null,null,null,null,null,400150,"Summer Other Academic Special-On",400150]
[null,null,null,null,null,null,null,null,400155,"Other Academic Staff-Off",400155]
[null,null,null,null,null,null,null,null,400156,"Other Academic Staff-Off-Reduced EB",400156]
[null,null,null,null,null,null,null,null,400157,"Other Academic-Professor-Off",400157]
[null,null,null,null,null,null,null,null,400158,"Other Academic-Professor-Off-Reduced EB",400158]
[null,null,null,null,null,null,null,null,400160,"*NSF Salaries-Off",400160]
[null,null,null,null,null,null,null,null,400180,"Other Academic (with Vacation Accrual) - On",400180]
[null,null,null,null,null,null,null,null,400181,"Other Academic-On-RedEB",400181]
[null,null,null,null,null,null,null,null,400185,"Other Academic (with Vacation Accrual) - Off",400185]
[null,null,null,null,null,null,null,null,400186,"Other Academic-Off-RedEB",400186]
[null,null,null,null,null,null,null,null,400250,"Administrative Staff-On",400250]
[null,null,null,null,null,null,null,null,400251,"Administrative Staff-On-Reduced EB",400251]
[null,null,null,null,null,null,null,null,400252,"edX Administrative Staff",400252]
[null,null,null,null,null,null,null,null,400253,"edX Marketing Staff",400253]
[null,null,null,null,null,null,null,null,400254,"edx Engineering Staff",400254]
[null,null,null,null,null,null,null,null,400255,"Adminstrative Staff-Off",400255]
[null,null,null,null,null,null,null,null,400256,"Admin Salaries No EB-On-not MTDC",400256]
[null,null,null,null,null,null,null,null,400257,"Adminstrative Staff-Off-Reduced EB",400257]
[null,null,null,null,null,null,null,null,400258,"edx Educational Services Staff",400258]
[null,null,null,null,null,null,null,null,400259,"edX Support Staff - On",400259]
[null,null,null,null,null,null,null,null,400260,"edX Partnership Staff",400260]
[null,null,null,null,null,null,null,null,400261,"edX Sales Staff",400261]
[null,null,null,null,null,null,null,null,400275,"*Staff Doctors-Off",400275]
[null,null,null,null,null,null,null,null,400280,"Physicians - On",400280]
[null,null,null,null,null,null,null,null,400281,"Physicians - On - Reduced EB",400281]
[null,null,null,null,null,null,null,null,400282,"Medical Other-On",400282]
[null,null,null,null,null,null,null,null,400283,"Medical Other-On-Reduced EB",400283]
[null,null,null,null,null,null,null,null,400285,"Special Clinic Doctors-On",400285]
[null,null,null,null,null,null,null,null,400290,"*Clinic Doctors-On",400290]
[null,null,null,null,null,null,null,null,400295,"*Physical Exam Doctors-On",400295]
[null,null,null,null,null,null,null,null,400300,"Senior Research Staff-On",400300]
[null,null,null,null,null,null,null,null,400301,"Senior Research Staff no vacation accrual-On",400301]
[null,null,null,null,null,null,null,null,400302,"Senior Research Staff Summer Salary-On",400302]
[null,null,null,null,null,null,null,null,400303,"Senior Research Staff-On-Reduced EB",400303]
[null,null,null,null,null,null,null,null,400304,"Senior Research Staff no vacation accrual-On-RedEB",400304]
[null,null,null,null,null,null,null,null,400305,"Senior Research Staff Summer Salary-On-RedEB",400305]
[null,null,null,null,null,null,null,null,400310,"Senior Research Staff-Off",400310]
[null,null,null,null,null,null,null,null,400311,"Senior Research Staff no vacation accrual-Off",400311]
[null,null,null,null,null,null,null,null,400312,"Senior Research Staff Summer-Off",400312]
[null,null,null,null,null,null,null,null,400313,"Senior Research Staff-Off-Reduced EB",400313]
[null,null,null,null,null,null,null,null,400314,"Sr Research Staff no vacation accrual-Off-RedEB",400314]
[null,null,null,null,null,null,null,null,400315,"Non-student Fellows - not MTDC",400315]
[null,null,null,null,null,null,null,null,400316,"Senior Research Staff Summer-Off-RedEB",400316]
[null,null,null,null,null,null,null,null,400350,"Research Staff-On",400350]
[null,null,null,null,null,null,null,null,400351,"Research Staff-On-Reduced EB",400351]
[null,null,null,null,null,null,null,null,400355,"Research Staff-Off",400355]
[null,null,null,null,null,null,null,null,400356,"Research Staff-Off-Reduced EB",400356]
[null,null,null,null,null,null,null,null,400360,"Resident Engineer Staff-On",400360]
[null,null,null,null,null,null,null,null,400365,"Program Manager-On",400365]
[null,null,null,null,null,null,null,null,400370,"Project Engineering Staff-On",400370]
[null,null,null,null,null,null,null,null,400375,"Electrical Systems Staff-On",400375]
[null,null,null,null,null,null,null,null,400380,"Mechanical Systems Staff-On",400380]
[null,null,null,null,null,null,null,null,400385,"Quality Assurance Staff-On",400385]
[null,null,null,null,null,null,null,null,400390,"Post-Doctoral Staff-On",400390]
[null,null,null,null,null,null,null,null,400395,"Programming Staff-On",400395]
[null,null,null,null,null,null,null,null,400450,"Service Staff - On",400450]
[null,null,null,null,null,null,null,null,400451,"Service Staff - On-Reduced EB",400451]
[null,null,null,null,null,null,null,null,400452,"Service Staff - Off",400452]
[null,null,null,null,null,null,null,null,400453,"Service Staff - Off - Reduced EB",400453]
[null,null,null,null,null,null,null,null,400454,"Cleaning Labor-On",400454]
[null,null,null,null,null,null,null,null,400456,"*Desk - Laboratory Service-On",400456]
[null,null,null,null,null,null,null,null,400458,"Dorm Patrol Lab Service-On",400458]
[null,null,null,null,null,null,null,null,400460,"*Grounds Labor-On",400460]
[null,null,null,null,null,null,null,null,400462,"*Housekeeping-On",400462]
[null,null,null,null,null,null,null,null,400464,"*Kitchen Labor-On",400464]
[null,null,null,null,null,null,null,null,400466,"*Linen Laboratory Service-On",400466]
[null,null,null,null,null,null,null,null,400468,"*Offset Camera Labor-On",400468]
[null,null,null,null,null,null,null,null,400470,"*Offset Hand Bindery Labor-On",400470]
[null,null,null,null,null,null,null,null,400472,"*Offset 1 Color Heidelberg-On",400472]
[null,null,null,null,null,null,null,null,400474,"Offset Layout Labor-On",400474]
[null,null,null,null,null,null,null,null,400476,"*Offset Machine Bindery Labor-On",400476]
[null,null,null,null,null,null,null,null,400478,"*Offset Paid Absences-On",400478]
[null,null,null,null,null,null,null,null,400480,"*Offset Photo Dir Plates Labor-On",400480]
[null,null,null,null,null,null,null,null,400482,"*Offset Plates Labor-On",400482]
[null,null,null,null,null,null,null,null,400484,"*Offset Small Presses Labor-On",400484]
[null,null,null,null,null,null,null,null,400486,"*Offset 2 Color Heidelberg-On",400486]
[null,null,null,null,null,null,null,null,400488,"*Janitors-On",400488]
[null,null,null,null,null,null,null,null,400490,"*Night Cleaners-On",400490]
[null,null,null,null,null,null,null,null,400492,"*Watchmen-On",400492]
[null,null,null,null,null,null,null,null,400494,"*Mailmen-On",400494]
[null,null,null,null,null,null,null,null,400496,"Other Salaries Budget Only-On",400496]
[null,null,null,null,null,null,null,null,400497,"Service Staff Premium-On",400497]
[null,null,null,null,null,null,null,null,400498,"*Shippers-On",400498]
[null,null,null,null,null,null,null,null,400499,"Service Staff Premium-Off",400499]
[null,null,null,null,null,null,null,null,400500,"*Stock Clerks-On",400500]
[null,null,null,null,null,null,null,null,400501,"Service Staff Premium-On-Reduced EB",400501]
[null,null,null,null,null,null,null,null,400502,"*Matrons-On",400502]
[null,null,null,null,null,null,null,null,400503,"Service Staff Premium-Off-Reduced EB",400503]
[null,null,null,null,null,null,null,null,400504,"*Window Washers-On",400504]
[null,null,null,null,null,null,null,null,400506,"*Stagehand Janitors-On",400506]
[null,null,null,null,null,null,null,null,400508,"*Machine Operator-On",400508]
[null,null,null,null,null,null,null,null,400510,"*Polisher-On",400510]
[null,null,null,null,null,null,null,null,400512,"*Paid Vacation-On",400512]
[null,null,null,null,null,null,null,null,400514,"Extended Sick Leave-On",400514]
[null,null,null,null,null,null,null,null,400516,"*Paid Holiday-On",400516]
[null,null,null,null,null,null,null,null,400518,"*Paid Early Closing-On",400518]
[null,null,null,null,null,null,null,null,400520,"*Paid Jury Duty Witness-On",400520]
[null,null,null,null,null,null,null,null,400522,"Paid Industrial Accident-On",400522]
[null,null,null,null,null,null,null,null,400524,"*Paid Funeral Leave-On",400524]
[null,null,null,null,null,null,null,null,400526,"*Military Active Duty-On",400526]
[null,null,null,null,null,null,null,null,400528,"*Paid Lateness Excused-On",400528]
[null,null,null,null,null,null,null,null,400530,"*Severance Pay-On",400530]
[null,null,null,null,null,null,null,null,400532,"*Call In Pay-On",400532]
[null,null,null,null,null,null,null,null,400534,"*Mail List Salaries-On",400534]
[null,null,null,null,null,null,null,null,400536,"Repairs and Maintenance Labor-On",400536]
[null,null,null,null,null,null,null,null,400538,"*Salaries Transferred-On",400538]
[null,null,null,null,null,null,null,null,400540,"*Electricians Operating-On",400540]
[null,null,null,null,null,null,null,null,400542,"Laboratory Shop Personnnel-On",400542]
[null,null,null,null,null,null,null,null,400544,"*Laboratory Shop Personnel-Off",400544]
[null,null,null,null,null,null,null,null,400546,"*Death Benifits-On",400546]
[null,null,null,null,null,null,null,null,400548,"Offset Docutech Labor-On",400548]
[null,null,null,null,null,null,null,null,400550,"Electronic Assembly-On",400550]
[null,null,null,null,null,null,null,null,400552,"Mechanical Assembly-On",400552]
[null,null,null,null,null,null,null,null,400554,"*Machining-On",400554]
[null,null,null,null,null,null,null,null,400556,"Quality Control-On",400556]
[null,null,null,null,null,null,null,null,400558,"*Printed Circuit-On",400558]
[null,null,null,null,null,null,null,null,400560,"Drafting-On",400560]
[null,null,null,null,null,null,null,null,400600,"Project Support Staff-On",400600]
[null,null,null,null,null,null,null,null,400601,"Project Support Staff-Off",400601]
[null,null,null,null,null,null,null,null,400602,"Support Staff-On",400602]
[null,null,null,null,null,null,null,null,400603,"Support Staff - Off",400603]
[null,null,null,null,null,null,null,null,400604,"Nursing-On",400604]
[null,null,null,null,null,null,null,null,400605,"Project Support Staff-On-Reduced EB",400605]
[null,null,null,null,null,null,null,null,400606,"*Resident Engineer-On",400606]
[null,null,null,null,null,null,null,null,400607,"Support Staff Premium - On",400607]
[null,null,null,null,null,null,null,null,400608,"*Foremen-On",400608]
[null,null,null,null,null,null,null,null,400609,"Other Support Staff Premium-Off",400609]
[null,null,null,null,null,null,null,null,400610,"*Manager-On",400610]
[null,null,null,null,null,null,null,null,400611,"Project Support Staff Overtime-On",400611]
[null,null,null,null,null,null,null,null,400612,"*Engineering Assistance-On",400612]
[null,null,null,null,null,null,null,null,400613,"Project Support Staff Overtime-Off",400613]
[null,null,null,null,null,null,null,null,400614,"*Housekeeping Supervisors-On",400614]
[null,null,null,null,null,null,null,null,400615,"Project Support Staff-Off-Reduced EB",400615]
[null,null,null,null,null,null,null,null,400616,"*Desk Clerk Supervisors-On",400616]
[null,null,null,null,null,null,null,null,400617,"Support Staff-On-Reduced EB",400617]
[null,null,null,null,null,null,null,null,400618,"Support Staff - Off - Reduced EB",400618]
[null,null,null,null,null,null,null,null,400619,"Support Staff Premium - On-Reduced EB",400619]
[null,null,null,null,null,null,null,null,400620,"Other Support Staff Premium-Off-Reduced EB",400620]
[null,null,null,null,null,null,null,null,400621,"Project Support Staff Overtime-On-Reduced EB",400621]
[null,null,null,null,null,null,null,null,400623,"Project Support Staff Overtime-Off-Reduced EB",400623]
[null,null,null,null,null,null,null,null,400650,"Exempt Administrative-On",400650]
[null,null,null,null,null,null,null,null,400651,"Exempt Administrative-On-Reduced EB",400651]
[null,null,null,null,null,null,null,null,400652,"*Exempt Administrative-Off",400652]
[null,null,null,null,null,null,null,null,400654,"Exempt Technical-On",400654]
[null,null,null,null,null,null,null,null,400655,"Exempt Technical-On-Reduced EB",400655]
[null,null,null,null,null,null,null,null,400656,"Exempt Technical-Off",400656]
[null,null,null,null,null,null,null,null,400657,"Exempt Technical-Off-Reduced EB",400657]
[null,null,null,null,null,null,null,null,400658,"Nurses-On",400658]
[null,null,null,null,null,null,null,null,400660,"*Resident Engineer-On",400660]
[null,null,null,null,null,null,null,null,400662,"*Foremen-On",400662]
[null,null,null,null,null,null,null,null,400664,"*Manager-On",400664]
[null,null,null,null,null,null,null,null,400666,"*Engineering Assistance-On",400666]
[null,null,null,null,null,null,null,null,400668,"*Exempt Other-On",400668]
[null,null,null,null,null,null,null,null,400670,"*R.L.E. Lab Services-On",400670]
[null,null,null,null,null,null,null,null,400700,"Graduate Student Staff-On",400700]
[null,null,null,null,null,null,null,null,400702,"Graduate Student Staff-Off",400702]
[null,null,null,null,null,null,null,null,400704,"*Teaching Assistant CWSP-On",400704]
[null,null,null,null,null,null,null,null,400706,"Research Asst-On",400706]
[null,null,null,null,null,null,null,null,400708,"Research Asst-Off",400708]
[null,null,null,null,null,null,null,null,400710,"*Research Assistant CWSP-On",400710]
[null,null,null,null,null,null,null,null,102274,"GMO Emerging Markets",102274]
[null,null,null,null,null,null,null,null,102275,"Richard P Dickson",102275]
[null,null,null,null,null,null,null,null,102276,"Barbara J Weedon Unitrust",102276]
[null,null,null,null,null,null,null,null,102277,"D. Reid Weedon Jr (1941) CRUT",102277]
[null,null,null,null,null,null,null,null,102278,"Commingled International Small Cap Fund",102278]
[null,null,null,null,null,null,null,null,102279,"Investment consolidation",102279]
[null,null,null,null,null,null,null,null,102280,"Investments - Barton",102280]
[null,null,null,null,null,null,null,null,102281,"Investments - MV Adj",102281]
[null,null,null,null,null,null,null,null,102282,"Technology Square Gross Up",102282]
[null,null,null,null,null,null,null,null,102283,"Endowment Investment Strategy",102283]
[null,null,null,null,null,null,null,null,102284,"Series J Swap - Deutsche",102284]
[null,null,null,null,null,null,null,null,102285,"IRDF Mortgages",102285]
[null,null,null,null,null,null,null,null,102286,"Taxable Bonds Deposit, Series B",102286]
[null,null,null,null,null,null,null,null,102299,"Perpetual Outside Trust",102299]
[null,null,null,null,null,null,null,null,102300,"Agency Account RI Haslam Trust Securities",102300]
[null,null,null,null,null,null,null,null,102301,"Malcolm & Susan Green Charitable Remainder Unitrst",102301]
[null,null,null,null,null,null,null,null,102302,"Ann P Toon Charitable Remainder Unitrust",102302]
[null,null,null,null,null,null,null,null,102303,"Chin Chih Chen Fund",102303]
[null,null,null,null,null,null,null,null,102304,"Virginia & D K Ludwig #2 Fund",102304]
[null,null,null,null,null,null,null,null,102305,"E. Thomsonm Leighton Fund",102305]
[null,null,null,null,null,null,null,null,102306,"Malcolm & Susan Green Charitable Remainder Unitrst",102306]
[null,null,null,null,null,null,null,null,102307,"R L & M E Foster Charitable Remainder Unitrust",102307]
[null,null,null,null,null,null,null,null,102308,"Wm & Wendyce Brody Charitable Remainder Unitrust",102308]
[null,null,null,null,null,null,null,null,102309,"McGovern Institute for Brain Research",102309]
[null,null,null,null,null,null,null,null,102310,"Harry G. Steiman (1933 Charitable Remainder Unitru",102310]
[null,null,null,null,null,null,null,null,102311,"Jon L & Jewell W Ganger Unitrust",102311]
[null,null,null,null,null,null,null,null,102312,"Gordon M. Binder Fund",102312]
[null,null,null,null,null,null,null,null,102313,"Koichi and Fumiko Masubuchi Unitrust",102313]
[null,null,null,null,null,null,null,null,102314,"Koichi & Fumiko Masubuchi Unitrust",102314]
[null,null,null,null,null,null,null,null,102315,"Henry & Janine Lichstein Unitrust",102315]
[null,null,null,null,null,null,null,null,102316,"Ludwig Center Endowment Fund",102316]
[null,null,null,null,null,null,null,null,102317,"Roberts Fund-Separately Invested",102317]
[null,null,null,null,null,null,null,null,102318,"Temp Restricted Illiquid Stock",102318]
[null,null,null,null,null,null,null,null,102319,"Perm Restricted Illiquid Stock",102319]
[null,null,null,null,null,null,null,null,102320,"Michal & Mary Scott Morton CRT",102320]
[null,null,null,null,null,null,null,null,102400,"Pool A Inv - City of London Fund",102400]
[null,null,null,null,null,null,null,null,102523,"E.Roos & M.A.Evans Charitable Remainder Unitrust#5",102523]
[null,null,null,null,null,null,null,null,102524,"Edwin G. Roos Charitable Remainder Annuity Trust #",102524]
[null,null,null,null,null,null,null,null,102526,"Investment in Triliteral",102526]
[null,null,null,null,null,null,null,null,102527,"Massachusetts Green High Performance Computing Ctr",102527]
[null,null,null,null,null,null,null,null,102528,"Starr Foundation separately invested",102528]
[null,null,null,null,null,null,null,null,102529,"A/R - Taxable Bonds, Series B",102529]
[null,null,null,null,null,null,null,null,102530,"A/R - Security Transactions",102530]
[null,null,null,null,null,null,null,null,102531,"Patricia Conley Butzow Unitrust",102531]
[null,null,null,null,null,null,null,null,102532,"A/R - Life Income Fund Securities",102532]
[null,null,null,null,null,null,null,null,102533,"A/P - Life Income Fund Securities",102533]
[null,null,null,null,null,null,null,null,102534,"Investments - LIFS  Pool",102534]
[null,null,null,null,null,null,null,null,102535,"Donald H. Steinbrecher Unitrust",102535]
[null,null,null,null,null,null,null,null,102536,"Edwin G. Roos Annuity Trust #3",102536]
[null,null,null,null,null,null,null,null,102537,"Alice G. Haslam (1976) Trust",102537]
[null,null,null,null,null,null,null,null,102538,"Edwin G. Roos Annuity Trust #4",102538]
[null,null,null,null,null,null,null,null,102539,"Special Retirement Reserve II",102539]
[null,null,null,null,null,null,null,null,102540,"Investments Downtown Associates II",102540]
[null,null,null,null,null,null,null,null,102541,"Investments Acadian International",102541]
[null,null,null,null,null,null,null,null,102542,"Investments Artisan International",102542]
[null,null,null,null,null,null,null,null,102543,"Investments Wellington International",102543]
[null,null,null,null,null,null,null,null,102544,"Ned & Janet (Bemis) Rice Unitrust #2",102544]
[null,null,null,null,null,null,null,null,102550,"Pool A payable to Pool C",102550]
[null,null,null,null,null,null,null,null,102551,"Pool C payable to Pool A",102551]
[null,null,null,null,null,null,null,null,102552,"Pool A receivable from Pool C",102552]
[null,null,null,null,null,null,null,null,102553,"Pool C receivable from Pool A",102553]
[null,null,null,null,null,null,null,null,102600,"Donated Real Estate",102600]
[null,null,null,null,null,null,null,null,102900,"Common Stock - Corporate - at cost",102900]
[null,null,null,null,null,null,null,null,102901,"Commercial Paper - Short Term - at cost",102901]
[null,null,null,null,null,null,null,null,102902,"Long Term Treasury & Agency-Gov Securities-at cost",102902]
[null,null,null,null,null,null,null,null,102903,"Real Estate - Partner/Jt Venture Interests-at cost",102903]
[null,null,null,null,null,null,null,null,102904,"Unrealized gain/loss - Common Stock",102904]
[null,null,null,null,null,null,null,null,102905,"Unrealized g/l -Commercial Paper - Short Term",102905]
[null,null,null,null,null,null,null,null,102906,"Unrealized g/l - Long Term Treasury & Agency",102906]
[null,null,null,null,null,null,null,null,102907,"Unrealized gain/loss - Real Estate",102907]
[null,null,null,null,null,null,null,null,102908,"Securities lending - investment",102908]
[null,null,null,null,null,null,null,null,102909,"Fund of Funds Investments held by Others",102909]
[null,null,null,null,null,null,null,null,102910,"RDBP Investment - 401h",102910]
[null,null,null,null,null,null,null,null,102911,"RDBP - Net Assets held in 401h account",102911]
[null,null,null,null,null,null,null,null,102912,"RDBP - Investment contra - 401h",102912]
[null,null,null,null,null,null,null,null,107199,"set up incorrect",107199]
[null,null,null,null,null,null,null,null,110000,"EDx Accounts Receivable - General",110000]
[null,null,null,null,null,null,null,null,111000,"EDx Accounts Receivables - Pledges",111000]
[null,null,null,null,null,null,null,null,112000,"EDx Other Assets",112000]
[null,null,null,null,null,null,null,null,120000,"EDx Prepaid General",120000]
[null,null,null,null,null,null,null,null,121000,"EDx Prepaid Rent",121000]
[null,null,null,null,null,null,null,null,122000,"EDx Prepaid Insurance",122000]
[null,null,null,null,null,null,null,null,123000,"EDx Prepaid Maintenance",123000]
[null,null,null,null,null,null,null,null,170000,"Educational Plant Assets",170000]
[null,null,null,null,null,null,null,null,170001,"Plant Settlement Account",170001]
[null,null,null,null,null,null,null,null,170002,"P P & E Consolidation Entries",170002]
[null,null,null,null,null,null,null,null,170003,"Capitalized Interest",170003]
[null,null,null,null,null,null,null,null,170005,"Broad Service Center Equipment",170005]
[null,null,null,null,null,null,null,null,170010,"Allowance for Depreciation",170010]
[null,null,null,null,null,null,null,null,170011,"Accumulated Depreciation - Broad Equipment",170011]
[null,null,null,null,null,null,null,null,170015,"Accum Deprec Leashold Improvements",170015]
[null,null,null,null,null,null,null,null,170016,"CIP - Bond Related Activity",170016]
[null,null,null,null,null,null,null,null,170017,"Accumulated Depreciation Equipment",170017]
[null,null,null,null,null,null,null,null,170019,"Accumulated Depreciation Office Equipment",170019]
[null,null,null,null,null,null,null,null,170020,"Buildings-Academic",170020]
[null,null,null,null,null,null,null,null,170021,"Land-Academic",170021]
[null,null,null,null,null,null,null,null,170022,"Land Improvement-Academic",170022]
[null,null,null,null,null,null,null,null,170023,"Distribution Infrastructure-Academic",170023]
[null,null,null,null,null,null,null,null,170024,"Leasehold Improvements-Academic",170024]
[null,null,null,null,null,null,null,null,170025,"Construction in Progress-Academic",170025]
[null,null,null,null,null,null,null,null,170026,"Software Projects in Process",170026]
[null,null,null,null,null,null,null,null,170027,"Capitalized Software",170027]
[null,null,null,null,null,null,null,null,170028,"Telecommunications Equipment Under Construction",170028]
[null,null,null,null,null,null,null,null,170029,"Capitalized Telecommunications Equipment",170029]
[null,null,null,null,null,null,null,null,170030,"Furniture & Fixtures",170030]
[null,null,null,null,null,null,null,null,170031,"Computer Equipment",170031]
[null,null,null,null,null,null,null,null,170032,"Computer Eqpt # $4k",170032]
[null,null,null,null,null,null,null,null,170033,"FIN 47 ARO assets",170033]
[null,null,null,null,null,null,null,null,170034,"SOSC-Projects under construction",170034]
[null,null,null,null,null,null,null,null,170035,"SOSC-Projects Completed",170035]
[null,null,null,null,null,null,null,null,170036,"SOSC-Server Equipment",170036]
[null,null,null,null,null,null,null,null,170040,"Accumulated Depreciation-Academic",170040]
[null,null,null,null,null,null,null,null,170045,"Accumulated Depreciaton-Leashold Improvements",170045]
[null,null,null,null,null,null,null,null,170046,"Accumulated Depreciation-Furniture & Fixtures",170046]
[null,null,null,null,null,null,null,null,170047,"Accumulated Depreciation Computer Equipment",170047]
[null,null,null,null,null,null,null,null,170048,"FIN 47 ARO accum depreciation",170048]
[null,null,null,null,null,null,null,null,170049,"Accumulated Depreciation Computer < 4k",170049]
[null,null,null,null,null,null,null,null,170050,"Asset Clearing",170050]
[null,null,null,null,null,null,null,null,171000,"Leasehold Improvements",171000]
[null,null,null,null,null,null,null,null,171001,"Lab Equipment",171001]
[null,null,null,null,null,null,null,null,171002,"Capitalized Software",171002]
[null,null,null,null,null,null,null,null,171003,"Office Equip Asset",171003]
[null,null,null,null,null,null,null,null,171004,"Capital WIP Asset",171004]
[null,null,null,null,null,null,null,null,171015,"Accum Deprec Leashold Improvements",171015]
[null,null,null,null,null,null,null,null,420196,"Institutional Allowance",420196]
[null,null,null,null,null,null,null,null,420198,"Insurance Premiums",420198]
[null,null,null,null,null,null,null,null,420199,"Insurance Premium-not MTDC",420199]
[null,null,null,null,null,null,null,null,420200,"Interest During Construction",420200]
[null,null,null,null,null,null,null,null,420202,"Inventory",420202]
[null,null,null,null,null,null,null,null,420204,"Iron & Steel Repair",420204]
[null,null,null,null,null,null,null,null,420208,"Uniform Costs & Laundry",420208]
[null,null,null,null,null,null,null,null,420209,"Medical/Dental Lab Services",420209]
[null,null,null,null,null,null,null,null,420210,"Leasehold Improvements",420210]
[null,null,null,null,null,null,null,null,420212,"Linen",420212]
[null,null,null,null,null,null,null,null,420214,"Laboratory Supplies",420214]
[null,null,null,null,null,null,null,null,420216,"Maintenance",420216]
[null,null,null,null,null,null,null,null,420218,"Furnishings & Expendables",420218]
[null,null,null,null,null,null,null,null,420220,"Maint & Repairs & Reconditioning",420220]
[null,null,null,null,null,null,null,null,420222,"Masonry, Caulking, Waterproofing",420222]
[null,null,null,null,null,null,null,null,420224,"*Matching Equipment Grants",420224]
[null,null,null,null,null,null,null,null,420226,"Materials and Services",420226]
[null,null,null,null,null,null,null,null,420227,"Non-debt related interest and penalties",420227]
[null,null,null,null,null,null,null,null,420228,"Materials and Services",420228]
[null,null,null,null,null,null,null,null,420230,"Materials Charged to Jobs",420230]
[null,null,null,null,null,null,null,null,420232,"Mechanical Components",420232]
[null,null,null,null,null,null,null,null,420234,"Mechanical System",420234]
[null,null,null,null,null,null,null,null,420236,"Membership Promotion",420236]
[null,null,null,null,null,null,null,null,420238,"Mesh Partitions",420238]
[null,null,null,null,null,null,null,null,420242,"Microfilm",420242]
[null,null,null,null,null,null,null,null,420244,"Miscellaneous Reipts-not MTDC",420244]
[null,null,null,null,null,null,null,null,420252,"N E Depository",420252]
[null,null,null,null,null,null,null,null,420254,"Non-Reimbursable Expenses",420254]
[null,null,null,null,null,null,null,null,420255,"Swept Credit Card Charges-Unallowable",420255]
[null,null,null,null,null,null,null,null,420258,"Office Supplies",420258]
[null,null,null,null,null,null,null,null,420260,"Outside Purchases",420260]
[null,null,null,null,null,null,null,null,420261,"MITemps",420261]
[null,null,null,null,null,null,null,null,420262,"Temporary Help",420262]
[null,null,null,null,null,null,null,null,420264,"Outside Service Credits",420264]
[null,null,null,null,null,null,null,null,420268,"Painting",420268]
[null,null,null,null,null,null,null,null,420270,"Painting and Decorating",420270]
[null,null,null,null,null,null,null,null,420272,"Paper Goods",420272]
[null,null,null,null,null,null,null,null,420274,"Parking Expense-not MTDC",420274]
[null,null,null,null,null,null,null,null,420276,"Permissions",420276]
[null,null,null,null,null,null,null,null,420278,"Photo Chemicals",420278]
[null,null,null,null,null,null,null,null,420280,"Photo Circuit Services",420280]
[null,null,null,null,null,null,null,null,420282,"Photo Paper",420282]
[null,null,null,null,null,null,null,null,420283,"Photography Services",420283]
[null,null,null,null,null,null,null,null,420284,"Phs/NIH Restricted F&A-not MTDC",420284]
[null,null,null,null,null,null,null,null,420285,"Cap Proj Settl Reveral-not MTDC",420285]
[null,null,null,null,null,null,null,null,420286,"Facilities/Physical Plant Exp-not MTDC",420286]
[null,null,null,null,null,null,null,null,420288,"Plastering, Dry Wall",420288]
[null,null,null,null,null,null,null,null,420290,"Police",420290]
[null,null,null,null,null,null,null,null,420292,"Print Paper",420292]
[null,null,null,null,null,null,null,null,420294,"Printed Forms",420294]
[null,null,null,null,null,null,null,null,420296,"Precious Metals",420296]
[null,null,null,null,null,null,null,null,420298,"Professional Services/Consulting",420298]
[null,null,null,null,null,null,null,null,420300,"Professional Services-Patent-Domestic",420300]
[null,null,null,null,null,null,null,null,420301,"Professional Services-Patent-Foreign",420301]
[null,null,null,null,null,null,null,null,420302,"Promotional & Memorabilia",420302]
[null,null,null,null,null,null,null,null,420304,"Public Relations",420304]
[null,null,null,null,null,null,null,null,420306,"Publicity",420306]
[null,null,null,null,null,null,null,null,420307,"P/P Price Variants",420307]
[null,null,null,null,null,null,null,null,420308,"DoF Quanitity Variants",420308]
[null,null,null,null,null,null,null,null,420309," Inventory Adjustments",420309]
[null,null,null,null,null,null,null,null,420310,"Raw Materials",420310]
[null,null,null,null,null,null,null,null,420311,"F&A UR Offset - not F&A-not MTDC",420311]
[null,null,null,null,null,null,null,null,420312,"Readers Fees",420312]
[null,null,null,null,null,null,null,null,420313,"Author Payments",420313]
[null,null,null,null,null,null,null,null,420314,"Record Project Overrun-not MTDC",420314]
[null,null,null,null,null,null,null,null,420315,"Other Spon Funded Costs-not F&A-not MTDC",420315]
[null,null,null,null,null,null,null,null,420316,"Other Spon Funded Costs-F&A-not MTDC",420316]
[null,null,null,null,null,null,null,null,420317,"Cost Shared F&A Under-Recovery-not MTDC",420317]
[null,null,null,null,null,null,null,null,420318,"Recreation Related Expenses",420318]
[null,null,null,null,null,null,null,null,420319,"Prizes & Awards-Other",420319]
[null,null,null,null,null,null,null,null,420320,"Renovations",420320]
[null,null,null,null,null,null,null,null,420321,"Rewards & Recognition",420321]
[null,null,null,null,null,null,null,null,420322,"*Renovations",420322]
[null,null,null,null,null,null,null,null,420323,"Rewards & Recognition-Food",420323]
[null,null,null,null,null,null,null,null,420326,"Report Costs",420326]
[null,null,null,null,null,null,null,null,420328,"Research Vessel Usage-not MTDC",420328]
[null,null,null,null,null,null,null,null,420330,"*Reserve for Seminar Expenses",420330]
[null,null,null,null,null,null,null,null,420332,"Facades & Roofing",420332]
[null,null,null,null,null,null,null,null,420336,"Safety Protective Equipment",420336]
[null,null,null,null,null,null,null,null,420338,"Service Contracts",420338]
[null,null,null,null,null,null,null,null,420340,"Serv Budgeted to Salaries",420340]
[null,null,null,null,null,null,null,null,420342,"Scholarship Allowance",420342]
[null,null,null,null,null,null,null,null,420344,"Seminar/Workshop/Conference Costs",420344]
[null,null,null,null,null,null,null,null,420346,"Shop Expense",420346]
[null,null,null,null,null,null,null,null,420348,"Site Development",420348]
[null,null,null,null,null,null,null,null,420350,"External Space Rental-not MTDC",420350]
[null,null,null,null,null,null,null,null,420351,"Construction Testing-not MTDC",420351]
[null,null,null,null,null,null,null,null,420352,"Special Expenses",420352]
[null,null,null,null,null,null,null,null,420353,"Models/Mock-ups",420353]
[null,null,null,null,null,null,null,null,420354,"Special Plant-not MTDC",420354]
[null,null,null,null,null,null,null,null,420356,"Structural System",420356]
[null,null,null,null,null,null,null,null,420358,"Supplementary Construction",420358]
[null,null,null,null,null,null,null,null,420360,"Survey & Borings",420360]
[null,null,null,null,null,null,null,null,420361,"Prof Serv/Consulting-Constr-not MTDC",420361]
[null,null,null,null,null,null,null,null,420362,"Prof Serv/Consulting-Design-not MTDC",420362]
[null,null,null,null,null,null,null,null,420363,"Prof Serv/Consulting-FFE-not MTDC",420363]
[null,null,null,null,null,null,null,null,420364,"Tires",420364]
[null,null,null,null,null,null,null,null,420366,"Transferred to Capital Assets",420366]
[null,null,null,null,null,null,null,null,420370,"Trustee Expenses",420370]
[null,null,null,null,null,null,null,null,420371,"Inventory Adjustments",420371]
[null,null,null,null,null,null,null,null,420372,"Purchase Price Difference",420372]
[null,null,null,null,null,null,null,null,420373,"Goods Issue",420373]
[null,null,null,null,null,null,null,null,420374,"Initial balance offset",420374]
[null,null,null,null,null,null,null,null,420375,"Process Order Stt",420375]
[null,null,null,null,null,null,null,null,420376,"Use of Internal Facilities",420376]
[null,null,null,null,null,null,null,null,420378,"Utilities Distribution",420378]
[null,null,null,null,null,null,null,null,420382,"Venetian Blind",420382]
[null,null,null,null,null,null,null,null,420386,"Wages Outside",420386]
[null,null,null,null,null,null,null,null,420388,"Windows & Doors",420388]
[null,null,null,null,null,null,null,null,420392,"Copying Expense",420392]
[null,null,null,null,null,null,null,null,420393,"Insurance Recovery",420393]
[null,null,null,null,null,null,null,null,420394,"Insurance Recovery-not MTDC",420394]
[null,null,null,null,null,null,null,null,420395,"Non Recoverable Loss-not MTDC",420395]
[null,null,null,null,null,null,null,null,420396,"Insurance Premiums Design Phase-not MTDC",420396]
[null,null,null,null,null,null,null,null,420398,"Grant Expense",420398]
[null,null,null,null,null,null,null,null,420600,"Subrecipient Agreement",420600]
[null,null,null,null,null,null,null,null,420610,"*Subcontracts",420610]
[null,null,null,null,null,null,null,null,420620,"Subrecipient Agreement-not MTDC",420620]
[null,null,null,null,null,null,null,null,420700,"Construction Contract Non-Supplemental",420700]
[null,null,null,null,null,null,null,null,420710,"Consultants",420710]
[null,null,null,null,null,null,null,null,420720,"Contract Services",420720]
[null,null,null,null,null,null,null,null,420721,"Contract Services-Housekeeping",420721]
[null,null,null,null,null,null,null,null,420726,"Outpatient Services - Medial use only",420726]
[null,null,null,null,null,null,null,null,420727,"Extended Insurance Benefits - Medical",420727]
[null,null,null,null,null,null,null,null,420728,"Insurance Plan Programs - Medical",420728]
[null,null,null,null,null,null,null,null,420729,"Professional Svc Mental Health - Medical",420729]
[null,null,null,null,null,null,null,null,420730,"Inpatient medical admission",420730]
[null,null,null,null,null,null,null,null,420800,"Books & Publications",420800]
[null,null,null,null,null,null,null,null,420810,"Catalogues",420810]
[null,null,null,null,null,null,null,null,420815,"Circulars",420815]
[null,null,null,null,null,null,null,null,420820,"Complimentary Copies",420820]
[null,null,null,null,null,null,null,null,420825,"Journals",420825]
[null,null,null,null,null,null,null,null,420830,"Pamphlet Expense",420830]
[null,null,null,null,null,null,null,null,420835,"Paper Presswork and Binding",420835]
[null,null,null,null,null,null,null,null,420840,"Printing",420840]
[null,null,null,null,null,null,null,null,420841,"PrePress Services",420841]
[null,null,null,null,null,null,null,null,420845,"Serials",420845]
[null,null,null,null,null,null,null,null,420855,"Type Binding and Paper Storage",420855]
[null,null,null,null,null,null,null,null,420870,"Royalties",420870]
[null,null,null,null,null,null,null,null,420875,"Publications",420875]
[null,null,null,null,null,null,null,null,420880,"*Book Store and Library Promotion",420880]
[null,null,null,null,null,null,null,null,420890,"Subscriptions",420890]
[null,null,null,null,null,null,null,null,420891,"Direct Mail Marketing Services",420891]
[null,null,null,null,null,null,null,null,420892,"Market Research Services",420892]
[null,null,null,null,null,null,null,null,420893,"Media Kits",420893]
[null,null,null,null,null,null,null,null,420894,"Promotion Expense",420894]
[null,null,null,null,null,null,null,null,420900,"Mail List Expense",420900]
[null,null,null,null,null,null,null,null,420906,"Storage",420906]
[null,null,null,null,null,null,null,null,420910,"Presorted Mail",420910]
[null,null,null,null,null,null,null,null,420920,"Postage Mailing and Shipping",420920]
[null,null,null,null,null,null,null,null,420921,"International Mail",420921]
[null,null,null,null,null,null,null,null,420930,"Courier Services",420930]
[null,null,null,null,null,null,null,null,420935,"Non-Recoverable Loss-not MTDC",420935]
[null,null,null,null,null,null,null,null,421000,"Meetings - Food & Beverages",421000]
[null,null,null,null,null,null,null,null,421010,"Meetings - Materials & Supplies",421010]
[null,null,null,null,null,null,null,null,421100,"Utilities-not MTDC",421100]
[null,null,null,null,null,null,null,null,421101,"*Gas Usage-not MTDC",421101]
[null,null,null,null,null,null,null,null,421102,"*Water Usage-not MTDC",421102]
[null,null,null,null,null,null,null,null,421103,"*Electricity-not MTDC",421103]
[null,null,null,null,null,null,null,null,421104,"*Fuel Oil-not MTDC",421104]
[null,null,null,null,null,null,null,null,421105,"*Steam Usage (Mlb)-not MTDC",421105]
[null,null,null,null,null,null,null,null,421106,"*Chill.Water (Thr)-not MTDC",421106]
[null,null,null,null,null,null,null,null,421107,"Sewage Usage (Ccf)-not MTDC",421107]
[null,null,null,null,null,null,null,null,421108,"Gas Usage (Ccf)-not MTDC",421108]
[null,null,null,null,null,null,null,null,421109,"Water Usage (Ccf)-not MTDC",421109]
[null,null,null,null,null,null,null,null,421110,"Electric Commodity - kwh",421110]
[null,null,null,null,null,null,null,null,421111,"Electricity Usage (Kwh)-not MTDC",421111]
[null,null,null,null,null,null,null,null,421112,"Fuel Oil #2 (Gal)-not MTDC",421112]
[null,null,null,null,null,null,null,null,421113,"Fuel Oil #6 (Bbl)-not MTDC",421113]
[null,null,null,null,null,null,null,null,421114,"Fuel: Diesel (Gal)-not MTDC",421114]
[null,null,null,null,null,null,null,null,421115,"Chemicals-Demin-not MTDC",421115]
[null,null,null,null,null,null,null,null,421116,"Chemicals-Boiler-not MTDC",421116]
[null,null,null,null,null,null,null,null,421117,"Chemicals-Chilled Water-not MTDC",421117]
[null,null,null,null,null,null,null,null,421118,"Gas Commodity - ccf",421118]
[null,null,null,null,null,null,null,null,421119,"Testing & Monitoring Gasses",421119]
[null,null,null,null,null,null,null,null,421120,"Gas-not MTDC",421120]
[null,null,null,null,null,null,null,null,421121,"Power Exp-Purchased-not MTDC",421121]
[null,null,null,null,null,null,null,null,421122,"Power Exp-Gen G-3 Rate Power-not MTDC",421122]
[null,null,null,null,null,null,null,null,421123,"Power Exp-Gen G-3 Rate Demand-not MTDC",421123]
[null,null,null,null,null,null,null,null,421124,"Power Exp-Maint Power-not MTDC",421124]
[null,null,null,null,null,null,null,null,421125,"FERC Credit-not MTDC",421125]
[null,null,null,null,null,null,null,null,421126,"Power Exp-Emergency Power-not MTDC",421126]
[null,null,null,null,null,null,null,null,421127,"Power Exp-Emergency Distrib Cap-not MTDC",421127]
[null,null,null,null,null,null,null,null,421128,"Gas Hedging-not MTDC",421128]
[null,null,null,null,null,null,null,null,421129,"Shared Savings Payout - not MTDC",421129]
[null,null,null,null,null,null,null,null,421130,"Water-not MTDC",421130]
[null,null,null,null,null,null,null,null,421131,"Power Exp-Customer Trans Change-not MTDC",421131]
[null,null,null,null,null,null,null,null,421132,"Service Contracts-Boilers-not MTDC",421132]
[null,null,null,null,null,null,null,null,421133,"Service Contracts-Demin-not MTDC",421133]
[null,null,null,null,null,null,null,null,421134,"Service Contract-Water Treatmnt-not MTDC",421134]
[null,null,null,null,null,null,null,null,421135,"Service Contracts-Chillers-not MTDC",421135]
[null,null,null,null,null,null,null,null,421136,"Serv Contract-Turbine Generator-not MTDC",421136]
[null,null,null,null,null,null,null,null,421137,"Service Contracts-Air Systems-not MTDC",421137]
[null,null,null,null,null,null,null,null,421140,"Electricity-not MTDC",421140]
[null,null,null,null,null,null,null,null,421141,"Outside Services-Boilers-not MTDC",421141]
[null,null,null,null,null,null,null,null,421142,"Outsd Serv-Instrmnts & Cntrls-not MTDC",421142]
[null,null,null,null,null,null,null,null,421143,"Outside Services-Chillers-not MTDC",421143]
[null,null,null,null,null,null,null,null,421144,"Outside Serv-Turbine Generator-not MTDC",421144]
[null,null,null,null,null,null,null,null,421145,"Outside Serv-Diesel Generator-not MTDC",421145]
[null,null,null,null,null,null,null,null,421146,"Outside Services-Air Systems-not MTDC",421146]
[null,null,null,null,null,null,null,null,421147,"Outside Services-Wastewater-not MTDC",421147]
[null,null,null,null,null,null,null,null,421150,"Fuel-not MTDC",421150]
[null,null,null,null,null,null,null,null,421151,"Replacement Parts-Boilers-not MTDC",421151]
[null,null,null,null,null,null,null,null,421152,"Replace Part-Instrmnt & Cntrl-not MTDC",421152]
[null,null,null,null,null,null,null,null,421153,"Replacement Parts-Chillers-not MTDC",421153]
[null,null,null,null,null,null,null,null,421154,"Replacement Part-Cooling System-not MTDC",421154]
[null,null,null,null,null,null,null,null,421155,"Replacement Parts-Turbine-not MTDC",421155]
[null,null,null,null,null,null,null,null,421156,"Replacemnt Part-Diesl Generator-not MTDC",421156]
[null,null,null,null,null,null,null,null,421157,"Replace Part-Electrical Distrib-not MTDC",421157]
[null,null,null,null,null,null,null,null,421158,"Replacement Parts-Air System-not MTDC",421158]
[null,null,null,null,null,null,null,null,421159,"Replacement Parts-Wastewater-not MTDC",421159]
[null,null,null,null,null,null,null,null,421160,"Heat and Vent Expense",421160]
[null,null,null,null,null,null,null,null,421165,"Chilled Water-not MTDC",421165]
[null,null,null,null,null,null,null,null,421170,"EDx Web Hosting and Online Services",421170]
[null,null,null,null,null,null,null,null,421171,"EDx Professional Services - Marketing",421171]
[null,null,null,null,null,null,null,null,421172,"edX Professional Services # Sales",421172]
[null,null,null,null,null,null,null,null,421173,"EDx University Support",421173]
[null,null,null,null,null,null,null,null,421174,"EDx  Utilities",421174]
[null,null,null,null,null,null,null,null,421175,"edX Professional Services # Engineering",421175]
[null,null,null,null,null,null,null,null,421176,"edX Professional Services # Educational Services",421176]
[null,null,null,null,null,null,null,null,421200,"Food",421200]
[null,null,null,null,null,null,null,null,421201,"Dietary Supplies",421201]
[null,null,null,null,null,null,null,null,421205,"Alcoholic Beverages",421205]
[null,null,null,null,null,null,null,null,421210,"Baked Goods",421210]
[null,null,null,null,null,null,null,null,421215,"Butter, Eggs, Cheese",421215]
[null,null,null,null,null,null,null,null,421225,"Groceries",421225]
[null,null,null,null,null,null,null,null,421230,"Fish",421230]
[null,null,null,null,null,null,null,null,421235,"Fresh Fruits and Vegetables",421235]
[null,null,null,null,null,null,null,null,421240,"Frozen Fruits and Vegetables",421240]
[null,null,null,null,null,null,null,null,421245,"Ice",421245]
[null,null,null,null,null,null,null,null,421250,"Ice Cream",421250]
[null,null,null,null,null,null,null,null,421255,"Meat",421255]
[null,null,null,null,null,null,null,null,421260,"Milk and Cream",421260]
[null,null,null,null,null,null,null,null,421265,"Poultry",421265]
[null,null,null,null,null,null,null,null,421305,"Fees - Administrative",421305]
[null,null,null,null,null,null,null,null,421310,"Architect & Engineering Base Fees",421310]
[null,null,null,null,null,null,null,null,421313,"*For Future Use",421313]
[null,null,null,null,null,null,null,null,421315,"*Fees - Legal and Administrative",421315]
[null,null,null,null,null,null,null,null,421316,"Fees - Legal",421316]
[null,null,null,null,null,null,null,null,421317,"Fees-Audit",421317]
[null,null,null,null,null,null,null,null,421318,"Fees-Government",421318]
[null,null,null,null,null,null,null,null,421320,"Medical Insurance Capitation - Medical",421320]
[null,null,null,null,null,null,null,null,421405,"*Remainder Sales Expense",421405]
[null,null,null,null,null,null,null,null,421410,"Sales Commissions",421410]
[null,null,null,null,null,null,null,null,421415,"Selling Aids",421415]
[null,null,null,null,null,null,null,null,421420,"Space Advertising",421420]
[null,null,null,null,null,null,null,null,421421,"Advertising-Other Media",421421]
[null,null,null,null,null,null,null,null,421500,"Service Facilities",421500]
[null,null,null,null,null,null,null,null,421502,"Service Facilities-not MTDC",421502]
[null,null,null,null,null,null,null,null,421503,"Sequencing Services-not MTDC",421503]
[null,null,null,null,null,null,null,null,421504,"Reactor Use",421504]
[null,null,null,null,null,null,null,null,421505,"Genotyping Services-not MTDC",421505]
[null,null,null,null,null,null,null,null,421506,"Nasic Services",421506]
[null,null,null,null,null,null,null,null,421507,"Gene Expressison Services-not MTDC",421507]
[null,null,null,null,null,null,null,null,421508,"Medline Services",421508]
[null,null,null,null,null,null,null,null,421509,"RNAi Services-not MTDC",421509]
[null,null,null,null,null,null,null,null,421510,"Educational Media Services",421510]
[null,null,null,null,null,null,null,null,421511,"ProteomicsServices-not MTDC",421511]
[null,null,null,null,null,null,null,null,421512,"Chemical Screening Services-not MTDC",421512]
[null,null,null,null,null,null,null,null,421513,"Biological Samples Services-not MTDC",421513]
[null,null,null,null,null,null,null,null,421514,"Metabolite Profiling Services-not MTDC",421514]
[null,null,null,null,null,null,null,null,421550,"Amortization-not MTDC",421550]
[null,null,null,null,null,null,null,null,421552,"Bad Debts",421552]
[null,null,null,null,null,null,null,null,421553,"Cancellation-Loans Prior to 7/1/1972",421553]
[null,null,null,null,null,null,null,null,421554,"Cancellation - Teacher",421554]
[null,null,null,null,null,null,null,null,421555,"Cancellation-Certain Subject Matter",421555]
[null,null,null,null,null,null,null,null,421556,"Cancellation - Legal",421556]
[null,null,null,null,null,null,null,null,421557,"Cancellation-Volunteer",421557]
[null,null,null,null,null,null,null,null,421558,"Cancellation - Death",421558]
[null,null,null,null,null,null,null,null,421559,"Cancellation-Law Enforcement",421559]
[null,null,null,null,null,null,null,null,421560,"Cancellation - Military",421560]
[null,null,null,null,null,null,null,null,421561,"Cancellation-Child/Family/Early Intervention",421561]
[null,null,null,null,null,null,null,null,421562,"Cancellation - Other",421562]
[null,null,null,null,null,null,null,null,421563,"Cancellation-Disability",421563]
[null,null,null,null,null,null,null,null,421564,"Cancellation - Repayment",421564]
[null,null,null,null,null,null,null,null,421565,"Cancellation-Bankruptcy",421565]
[null,null,null,null,null,null,null,null,421566,"Cancellation - Foreign Student Loan",421566]
[null,null,null,null,null,null,null,null,421567,"Cancellation-Nurse Medical Technical Service",421567]
[null,null,null,null,null,null,null,null,421568,"CWSP Credit-not MTDC",421568]
[null,null,null,null,null,null,null,null,421570,"*CWSP Credit-not MTDC",421570]
[null,null,null,null,null,null,null,null,421572,"Experimental Subjects",421572]
[null,null,null,null,null,null,null,null,421574,"House Tax Allowance",421574]
[null,null,null,null,null,null,null,null,421575,"Bank Charges",421575]
[null,null,null,null,null,null,null,null,421576,"Interest Expense-not MTDC",421576]
[null,null,null,null,null,null,null,null,421577,"Internal Interest Expense-not MTDC",421577]
[null,null,null,null,null,null,null,null,421578,"Interest Expense",421578]
[null,null,null,null,null,null,null,null,421580,"Items To be Reclassified",421580]
[null,null,null,null,null,null,null,null,421582,"London Office Expenses",421582]
[null,null,null,null,null,null,null,null,421584,"Memberships and Social",421584]
[null,null,null,null,null,null,null,null,421586,"Memberships and Dues",421586]
[null,null,null,null,null,null,null,null,421588,"Miscellaneous",421588]
[null,null,null,null,null,null,null,null,421590,"Moving",421590]
[null,null,null,null,null,null,null,null,421592,"Other Direct Charges",421592]
[null,null,null,null,null,null,null,null,421594,"Petty Cash",421594]
[null,null,null,null,null,null,null,null,421595,"Foreign Tax Withholding",421595]
[null,null,null,null,null,null,null,null,421596,"Real Estate Taxes",421596]
[null,null,null,null,null,null,null,null,421597,"UBIT",421597]
[null,null,null,null,null,null,null,null,421598,"Research Patient Care",421598]
[null,null,null,null,null,null,null,null,421600,"Vehicle Expense",421600]
[null,null,null,null,null,null,null,null,421750,"*Telecommunications - Radio Comm",421750]
[null,null,null,null,null,null,null,null,421753,"Non-IS Telephone & Network Charges",421753]
[null,null,null,null,null,null,null,null,421756,"*Telephone - Local Calls",421756]
[null,null,null,null,null,null,null,null,421759,"*Telephone - Toll Calls",421759]
[null,null,null,null,null,null,null,null,421762,"*Telephone - Data Facilities",421762]
[null,null,null,null,null,null,null,null,421765,"IS Telephone & Network One-Time Charges",421765]
[null,null,null,null,null,null,null,null,421766,"*Telecommuncations-Consolidated Charges",421766]
[null,null,null,null,null,null,null,null,421767,"IS Telephone Monthly Charges",421767]
[null,null,null,null,null,null,null,null,421768,"IS Telephone Usage Charges",421768]
[null,null,null,null,null,null,null,null,421769,"IS Network Monthly Charges",421769]
[null,null,null,null,null,null,null,null,421770,"IS Network Usage Charges",421770]
[null,null,null,null,null,null,null,null,421771,"*Telephone Equipment-not MTDC",421771]
[null,null,null,null,null,null,null,null,421772,"IS Telephone Equipment Charges-not MTDC",421772]
[null,null,null,null,null,null,null,null,421773,"IS Network Equipment-not MTDC",421773]
[null,null,null,null,null,null,null,null,421774,"*Telephone Equipment Minor",421774]
[null,null,null,null,null,null,null,null,421775,"Server Operations Service Ctr-Service",421775]
[null,null,null,null,null,null,null,null,421776,"Server Operations Service Ctr-Equipment-not MTDC",421776]
[null,null,null,null,null,null,null,null,421777,"Tel & Network Proxy Rate-Service",421777]
[null,null,null,null,null,null,null,null,421778,"Tel & Network Proxy Rate-Equipment-Not MTDC",421778]
[null,null,null,null,null,null,null,null,421800,"Fabricated Equipment Offset",421800]
[null,null,null,null,null,null,null,null,421803,"*Capital Acquisitions-not MTDC",421803]
[null,null,null,null,null,null,null,null,421806,"*Chapel Organ",421806]
[null,null,null,null,null,null,null,null,421809,"Fabricated Equipment-not MTDC",421809]
[null,null,null,null,null,null,null,null,421812,"Deliverable End Items",421812]
[null,null,null,null,null,null,null,null,421815,"*Departmental Equipment and Furnishings",421815]
[null,null,null,null,null,null,null,null,421818,"Equip/Furniture-Major-not MTDC",421818]
[null,null,null,null,null,null,null,null,421821,"*Equipment Fixed",421821]
[null,null,null,null,null,null,null,null,421824,"*Equipment Fixed",421824]
[null,null,null,null,null,null,null,null,421827,"Equip/Furniture-Minor",421827]
[null,null,null,null,null,null,null,null,421830,"*Equipment",421830]
[null,null,null,null,null,null,null,null,421833,"Equipment Rental-not MTDC",421833]
[null,null,null,null,null,null,null,null,421836,"*Furnishings",421836]
[null,null,null,null,null,null,null,null,421841,"for future use",421841]
[null,null,null,null,null,null,null,null,421900,"Computer Supplies & Peripherals",421900]
[null,null,null,null,null,null,null,null,421905,"Edp Equipment Rental-not MTDC",421905]
[null,null,null,null,null,null,null,null,421910,"*OAIS Computer Use Charge",421910]
[null,null,null,null,null,null,null,null,421915,"*OAIS Modification Charges",421915]
[null,null,null,null,null,null,null,null,421920,"On-Line Services",421920]
[null,null,null,null,null,null,null,null,421921,"Web Design/Maintenance",421921]
[null,null,null,null,null,null,null,null,421925,"Software",421925]
[null,null,null,null,null,null,null,null,421926,"Software Maintenance Costs",421926]
[null,null,null,null,null,null,null,null,421927,"Software Project Settlement Reversal",421927]
[null,null,null,null,null,null,null,null,421930,"Edp Expense-not MTDC",421930]
[null,null,null,null,null,null,null,null,421935,"IS Mainframe Charges",421935]
[null,null,null,null,null,null,null,null,421940,"IS Mainframe Charges-not MTDC",421940]
[null,null,null,null,null,null,null,null,422006,"*Imputed Interest-not MTDC",422006]
[null,null,null,null,null,null,null,null,422008,"*Restricted Funding-not MTDC",422008]
[null,null,null,null,null,null,null,null,422010,"*Year End Closing-not MTDC",422010]
[null,null,null,null,null,null,null,null,422050,"Expense Outstanding",422050]
[null,null,null,null,null,null,null,null,422055,"Expense Outstanding",422055]
[null,null,null,null,null,null,null,null,422060,"Field Expense Advance",422060]
[null,null,null,null,null,null,null,null,422065,"Travel Advance and Tickets",422065]
[null,null,null,null,null,null,null,null,422070,"*Prior Budget Period - F&A Adjustment",422070]
[null,null,null,null,null,null,null,null,422075,"RFP Suspense",422075]
[null,null,null,null,null,null,null,null,422100,"Budget 1",422100]
[null,null,null,null,null,null,null,null,422102,"Budget 2",422102]
[null,null,null,null,null,null,null,null,422104,"Budget 3",422104]
[null,null,null,null,null,null,null,null,422106,"Budget 4",422106]
[null,null,null,null,null,null,null,null,422108,"Budget 5",422108]
[null,null,null,null,null,null,null,null,422110,"Budget 6",422110]
[null,null,null,null,null,null,null,null,422112,"*Budget 7",422112]
[null,null,null,null,null,null,null,null,422114,"*Budget 8",422114]
[null,null,null,null,null,null,null,null,422116,"*Budget 9",422116]
[null,null,null,null,null,null,null,null,422118,"*Budget 10",422118]
[null,null,null,null,null,null,null,null,422120,"*Budget 11",422120]
[null,null,null,null,null,null,null,null,422122,"*Budget 12",422122]
[null,null,null,null,null,null,null,null,422124,"*Budget 13",422124]
[null,null,null,null,null,null,null,null,422126,"*Budget 14",422126]
[null,null,null,null,null,null,null,null,422128,"*Budget 15",422128]
[null,null,null,null,null,null,null,null,422130,"*Budget 16",422130]
[null,null,null,null,null,null,null,null,422132,"*Budget 17",422132]
[null,null,null,null,null,null,null,null,422134,"*Budget 18",422134]
[null,null,null,null,null,null,null,null,422136,"*Budget 19",422136]
[null,null,null,null,null,null,null,null,422138,"*Budget 20",422138]
[null,null,null,null,null,null,null,null,422140,"*Budget 21",422140]
[null,null,null,null,null,null,null,null,422142,"*Budget 22",422142]
[null,null,null,null,null,null,null,null,422144,"*Budget 23",422144]
[null,null,null,null,null,null,null,null,422146,"*Budget 24",422146]
[null,null,null,null,null,null,null,null,422148,"*Budget 25",422148]
[null,null,null,null,null,null,null,null,422150,"*Budget 26",422150]
[null,null,null,null,null,null,null,null,422152,"*Budget 27",422152]
[null,null,null,null,null,null,null,null,422154,"*Budget 28",422154]
[null,null,null,null,null,null,null,null,422156,"*Budget 29",422156]
[null,null,null,null,null,null,null,null,422158,"*Budget 30",422158]
[null,null,null,null,null,null,null,null,422160,"*Budget 31",422160]
[null,null,null,null,null,null,null,null,422162,"*Budget 32",422162]
[null,null,null,null,null,null,null,null,422164,"*Budget 33",422164]
[null,null,null,null,null,null,null,null,422166,"*Budget 34",422166]
[null,null,null,null,null,null,null,null,422168,"*Budget 35",422168]
[null,null,null,null,null,null,null,null,422170,"*Budget 36",422170]
[null,null,null,null,null,null,null,null,422172,"Other Transactions",422172]
[null,null,null,null,null,null,null,null,422200,"Employer Social Security Tax - Campus",422200]
[null,null,null,null,null,null,null,null,422210,"Employer Social Security Tax -Lincoln Lab",422210]
[null,null,null,null,null,null,null,null,422220,"Unemployment Tax Expense",422220]
[null,null,null,null,null,null,null,null,422221,"Custom Duties / Import Levies Expense-SING",422221]
[null,null,null,null,null,null,null,null,422222,"Singapore GST Expense",422222]
[null,null,null,null,null,null,null,null,422300,"Other Charges",422300]
[null,null,null,null,null,null,null,null,422305,"Scholarships-not MTDC",422305]
[null,null,null,null,null,null,null,null,422310,"Tuition-RA-not MTDC",422310]
[null,null,null,null,null,null,null,null,422311,"Tuition-Other-not MTDC",422311]
[null,null,null,null,null,null,null,null,422312,"TA Extended Medical Insurance",422312]
[null,null,null,null,null,null,null,null,422313,"RA Extended Medical Insurance",422313]
[null,null,null,null,null,null,null,null,422314,"Fellows Extended Medical Insurance-not MTDC",422314]
[null,null,null,null,null,null,null,null,422315,"Grad Student Fellow Stipends-not MTDC",422315]
[null,null,null,null,null,null,null,null,422316,"Post-Doctoral Fellows Medical & Dental",422316]
[null,null,null,null,null,null,null,null,422320,"Undergrad Student Fees-not MTDC",422320]
[null,null,null,null,null,null,null,null,422325,"Educational Plant-not MTDC",422325]
[null,null,null,null,null,null,null,null,422326,"Principal Repayment Funding-not MTDC",422326]
[null,null,null,null,null,null,null,null,422330,"Advance From Current Funds",422330]
[null,null,null,null,null,null,null,null,422335,"Payment to Beneficiary",422335]
[null,null,null,null,null,null,null,null,422336,"Withdrawals and Deceased Withdrawals",422336]
[null,null,null,null,null,null,null,null,422337,"Transfer to Hartford",422337]
[null,null,null,null,null,null,null,null,422338,"Transfer to TIAA/CREF",422338]
[null,null,null,null,null,null,null,null,422339,"Rebate Expense",422339]
[null,null,null,null,null,null,null,null,422340,"Costs in Research Volume-not MTDC",422340]
[null,null,null,null,null,null,null,null,422342,"Costs in Excess of Award Total-not MTDC",422342]
[null,null,null,null,null,null,null,null,422400,"Air Balancing-not MTDC",422400]
[null,null,null,null,null,null,null,null,422401,"Air Compressors-not MTDC",422401]
[null,null,null,null,null,null,null,null,422402,"Alarm Sys Parts,Service&Repair-not MTDC",422402]
[null,null,null,null,null,null,null,null,422403,"Architect & Engineer Predesign-not MTDC",422403]
[null,null,null,null,null,null,null,null,422404,"Archit & Engineer Addtnl Service-no MTDC",422404]
[null,null,null,null,null,null,null,null,422405,"Archit & Engineer Programming-not MTDC",422405]
[null,null,null,null,null,null,null,null,422406,"Architect & Engineer Reimbursbl-no MTDC",422406]
[null,null,null,null,null,null,null,null,422407,"Archit & Engineer Travel Costs-no MTDC",422407]
[null,null,null,null,null,null,null,null,422408,"Art Allowance-not MTDC",422408]
[null,null,null,null,null,null,null,null,422409,"Asbestos Abatement-not MTDC",422409]
[null,null,null,null,null,null,null,null,422410,"Pre-construction cost estimate-not MTDC",422410]
[null,null,null,null,null,null,null,null,422411,"Capital Projects Misc FFE Costs-not MTDC",422411]
[null,null,null,null,null,null,null,null,422412,"DCS Miscellaneous Soft Costs-not MTDC",422412]
[null,null,null,null,null,null,null,null,422413,"Drains-not MTDC",422413]
[null,null,null,null,null,null,null,null,422414,"Emergency Generators-not MTDC",422414]
[null,null,null,null,null,null,null,null,422415,"Environmental Assessement-not MTDC",422415]
[null,null,null,null,null,null,null,null,422416,"Fans & Motors-not MTDC",422416]
[null,null,null,null,null,null,null,null,422417,"Geotechnical Investigations-not MTDC",422417]
[null,null,null,null,null,null,null,null,422418,"Hazardous Materials Services-not MTDC",422418]
[null,null,null,null,null,null,null,null,422419,"High Voltage Cable-not MTDC",422419]
[null,null,null,null,null,null,null,null,422420,"HVAC Filters-not MTDC",422420]
[null,null,null,null,null,null,null,null,422421,"Insulation-not MTDC",422421]
[null,null,null,null,null,null,null,null,422422,"Lab & Industrial Waste Water-not MTDC",422422]
[null,null,null,null,null,null,null,null,422423,"License, Registration, Permit-not MTDC",422423]
[null,null,null,null,null,null,null,null,422424,"Light Installation Parts/Repair-not MTDC",422424]
[null,null,null,null,null,null,null,null,422425,"Oil Burners-not MTDC",422425]
[null,null,null,null,null,null,null,null,422426,"Pest Control/Extermination-not MTDC",422426]
[null,null,null,null,null,null,null,null,422427,"Preconstruction CM Services-not MTDC",422427]
[null,null,null,null,null,null,null,null,422428,"Pressure Valves-not MTDC",422428]
[null,null,null,null,null,null,null,null,422429,"Pumps-not MTDC",422429]
[null,null,null,null,null,null,null,null,422430,"Refrigeration-not MTDC",422430]
[null,null,null,null,null,null,null,null,422431,"Resource Conservation Expense-not MTDC",422431]
[null,null,null,null,null,null,null,null,422432,"RODI Stills-not MTDC",422432]
[null,null,null,null,null,null,null,null,422433,"Telelift-not MTDC",422433]
[null,null,null,null,null,null,null,null,422434,"Temperature Control-not MTDC",422434]
[null,null,null,null,null,null,null,null,422435,"Water Treatment-not MTDC",422435]
[null,null,null,null,null,null,null,null,422436,"Trash/Waste Removal-not MTDC",422436]
[null,null,null,null,null,null,null,null,422437,"401h contribution",422437]
[null,null,null,null,null,null,null,null,430025,"Gain/Loss on Sale of Fixed Assets",430025]
[null,null,null,null,null,null,null,null,430026,"Gain/Loss on Scrapping of Assets",430026]
[null,null,null,null,null,null,null,null,430048,"Depreciation Expense Computer Equiptment > $4k",430048]
[null,null,null,null,null,null,null,null,431015,"Dep Exp: Lease Improvements",431015]
[null,null,null,null,null,null,null,null,431016,"Depreciation Expense Lab Equipment",431016]
[null,null,null,null,null,null,null,null,400712,"*Research Assistant CWSP-Off",400712]
[null,null,null,null,null,null,null,null,400750,"Student Support-On",400750]
[null,null,null,null,null,null,null,null,400752,"Student Support-Off",400752]
[null,null,null,null,null,null,null,null,400754,"MIT Students-On",400754]
[null,null,null,null,null,null,null,null,400755,"MIT Students-On Reduced EB",400755]
[null,null,null,null,null,null,null,null,400756,"MIT Students-Off",400756]
[null,null,null,null,null,null,null,null,400757,"Student Technology Consultants-On",400757]
[null,null,null,null,null,null,null,null,400758,"Desk Students-On",400758]
[null,null,null,null,null,null,null,null,400759,"MIT Students-Off Reduced EB",400759]
[null,null,null,null,null,null,null,null,400760,"*Dorm Patrol Students-On",400760]
[null,null,null,null,null,null,null,null,400762,"MIT Students Housekeeping-On",400762]
[null,null,null,null,null,null,null,null,400764,"MIT Students Telephone-On",400764]
[null,null,null,null,null,null,null,null,400766,"*Teaching Assistant-On",400766]
[null,null,null,null,null,null,null,null,400768,"Undergrad S&W UROP-Off",400768]
[null,null,null,null,null,null,null,null,400769,"Undergrad S&W UROP-Off Reduced EB",400769]
[null,null,null,null,null,null,null,null,400770,"Undergrad S&W UROP-On",400770]
[null,null,null,null,null,null,null,null,400771,"Undergrad S&W UROP-On Reduced EB",400771]
[null,null,null,null,null,null,null,null,400772,"*Undergrad Student-CWSP-DELETE",400772]
[null,null,null,null,null,null,null,null,400774,"*Undergrad Student CWSP-Off-DELETE",400774]
[null,null,null,null,null,null,null,null,400776,"*Desk Students - CWSP - DELETE",400776]
[null,null,null,null,null,null,null,null,400778,"*Dorm Patrol Student CWSP-DELETE",400778]
[null,null,null,null,null,null,null,null,400780,"*Linen Students - CWSP - DELETE",400780]
[null,null,null,null,null,null,null,null,400782,"*Telephone Student - CWSP - DELETE",400782]
[null,null,null,null,null,null,null,null,400784,"*Teaching Assistant - CWSP - DELETE",400784]
[null,null,null,null,null,null,null,null,400786,"*Undergrad-UROP-CWSP-Off-DELETE",400786]
[null,null,null,null,null,null,null,null,400788,"*Undergrad-URO-CWSP-On-DELETE",400788]
[null,null,null,null,null,null,null,null,400790,"*Graduate Salaries-CWSP-On-DELETE",400790]
[null,null,null,null,null,null,null,null,400792,"*Graduate Salaries-CWSP-Off-DELETE",400792]
[null,null,null,null,null,null,null,null,400794,"*Undergrad Salaries - CWSP - On - DELETE",400794]
[null,null,null,null,null,null,null,null,400796,"*CWSP Credit-No F&A-DELETE",400796]
[null,null,null,null,null,null,null,null,400798,"*CWSP Credit-On-DELETE",400798]
[null,null,null,null,null,null,null,null,400800,"Rewards & Recognition Comp-not MTDC",400800]
[null,null,null,null,null,null,null,null,400801,"Prizes & Awards Compensation",400801]
[null,null,null,null,null,null,null,null,400802,"Other Compensation - No EB",400802]
[null,null,null,null,null,null,null,null,400803,"Travel - Taxable Benefit",400803]
[null,null,null,null,null,null,null,null,400804,"Other Taxable Benefits-No EB",400804]
[null,null,null,null,null,null,null,null,400805,"Child Care Scholarship",400805]
[null,null,null,null,null,null,null,null,400806,"Other Compensation - Off-No EB-No F&A",400806]
[null,null,null,null,null,null,null,null,400810,"*Budget Adjustment-not MTDC",400810]
[null,null,null,null,null,null,null,null,400812,"Unallowable Salaries-On-not MTDC",400812]
[null,null,null,null,null,null,null,null,401250,"Administrative Staff Salaries",401250]
[null,null,null,null,null,null,null,null,401350,"Research Staff Salary-Off MIT Campus",401350]
[null,null,null,null,null,null,null,null,401351,"Research Staff Salary-On MIT Campus",401351]
[null,null,null,null,null,null,null,null,401352,"Academic Salary-Off MIT Campus",401352]
[null,null,null,null,null,null,null,null,401390,"Other Research Salary",401390]
[null,null,null,null,null,null,null,null,401602,"Support Staff Salary",401602]
[null,null,null,null,null,null,null,null,401706,"Research Asst-for use in SING only",401706]
[null,null,null,null,null,null,null,null,401754,"Students-Other-for use in SING only",401754]
[null,null,null,null,null,null,null,null,401755,"Summer Faculty-Off MIT Campus",401755]
[null,null,null,null,null,null,null,null,401756,"Special Prog Comp-On MIT campus",401756]
[null,null,null,null,null,null,null,null,401757,"Special Prog Comp-Off MIT campus",401757]
[null,null,null,null,null,null,null,null,420000,"Vacation Accrual Staff",420000]
[null,null,null,null,null,null,null,null,420005,"Vacation Accrual Hourly",420005]
[null,null,null,null,null,null,null,null,420010,"Vacation Accrual - 15th",420010]
[null,null,null,null,null,null,null,null,420015,"Special Clinic Doctors",420015]
[null,null,null,null,null,null,null,null,420020,"Clinic Doctors",420020]
[null,null,null,null,null,null,null,null,420025,"Physical Exam Doctors",420025]
[null,null,null,null,null,null,null,null,420026,"Ambulance Services",420026]
[null,null,null,null,null,null,null,null,420027,"Medical Supplies",420027]
[null,null,null,null,null,null,null,null,420030,"Operating Room Expenses",420030]
[null,null,null,null,null,null,null,null,420050,"Travel Expenses",420050]
[null,null,null,null,null,null,null,null,420052,"Lodging-Intercollegiate Athletics only",420052]
[null,null,null,null,null,null,null,null,420060,"Travel-not MTDC",420060]
[null,null,null,null,null,null,null,null,420070,"Travel-Foreign Expenses",420070]
[null,null,null,null,null,null,null,null,420071,"Travel-Foreign/Designator Code/CodeShare",420071]
[null,null,null,null,null,null,null,null,420080,"Travel-Unallowable Cost",420080]
[null,null,null,null,null,null,null,null,420081,"Travel-Professional Development",420081]
[null,null,null,null,null,null,null,null,420090,"Travel-Unallowable Cost-Foreign",420090]
[null,null,null,null,null,null,null,null,420100,"Administration",420100]
[null,null,null,null,null,null,null,null,420102,"Animal Care",420102]
[null,null,null,null,null,null,null,null,420104,"Animal Purchases",420104]
[null,null,null,null,null,null,null,null,420106,"Audio Visual Expense",420106]
[null,null,null,null,null,null,null,null,420110,"Binding",420110]
[null,null,null,null,null,null,null,null,420112,"*British Taxes",420112]
[null,null,null,null,null,null,null,null,420114,"Carryforwards - Budget Only",420114]
[null,null,null,null,null,null,null,null,420116,"Building Cleaning System",420116]
[null,null,null,null,null,null,null,null,420120,"Building Support System",420120]
[null,null,null,null,null,null,null,null,420124,"Calibration Expense",420124]
[null,null,null,null,null,null,null,null,420126,"Ceiling",420126]
[null,null,null,null,null,null,null,null,420127,"Biological Materials",420127]
[null,null,null,null,null,null,null,null,420128,"Chemicals",420128]
[null,null,null,null,null,null,null,null,420129,"Radiological Materials",420129]
[null,null,null,null,null,null,null,null,420130,"China, Glass, Silver, Utensils",420130]
[null,null,null,null,null,null,null,null,420131,"Prof Development/Training",420131]
[null,null,null,null,null,null,null,null,420132,"Cleaning Supplies",420132]
[null,null,null,null,null,null,null,null,420133,"Recruitment/Placement Fees & Expenses",420133]
[null,null,null,null,null,null,null,null,420134,"Cleaning Supplies",420134]
[null,null,null,null,null,null,null,null,420136,"Commissions",420136]
[null,null,null,null,null,null,null,null,420137,"Honoraria/Speaker Fees",420137]
[null,null,null,null,null,null,null,null,420138,"Composition Engraving Plate",420138]
[null,null,null,null,null,null,null,null,420140,"Conference Expenses",420140]
[null,null,null,null,null,null,null,null,420142,"Cost of Goods Sold",420142]
[null,null,null,null,null,null,null,null,420144,"Sponsored Study Participant Costs-not MTDC",420144]
[null,null,null,null,null,null,null,null,420146,"Course Material",420146]
[null,null,null,null,null,null,null,null,420150,"Department Supplement",420150]
[null,null,null,null,null,null,null,null,420152,"Depreciation-not MTDC",420152]
[null,null,null,null,null,null,null,null,420154,"Design and Artwork",420154]
[null,null,null,null,null,null,null,null,420156,"*Drafted-not MTDC",420156]
[null,null,null,null,null,null,null,null,420157,"Drugs & Pharmaceuticals",420157]
[null,null,null,null,null,null,null,null,420160,"Electrical Components",420160]
[null,null,null,null,null,null,null,null,420162,"Electrical System",420162]
[null,null,null,null,null,null,null,null,420164,"Elevators-not MTDC",420164]
[null,null,null,null,null,null,null,null,420166,"Entertainment",420166]
[null,null,null,null,null,null,null,null,420168,"Exhibits",420168]
[null,null,null,null,null,null,null,null,420172,"Fellowship Expense",420172]
[null,null,null,null,null,null,null,null,420174,"Field Expense",420174]
[null,null,null,null,null,null,null,null,420176,"Field Expense - Blocked for posting",420176]
[null,null,null,null,null,null,null,null,420178,"Flooring",420178]
[null,null,null,null,null,null,null,null,420182,"Fuel & Lubricants",420182]
[null,null,null,null,null,null,null,null,420184,"Graphics & Signage",420184]
[null,null,null,null,null,null,null,null,420186,"Grounds",420186]
[null,null,null,null,null,null,null,null,420188,"Grounds Labor",420188]
[null,null,null,null,null,null,null,null,420190,"Grounds/Moving",420190]
[null,null,null,null,null,null,null,null,420194,"*Industrial Surcharge",420194]
[null,null,null,null,null,null,null,null,499018,"Forecast - Unallowable Salary - People Cube",499018]
[null,null,null,null,null,null,null,null,499019,"Forecast - S&W Allocation - Input",499019]
[null,null,null,null,null,null,null,null,499020,"Forecast - S&W Allocation - People Cube",499020]
[null,null,null,null,null,null,null,null,499021,"Forecast - Vacation Accrul - Input",499021]
[null,null,null,null,null,null,null,null,499022,"Forecast - Vacation Accrual - People Cube",499022]
[null,null,null,null,null,null,null,null,499023,"Forecast - Other Compensation - Input",499023]
[null,null,null,null,null,null,null,null,499024,"Forecast - Other Compensation - People Cube",499024]
[null,null,null,null,null,null,null,null,499025,"Forecast - Student Salaries - Input",499025]
[null,null,null,null,null,null,null,null,499026,"Forecast - Student Salaries - People Cube",499026]
[null,null,null,null,null,null,null,null,499027,"Forecast - Undergraduate Salaries - Input",499027]
[null,null,null,null,null,null,null,null,499028,"Forecast - Undergraduate Salaries - People Cube",499028]
[null,null,null,null,null,null,null,null,499029,"Forecast - Research Assistants - Input",499029]
[null,null,null,null,null,null,null,null,499030,"Forecast - Research Assistants - People Cube",499030]
[null,null,null,null,null,null,null,null,499031,"Forecast - EB - People Cube",499031]
[null,null,null,null,null,null,null,null,499032,"Forecast - F&A - People Cube",499032]
[null,null,null,null,null,null,null,null,499033,"Forecast - M&S Allocation - Input",499033]
[null,null,null,null,null,null,null,null,499034,"Forecast - M&S Allocation - People Cube",499034]
[null,null,null,null,null,null,null,null,600500,"Settlement - Life Income Accounts",600500]
[null,null,null,null,null,null,null,null,600506,"CHANGE TO AVAILABLE FOR USE",600506]
[null,null,null,null,null,null,null,null,600507,"CHANGE TO AVAILABLE FOR USE",600507]
[null,null,null,null,null,null,null,null,600510,"Settlement - F&A Under/Over-recovery to CIP",600510]
[null,null,null,null,null,null,null,null,600511,"Settlement - Accounts Receivable",600511]
[null,null,null,null,null,null,null,null,600512,"Settlement - Contracts in Progress",600512]
[null,null,null,null,null,null,null,null,600513,"Settlement - Inventories",600513]
[null,null,null,null,null,null,null,null,600514,"Settlement - Deferred Charges Other",600514]
[null,null,null,null,null,null,null,null,600515,"Settlement - Deferred Charges Suspense",600515]
[null,null,null,null,null,null,null,null,600516,"Settlement -  Deferred Charges Clearing",600516]
[null,null,null,null,null,null,null,null,600517,"Settlement - Student Notes Receivables",600517]
[null,null,null,null,null,null,null,null,600518,"Settlement - Plant Assets",600518]
[null,null,null,null,null,null,null,null,600519,"Settlement - Liabilities",600519]
[null,null,null,null,null,null,null,null,600520,"Settlement - Pledges Receivable",600520]
[null,null,null,null,null,null,null,null,600521,"Deferred Subscription Liability Settlement",600521]
[null,null,null,null,null,null,null,null,600522,"Settlement-Cash",600522]
[null,null,null,null,null,null,null,null,600523,"Settlement-Investments",600523]
[null,null,null,null,null,null,null,null,600525,"CHANGE TO AVAILABLE FOR USE",600525]
[null,null,null,null,null,null,null,null,600526,"CHANGE TO AVAILABLE FOR USE",600526]
[null,null,null,null,null,null,null,null,600530,"CHANGE TO AVAILABLE FOR USE",600530]
[null,null,null,null,null,null,null,null,600803,"ML- SETL - RVTR",600803]
[null,null,null,null,null,null,null,null,600804,"ML- SETL - PRINCIPAL",600804]
[null,null,null,null,null,null,null,null,600805,"ML- SETL - SETTLEMENT",600805]
[null,null,null,null,null,null,null,null,600806,"Fund to Fund Settlement",600806]
[null,null,null,null,null,null,null,null,600807,"Legal Services",600807]
[null,null,null,null,null,null,null,null,600810,"SDP Salaries & Wages",600810]
[null,null,null,null,null,null,null,null,600811,"SDP Employee Benefits",600811]
[null,null,null,null,null,null,null,null,600812,"SDP Professional Services",600812]
[null,null,null,null,null,null,null,null,600813,"SDP All Other Expenses",600813]
[null,null,null,null,null,null,null,null,"N/A","Not Applicable","N/A"]
[null,null,null,null,null,null,null,null,600531,"CHANGE TO AVAILABLE FOR USE",600531]
[null,null,null,null,null,null,null,null,600532,"CHANGE TO AVAILABLE FOR USE",600532]
[null,null,null,null,null,null,null,null,800000,"*Principal Balance 7/1/66",800000]
[null,null,null,null,null,null,null,null,800001,"Gifts-Principal",800001]
[null,null,null,null,null,null,null,null,800002,"Pledge Revenue-Permanently Restricted",800002]
[null,null,null,null,null,null,null,null,800003,"*Principal Gift Pledge Received",800003]
[null,null,null,null,null,null,null,null,800004,"PR - Other Receipts",800004]
[null,null,null,null,null,null,null,null,800005,"*Principal Royalty Revenue",800005]
[null,null,null,null,null,null,null,null,800006,"Payment on Pledge In-Principal",800006]
[null,null,null,null,null,null,null,null,800007,"Payment on Pledge Out-Principal",800007]
[null,null,null,null,null,null,null,null,800008,"Realized Gain Or Loss-endow. funds",800008]
[null,null,null,null,null,null,null,null,800009,"*Principal Gain Distribution",800009]
[null,null,null,null,null,null,null,null,800010,"PR - Transferred In",800010]
[null,null,null,null,null,null,null,null,800011,"PR - Transferred Out",800011]
[null,null,null,null,null,null,null,null,800012,"Investment Income-Principal",800012]
[null,null,null,null,null,null,null,null,800013,"Pool A Book Value Adjustment",800013]
[null,null,null,null,null,null,null,null,800014,"Actuarial Adjustment- Unrealized",800014]
[null,null,null,null,null,null,null,null,800015,"Unrealized Gain Or Loss-endow. funds",800015]
[null,null,null,null,null,null,null,null,800016,"Unrealized Gain Or Loss-Open Futures Contracts",800016]
[null,null,null,null,null,null,null,null,800300,"*Balance 7/1/66",800300]
[null,null,null,null,null,null,null,null,800301,"Please send to Gift Department",800301]
[]
[null,null,null,null,null,null,null,null,800302,"*Gifts Received Against Pledges",800302]
[null,null,null,null,null,null,null,null,800303,"Other Receipts",800303]
[null,null," ",null,null,null,null,null,800304,"Fee Income",800304]
[null,null,null,null,null,null,null,null,800305,"Appropriation of Operating Revenue",800305]
[null,null,null,null,null,null,null,null,800306,"*Appropriation of Research Revenue",800306]
[null,null,null,null,null,null,null,null,800307,"Deposits",800307]
[null,null,null,null,null,null,null,null,800308,"Interest Income",800308]
[null,null,null,null,null,null,null,null,800309,"Rental and Lease Income",800309]
[null,null,null,null,null,null,null,null,800310,"Gifts Returned to Donor",800310]
[null,null,null,null,null,null,null,null,800311,"Expense Reimbursement",800311]
[null,null,null,null,null,null,null,null,800312,"Sponsor-Funded Student Aid",800312]
[null,null,null,null,null,null,null,null,800313,"Royalty Revenues",800313]
[null,null,null,null,null,null,null,null,800314,"Publications Revenue",800314]
[null,null,null,null,null,null,null,null,800315,"*Sale of Equipment",800315]
[null,null,null,null,null,null,null,null,800316,"Realized Gain/Loss - expend. fund",800316]
[null,null,null,null,null,null,null,null,800317,"*Distribution of Gains",800317]
[null,null,null,null,null,null,null,null,800318,"Investment Income A",800318]
[null,null,null,null,null,null,null,null,800319,"*Investment Income B",800319]
[null,null,null,null,null,null,null,null,800320,"Investment Income C",800320]
[null,null,null,null,null,null,null,null,800321,"Investment Income",800321]
[null,null,null,null,null,null,null,null,800322,"Investment Income-Distributed to Funds",800322]
[null,null,null,null,null,null,null,null,800323,"Investment Income Received",800323]
[null,null,null,null,null,null,null,null,800324,"Investment Income Special",800324]
[null,null,null,null,null,null,null,null,800325,"Transferred In",800325]
[null,null,null,null,null,null,null,null,800326,"Transferred Out",800326]
[null,null,null,null,null,null,null,null,800327,"*Billed to Sponsor",800327]
[null,null,null,null,null,null,null,null,800328,"*F&A Returned to Fund",800328]
[null,null,null,null,null,null,null,null,800329,"*Reclass - Fund Restriction - In",800329]
[null,null,null,null,null,null,null,null,800330,"Payment on Pledge In-Expendable UNR",800330]
[null,null,null,null,null,null,null,null,800331,"Payment on Pledge Out-Expendable Temp to Unr",800331]
[null,null,null,null,null,null,null,null,800332,"*Gifts",800332]
[null,null,null,null,null,null,null,null,800333,"UR - Transfer In - Principal",800333]
[null,null,null,null,null,null,null,null,800334,"UR - Transfer Out - Principal",800334]
[null,null,null,null,null,null,null,null,800335,"Internal Interest Income",800335]
[null,null,null,null,null,null,null,null,800336,"Unrealized Gain/Loss-expend. funds",800336]
[null,null,null,null,null,null,null,null,800337,"Royalty Revenues-Trademarks",800337]
[null,null,null,null,null,null,null,null,800338,"Expense Reimbursement-Domestic Patents",800338]
[null,null,null,null,null,null,null,null,800339,"Expense Reimbursements-Foreign Patents",800339]
[null,null,null,null,null,null,null,null,800340,"Real Estate Gifts",800340]
[null,null,null,null,null,null,null,null,800341,"Guaranteed Annuity Income",800341]
[null,null,null,null,null,null,null,null,800342,"Unrealized Appr/Depr",800342]
[null,null,null,null,null,null,null,null,800343,"Unrealized Gain/Loss-on investments",800343]
[null,null,null,null,null,null,null,null,800344,"Unrealized Appr/Depr-on income receivables",800344]
[null,null,null,null,null,null,null,null,800345,"Employer contribution Rec'd - 401 account",800345]
[null,null,null,null,null,null,null,null,800346,"Investment Gain & Loss - 401h",800346]
[null,null,null,null,null,null,null,null,800347,"Investment income contra - 401h",800347]
[null,null,null,null,null,null,null,null,800360,"Forfeitures to MIT",800360]
[null,null,null,null,null,null,null,null,800361,"Transfer from Custodian for Fixed Annuity Benefits",800361]
[null,null,null,null,null,null,null,null,800362,"Transfer from Custodian for Other",800362]
[null,null,null,null,null,null,null,null,800400,"Pledge Revenue",800400]
[null,null,null,null,null,null,null,null,800401,"Payment on Pledge In-Expendable Temp",800401]
[null,null,null,null,null,null,null,null,800402,"Payment on Pledge Out-Expendable Temp",800402]
[null,null,null,null,null,null,null,null,800403,"*Reclass - Fund Restriction - Out",800403]
[null,null,null,null,null,null,null,null,800411,"Internal Expense Reimbursement",800411]
[null,null,null,null,null,null,null,null,800500,"edX Certificates Revenue",800500]
[null,null,null,null,null,null,null,null,800501,"edX Course Revenue",800501]
[null,null,null,null,null,null,null,null,800502,"edx Supported Course Revenue",800502]
[null,null,null,null,null,null,null,null,800503,"edX Services Revenue",800503]
[null,null,null,null,null,null,null,null,800504,"edX Subscription Revenue",800504]
[null,null,null,null,null,null,null,null,800505,"edX Software License Revenue",800505]
[null,null,null,null,null,null,null,null,800506,"edX Exam Proctoring Revenue",800506]
[null,null,null,null,null,null,null,null,800507,"edX Other Revenue",800507]
[null,null,null,null,null,null,null,null,800508,"edX Textbooks Revenue",800508]
[null,null,null,null,null,null,null,null,800600,"Sponsored Billings",800600]
[null,null,null,null,null,null,null,null,800601,"Sponsored Gifts",800601]
[null,null,null,null,null,null,null,null,800602,"Sponsored Revenue Recognized",800602]
[null,null,null,null,null,null,null,null,800603,"Sponsored Billing-Intercompany for Singapore",800603]
[null,null,null,null,null,null,null,null,800700,"*Cost Sharing - General",800700]
[null,null,null,null,null,null,null,null,800701,"Cost Sharing - Transfer In",800701]
[null,null,null,null,null,null,null,null,800702,"Cost Sharing - Transfer Out",800702]
[null,null,null,null,null,null,null,null,800703,"F&A Under/Over-recovery Funded Trans In",800703]
[null,null,null,null,null,null,null,null,800704,"F&A Under/Over-recovery Funded Trans Out",800704]
[null,null,null,null,null,null,null,null,800705,"Draft Transfer In",800705]
[null,null,null,null,null,null,null,null,800706,"Draft Transfer Out",800706]
[null,null,null,null,null,null,null,null,800707,"Expense Transfer In",800707]
[null,null,null,null,null,null,null,null,800708,"Expense Transfer Out",800708]
[null,null,null,null,null,null,null,null,800709,"Space Change Transfer In",800709]
[null,null,null,null,null,null,null,null,800710,"Space Change Transfer Out",800710]
[null,null,null,null,null,null,null,null,801000,"Audio Visual - Audio",801000]
[null,null,null,null,null,null,null,null,801001,"Audio Visual - Projection",801001]
[null,null,null,null,null,null,null,null,801002,"Audio Visual - Video",801002]
[null,null,null,null,null,null,null,null,801003,"*Billed To Sponsor",801003]
[null,null,null,null,null,null,null,null,801004,"Cash Over",801004]
[null,null,null,null,null,null,null,null,801005,"Cash Short",801005]
[null,null,null,null,null,null,null,null,801006,"Damage Control",801006]
[null,null,null,null,null,null,null,null,801007,"Dormitory Vacancy Loss",801007]
[null,null,null,null,null,null,null,null,801008,"*Income - General",801008]
[null,null,null,null,null,null,null,null,801009,"Equipment Rental Revenues",801009]
[null,null,null,null,null,null,null,null,801010,"Vending Machine Sales",801010]
[null,null,null,null,null,null,null,null,801011,"*Income - Other",801011]
[null,null,null,null,null,null,null,null,801012,"*Income - Deferred Payments",801012]
[null,null,null,null,null,null,null,null,801013,"Income - Late Payments",801013]
[null,null,null,null,null,null,null,null,801014,"*Income - Billiards",801014]
[null,null,null,null,null,null,null,null,801015,"*Income - Bowling",801015]
[null,null,null,null,null,null,null,null,801016,"*Income - Linen Service",801016]
[null,null,null,null,null,null,null,null,801017,"*Income-Operators",801017]
[null,null,null,null,null,null,null,null,801018,"Income - Outside Services",801018]
[null,null,null,null,null,null,null,null,801019,"Permissions Revenue",801019]
[null,null,null,null,null,null,null,null,801020,"Income-Subsidies",801020]
[null,null,null,null,null,null,null,null,801021,"Income - Building Usage",801021]
[null,null,null,null,null,null,null,null,801022,"*Income - Janitorial Services",801022]
[null,null,null,null,null,null,null,null,801023,"Meals & Alcohol Tax",801023]
[null,null,null,null,null,null,null,null,801024,"*Miscellaneous-Fall",801024]
[null,null,null,null,null,null,null,null,801025,"*Miscellaneous-Spring",801025]
[null,null,null,null,null,null,null,null,801026,"*Miscellaneous - Income",801026]
[null,null,null,null,null,null,null,null,801027,"*Offset To Materials and Services",801027]
[null,null,null,null,null,null,null,null,801028,"*Offset to Audio Visual",801028]
[null,null,null,null,null,null,null,null,801029,"*Offset To Shop Expense",801029]
[null,null,null,null,null,null,null,null,801030,"Regular Income - Fall",801030]
[null,null,null,null,null,null,null,null,801031,"Regular Income - Spring",801031]
[null,null,null,null,null,null,null,null,801032,"Regular Income - Summer",801032]
[null,null,null,null,null,null,null,null,801033,"Sales Backlist",801033]
[null,null,null,null,null,null,null,null,801034,"Sales London",801034]
[null,null,null,null,null,null,null,null,801035,"Sales",801035]
[null,null,null,null,null,null,null,null,801036,"*Sales - Non-Commissionable",801036]
[null,null,null,null,null,null,null,null,801037,"*Sales - Special Reminder",801037]
[null,null,null,null,null,null,null,null,801038,"Sales - Returns & Allowances",801038]
[null,null,null,null,null,null,null,null,801039,"*Sales - Cash",801039]
[null,null,null,null,null,null,null,null,801040,"Internal Sales - Steam",801040]
[null,null,null,null,null,null,null,null,801041,"Backlist Sales Returns & Allowances",801041]
[null,null,null,null,null,null,null,null,801042,"Dining Room Sales",801042]
[null,null,null,null,null,null,null,null,801043,"Snack Bar Sales",801043]
[null,null,null,null,null,null,null,null,801044,"Internal Catering Sales",801044]
[null,null,null,null,null,null,null,null,801045,"Internal Sales - Electricity",801045]
[null,null,null,null,null,null,null,null,801046,"Internal Revenue & Billing for Service",801046]
[null,null,null,null,null,null,null,null,801047,"Gain from Asset Sale",801047]
[null,null,null,null,null,null,null,null,801048,"Loss from Asset Sale",801048]
[null,null,null,null,null,null,null,null,801049,"Loss from Asset Sale Retirement",801049]
[null,null,null,null,null,null,null,null,801050,"Non Degree Program Fees",801050]
[null,null,null,null,null,null,null,null,801051,"Licensing Fees",801051]
[null,null,null,null,null,null,null,null,801052,"Advertising Revenue",801052]
[null,null,null,null,null,null,null,null,801053,"Subscriptions Revenue",801053]
[null,null,null,null,null,null,null,null,801054,"Transcript Fees",801054]
[null,null,null,null,null,null,null,null,801055,"Medical/Dental Insurance Revenue",801055]
[null,null,null,null,null,null,null,null,801056,"Parking - Employees",801056]
[null,null,null,null,null,null,null,null,801057,"Parking - Students",801057]
[null,null,null,null,null,null,null,null,801058,"Internal Billings - Equipment Rental",801058]
[null,null,null,null,null,null,null,null,801059,"Internal Billings - Insurance",801059]
[null,null,null,null,null,null,null,null,801060,"Internal Royalty Revenues",801060]
[null,null,null,null,null,null,null,null,801061,"Internal Billing Space Rental",801061]
[null,null,null,null,null,null,null,null,801062,"Internal Billings - Sales",801062]
[null,null,null,null,null,null,null,null,801063,"Conferences & Events Revenue",801063]
[null,null,null,null,null,null,null,null,801064,"Reprints Revenue",801064]
[null,null,null,null,null,null,null,null,801065,"Sales-Alcoholic Beverages",801065]
[null,null,null,null,null,null,null,null,801066,"Internet Advertising Revenue",801066]
[null,null,null,null,null,null,null,null,801067,"Single Copy Sales Revenue",801067]
[null,null,null,null,null,null,null,null,801068,"List Rental Revenue",801068]
[null,null,null,null,null,null,null,null,801069,"Recruitment Advertising Revenue",801069]
[null,null,null,null,null,null,null,null,801070,"Classified Advertising Revenue",801070]
[null,null,null,null,null,null,null,null,801071,"Rental/Lease Income-Students",801071]
[null,null,null,null,null,null,null,null,801072,"Subscriptions Revenue-Electronic",801072]
[null,null,null,null,null,null,null,null,801073,"Internal Sales-Other Utilities",801073]
[null,null,null,null,null,null,null,null,801074,"License Fees-Software End Use",801074]
[null,null,null,null,null,null,null,null,801075,"License Fees-Trademarks",801075]
[null,null,null,null,null,null,null,null,801076,"Reprints-Electronic",801076]
[null,null,null,null,null,null,null,null,801077,"Internal Billings-Subscriptions",801077]
[null,null,null,null,null,null,null,null,801078,"Student Activity Fee Revenue",801078]
[null,null,null,null,null,null,null,null,801079,"Student Dining Fee",801079]
[null,null,null,null,null,null,null,null,801080,"Loan Payments in excess of obligation",801080]
[null,null,null,null,null,null,null,null,801081,"Loan Payments on Assigned Loans",801081]
[null,null,null,null,null,null,null,null,801082,"Loan Payments on Cancelled Loans",801082]
[null,null,null,null,null,null,null,null,801083,"Other Academic Program Support",801083]
[null,null,null,null,null,null,null,null,801084,"License Fees-International",801084]
[null,null,null,null,null,null,null,null,801085,"Other Student Fees",801085]
[null,null,null,null,null,null,null,null,801086,"House Tax Revenue",801086]
[null,null,null,null,null,null,null,null,801095,"Pledge Discount",801095]
[null,null,null,null,null,null,null,null,801096,"Pledge Allowance",801096]
[null,null,null,null,null,null,null,null,801097,"Customer Discounts",801097]
[null,null,null,null,null,null,null,null,801098,"Agency Discounts",801098]
[null,null,null,null,null,null,null,null,801099,"Credit Card Fees",801099]
[null,null,null,null,null,null,null,null,801100,"Athletic Fees",801100]
[null,null,null,null,null,null,null,null,801101,"For future use",801101]
[null,null,null,null,null,null,null,null,801200,"Network Blue New England Insurance Revenue",801200]
[null,null,null,null,null,null,null,null,801201,"BCBS PPO Insurance Revenue",801201]
[null,null,null,null,null,null,null,null,801202,"Tufts Insurance Revenue",801202]
[null,null,null,null,null,null,null,null,801203,"MIT Flexible Insurance Revenue",801203]
[null,null,null,null,null,null,null,null,801204,"MIT Traditional Insurance Revenue",801204]
[null,null,null,null,null,null,null,null,801205,"Medex Insurance Revenue",801205]
[null,null,null,null,null,null,null,null,801206,"MB65 Insurance Revenue",801206]
[null,null,null,null,null,null,null,null,801207,"Tufts Medicare Complement Insurance Revenue",801207]
[null,null,null,null,null,null,null,null,801208,"Tufts Medicare Preferred Insurance Revenue",801208]
[null,null,null,null,null,null,null,null,801209,"Delta Dental Insurance Revenue",801209]
[null,null,null,null,null,null,null,null,801210,"Eyemed Insurance Revenue",801210]
[null,null,null,null,null,null,null,null,801211,"MetLife-Frozen Insurance Revenue",801211]
[null,null,null,null,null,null,null,null,801212,"MetLife-Supplemental Insurance Revenue",801212]
[null,null,null,null,null,null,null,null,801213,"Crosby FSA Insurance Revenue",801213]
[null,null,null,null,null,null,null,null,801214,"Long Term Care Insurance Revenue",801214]
[null,null,null,null,null,null,null,null,801215,"Auto & Home Insurance Revenue",801215]
[null,null,null,null,null,null,null,null,801216,"Mass Health Connector Revenue",801216]
[null,null,null,null,null,null,null,null,801217,"Community Giving",801217]
[null,null,null,null,null,null,null,null,801218,"Community Service",801218]
[null,null,null,null,null,null,null,null,802000,"Inter-company Revenue - SING",802000]
[null,null,null,null,null,null,null,null,890001,"*A/R Downpayment - Customer",890001]
[null,null,null,null,null,null,null,null,890100,"AR MIT Revenue Account",890100]
[null,null,null,null,null,null,null,null,890110,"*AR Sponsored Billings",890110]
[null,null,null,null,null,null,null,null,891000,"Balance Cost Sharing",891000]
[null,null,null,null,null,null,null,null,891001,"Transfers Balancing",891001]
[null,null,null,null,null,null,null,null,891002,"Gain Distribution Operating",891002]
[null,null,null,null,null,null,null,null,891003,"Gain Distribution Non-Operating",891003]
[null,null,null,null,null,null,null,null,891004,"F&A Income Campus",891004]
[null,null,null,null,null,null,null,null,891005,"F&A Income Lincoln",891005]
[null,null,null,null,null,null,null,null,891006,"LIF Converted to Endowment",891006]
[null,null,null,null,null,null,null,null,891007,"Net change in Life Income Funds",891007]
[null,null,null,null,null,null,null,null,891008,"Research Revenue Direct - Campus",891008]
[null,null,null,null,null,null,null,null,891009,"Research Revenue Direct - Lincoln",891009]
[null,null,null,null,null,null,null,null,891010,"Tuition Discount",891010]
[null,null,null,null,null,null,null,null,891011,"Investment Income-Temporarily Restricted",891011]
[null,null,null,null,null,null,null,null,891012,"Net Asset Reclass operating",891012]
[null,null,null,null,null,null,null,null,891013,"Net Asset Reclass non-operating",891013]
[null,null,null,null,null,null,null,null,891014,"Gifts-Temp non operating",891014]
[null,null,null,null,null,null,null,null,891015,"Pension Related chrgsw/out net period. ben. cost",891015]
[null,null,null,null,null,null,null,null,891016,"SMART-Service Income",891016]
[null,null,null,null,null,null,null,null,900000,"Incoming Balance - 07/01/96",900000]
[null,null,null,null,null,null,null,null,900001,"MX System Feed - System Code 01",900001]
[null,null,null,null,null,null,null,null,900002,"Revenue Account Feed",900002]
[null,null,null,null,null,null,null,null,900005,"Incoming Balance - 07/01/96  P&L (No CE Attached)",900005]
[null,null,null,null,null,null,null,null,900009,"Payroll Staff Feed - System Code 09",900009]
[null,null,null,null,null,null,null,null,900010,"Payroll Confidential Feed - System Code 10",900010]
[null,null,null,null,null,null,null,null,900015,"Payroll Weekly Feed  - System Code 15",900015]
[null,null,null,null,null,null,null,null,900020,"Physical Plant Feed - System Code 20",900020]
[null,null,null,null,null,null,null,null,900025,"Student Accounts Receivable Feed - System Code 25",900025]
[null,null,null,null,null,null,null,null,900028,"Accounts Receivable Feed - System Code 28",900028]
[null,null,null,null,null,null,null,null,900030,"Cashier Office System Feed",900030]
[null,null,null,null,null,null,null,null,900033,"Investment Feed - System Code 33",900033]
[null,null,null,null,null,null,null,null,900035,"Travel Opening Detail",900035]
[null,null,null,null,null,null,null,null,900037,"Gift Feed Doc Type 40/SG",900037]
[null,null,null,null,null,null,null,null,900040,"Journal Voucher Feed - System Code 40",900040]
[null,null,null,null,null,null,null,null,900041,"Journal Voucher Closing Feed - System Code 41",900041]
[null,null,null,null,null,null,null,null,900043,"Allocation Expenses Feed - System Code 43",900043]
[null,null,null,null,null,null,null,null,900044,"Employee Benefits  Feed - System Code 44",900044]
[null,null,null,null,null,null,null,null,900045,"Billing Rates (OH) Feed - System Code 45",900045]
[null,null,null,null,null,null,null,null,900046,"Supplemental OH  Feed - System Code 46",900046]
[null,null,null,null,null,null,null,null,900080,"Accounts Payable Feed - System Code 80",900080]
[null,null,null,null,null,null,null,null,900090,"Telecommuncations Feed - System Code 90",900090]
[null,null,null,null,null,null,null,null,950001,"CUR/TECR cross-company clearing",950001]
[null,null,null,null,null,null,null,null,950002,"TECR/CUR cross-company clearing",950002]
[null,null,null,null,null,null,null,null,950003,"Advance from MIT",950003]
[null,null,null,null,null,null,null,null,950004," Advances to TECR",950004]
[null,null,null,null,null,null,null,null,950005,"Interco Notes Payable",950005]
[null,null,null,null,null,null,null,null,950006," Interco Notes Receivable",950006]
[null,null,null,null,null,null,null,null,950007,"CUR/REF cross-company clearing",950007]
[null,null,null,null,null,null,null,null,950008,"REF/CUR cross-company clearing",950008]
[null,null,null,null,null,null,null,null,950009,"CUR/DBP cross-company clearing",950009]
[null,null,null,null,null,null,null,null,950010,"RDBP/CUR cross-company clearing",950010]
[null,null,null,null,null,null,null,null,950012,"Third Party Remittance Clearing",950012]
[null,null,null,null,null,null,null,null,950013,"CUR/LCP1 cross-company clearing",950013]
[null,null,null,null,null,null,null,null,950014,"LCP1/CUR cross-company clearing",950014]
[null,null,null,null,null,null,null,null,950015,"CUR / SING Cross Company Clearing",950015]
[null,null,null,null,null,null,null,null,950016,"SING / CUR Cross Company Clearing",950016]
[null,null,null,null,null,null,null,null,950100,"ForEx - Intercompany Currency Adjustments",950100]
[null,null,null,null,null,null,null,null,600100,"Alloc S&W On-not MTDC",600100]
[null,null,null,null,null,null,null,null,600101,"Alloc S&W Off-not MTDC",600101]
[null,null,null,null,null,null,null,null,600102,"*Alloc Student S&W On",600102]
[null,null,null,null,null,null,null,null,600103,"*Alloc Student S&W Off",600103]
[null,null,null,null,null,null,null,null,600104,"Alloc M&S On-not MTDC",600104]
[null,null,null,null,null,null,null,null,600105,"Alloc M&S Off-not MTDC",600105]
[null,null,null,null,null,null,null,null,600106,"Alloc Utilities On-not MTDC",600106]
[null,null,null,null,null,null,null,null,600107,"Alloc Utilities Off-not MTDC",600107]
[null,null,null,null,null,null,null,null,600108,"*Alloc S&W On",600108]
[null,null,null,null,null,null,null,null,600109,"*Alloc S&W Off",600109]
[null,null,null,null,null,null,null,null,600110,"*Alloc Student Fund S&W On-not MTDC",600110]
[null,null,null,null,null,null,null,null,600111,"*Alloc Student Fund S&W Off-not MTDC",600111]
[null,null,null,null,null,null,null,null,600200,"*EB General On",600200]
[null,null,null,null,null,null,null,null,600201,"*EB General Off",600201]
[null,null,null,null,null,null,null,null,600202,"*EB Fund On",600202]
[null,null,null,null,null,null,null,null,600203,"*EB Fund Off",600203]
[null,null,null,null,null,null,null,null,600204,"EB On",600204]
[null,null,null,null,null,null,null,null,600205,"EB Off",600205]
[null,null,null,null,null,null,null,null,600206,"*EB General On  Adjust to Actual",600206]
[null,null,null,null,null,null,null,null,600207,"*EB General Off Adjust to Actual",600207]
[null,null,null,null,null,null,null,null,600208,"*EB Fund On  Adjust to Actual",600208]
[null,null,null,null,null,null,null,null,600209,"*EB Fund Off Adjust to Actual",600209]
[null,null,null,null,null,null,null,null,600210,"Adj EB On to Spon Rate",600210]
[null,null,null,null,null,null,null,null,600211,"Adj EB Off to Spon Rate",600211]
[null,null,null,null,null,null,null,null,600212,"*EB General UROP On",600212]
[null,null,null,null,null,null,null,null,600213,"*EB General UROP Off",600213]
[null,null,null,null,null,null,null,null,600214,"*EB Research UROP On",600214]
[null,null,null,null,null,null,null,null,600215,"*EB Research UROP Off",600215]
[null,null,null,null,null,null,null,null,600216,"*EB General UROP On Adjust to Actual",600216]
[null,null,null,null,null,null,null,null,600217,"*EB General UROP Off Adjust to Actual",600217]
[null,null,null,null,null,null,null,null,600218,"*EB Fund UROP On Adjust to Actual",600218]
[null,null,null,null,null,null,null,null,600219,"*EB Fund UROP Off Adjust to Actual",600219]
[null,null,null,null,null,null,null,null,600220,"*EB Research UROP On  Adjust to Actual",600220]
[null,null,null,null,null,null,null,null,600221,"*EB Research UROP Off Adjust to Actual",600221]
[null,null,null,null,null,null,null,null,600222,"*EB General On-not MTDC",600222]
[null,null,null,null,null,null,null,null,600223,"*EB General Off-not MTDC",600223]
[null,null,null,null,null,null,null,null,600224,"*EB Fund On-not MTDC",600224]
[null,null,null,null,null,null,null,null,600225,"*EB Fund Off-not MTDC",600225]
[null,null,null,null,null,null,null,null,600226,"EB On-not MTDC",600226]
[null,null,null,null,null,null,null,null,600227,"EB Off-not MTDC",600227]
[null,null,null,null,null,null,null,null,600228,"*EB General On Adjust to Actual-not MTDC",600228]
[null,null,null,null,null,null,null,null,600229,"*EB Gen Off Adjust to Actual-not MTDC",600229]
[null,null,null,null,null,null,null,null,600230,"*EB Fund On Adjust to Actual-not MTDC",600230]
[null,null,null,null,null,null,null,null,600231,"*EB Fund Off Adjust to Actual-not MTDC",600231]
[null,null,null,null,null,null,null,null,600232,"Adj EB On-not MTDC to Spon Rate",600232]
[null,null,null,null,null,null,null,null,600233,"Adj EB Off-not MTDC to Spon Rate",600233]
[null,null,null,null,null,null,null,null,600234,"*EB Fund UROP On-not MTDC",600234]
[null,null,null,null,null,null,null,null,600235,"*EB Fund UROP Off-not MTDC",600235]
[null,null,null,null,null,null,null,null,600236,"Res Vac Acc On",600236]
[null,null,null,null,null,null,null,null,600237,"Res Vac Acc Off",600237]
[null,null,null,null,null,null,null,null,600238,"Res Vac Acc On-not MTDC",600238]
[null,null,null,null,null,null,null,null,600239,"Res Vac Acc Off-not MTDC",600239]
[null,null,null,null,null,null,null,null,600300,"*F&A General MTDC On",600300]
[null,null,null,null,null,null,null,null,600301,"*F&A General MTDC Off",600301]
[null,null,null,null,null,null,null,null,600302,"*F&A Fund MTDC On",600302]
[null,null,null,null,null,null,null,null,600303,"*F&A Fund MTDC Off",600303]
[null,null,null,null,null,null,null,null,600304,"F&A On",600304]
[null,null,null,null,null,null,null,null,600305,"F&A Off",600305]
[null,null,null,null,null,null,null,null,600306,"*F&A General S&W On",600306]
[null,null,null,null,null,null,null,null,600307,"*F&A General S&W Off",600307]
[null,null,null,null,null,null,null,null,600308,"*F&A S&W On",600308]
[null,null,null,null,null,null,null,null,600309,"*F&A S&W Off",600309]
[null,null,null,null,null,null,null,null,600310,"*F&A Research S&W On",600310]
[null,null,null,null,null,null,null,null,600311,"*F&A Research S&W Off",600311]
[null,null,null,null,null,null,null,null,600312,"*F&A General MTDC On Adjust to Actual",600312]
[null,null,null,null,null,null,null,null,600313,"*F&A General MTDC Off Adjust to Actual",600313]
[null,null,null,null,null,null,null,null,600314,"*F&A Fund On  Adjust to Actual",600314]
[null,null,null,null,null,null,null,null,600315,"*F&A Fund Off Adjust to Actual",600315]
[null,null,null,null,null,null,null,null,600316,"Adj F&A On to Spon Base/Rate",600316]
[null,null,null,null,null,null,null,null,600317,"Adj F&A Off to Spon Base/Rate",600317]
[null,null,null,null,null,null,null,null,600318,"*F&A General S&W On Adjust to Actual",600318]
[null,null,null,null,null,null,null,null,600319,"*F&A General S&W Off Adjust to Actual",600319]
[null,null,null,null,null,null,null,null,600320,"*Adj F&A S&W On to Spon Base/Rate",600320]
[null,null,null,null,null,null,null,null,600321,"*Adj F&A S&W Off to Spon Base/Rate",600321]
[null,null,null,null,null,null,null,null,600322,"*F&A Research S&W On Adjust to Actual",600322]
[null,null,null,null,null,null,null,null,600323,"*F&A Research S&W Off Adjust to Actual",600323]
[null,null,null,null,null,null,null,null,600324,"F&A Supplemental On",600324]
[null,null,null,null,null,null,null,null,600325,"F&A Supplemental Off",600325]
[null,null,null,null,null,null,null,null,600350,"F&A Facilities Stockroom",600350]
[null,null,null,null,null,null,null,null,600400,"Fund Fee",600400]
[null,null,null,null,null,null,null,null,600401,"Adjust Fund Fee",600401]
[null,null,null,null,null,null,null,null,600450,"Building Cleaning Services Assessement",600450]
[null,null,null,null,null,null,null,null,600451,"Grounds / Moving  Assessement",600451]
[null,null,null,null,null,null,null,null,600452,"Campus Activities Complex Assessment",600452]
[null,null,null,null,null,null,null,null,600453,"CUP Common cost Breakdown Assessment",600453]
[null,null,null,null,null,null,null,null,600454,"DoF Repair & Maintenance Assessment",600454]
[null,null,null,null,null,null,null,null,600455,"IS Assessment Element",600455]
[null,null,null,null,null,null,null,null,600456,"Depreciation Assessment",600456]
[null,null,null,null,null,null,null,null,600457,"Interest Assessment",600457]
[null,null,null,null,null,null,null,null,600458,"IST to DSL",600458]
[null,null,null,null,null,null,null,null,600459,"CSG Services Assessment",600459]
[null,null,null,null,null,null,null,null,600475,"Facilities - Benefits Surcharge CGS",600475]
[null,null,null,null,null,null,null,null,600476,"DoF - Administrative Surcharge CGS",600476]
[null,null,null,null,null,null,null,null,600477,"DoF/Elec EB Surchrg",600477]
[null,null,null,null,null,null,null,null,600478,"DoF/Elec Admin Charg",600478]
[null,null,null,null,null,null,null,null,600479,"DoF/Carp EB Surcharg",600479]
[null,null,null,null,null,null,null,null,600480,"DoF/Carp Admin Charges",600480]
[null,null,null,null,null,null,null,null,600481,"DoF/HVAC EB Surcharg",600481]
[null,null,null,null,null,null,null,null,600482,"DoF/HVAC Admin Charges",600482]
[null,null,null,null,null,null,null,null,600483,"DoF/PIPE EB Surcharges",600483]
[null,null,null,null,null,null,null,null,600484,"DoF/PIPE Admin Charges",600484]
[null,null,null,null,null,null,null,null,600485,"DoF/PNTR EB Surcharges",600485]
[null,null,null,null,null,null,null,null,600486,"DoF/PNTR Admin Charges",600486]
[null,null,null,null,null,null,null,null,600487,"DoF/LOCK EB Surcharges",600487]
[null,null,null,null,null,null,null,null,600488,"DoF/LOCK Admin Charges",600488]
[null,null,null,null,null,null,null,null,600489,"DoF/METL EB Surcharges",600489]
[null,null,null,null,null,null,null,null,600490,"DoF/METL Admin Charges",600490]
[null,null,null,null,null,null,null,null,600491,"DoF/CSG Labor EB Surcharge",600491]
[null,null,null,null,null,null,null,null,600492,"DoF/CSG Labor Admin Charge",600492]
[null,null,null,null,null,null,null,null,600524,"WBS Settle to IO",600524]
[null,null,null,null,null,null,null,null,600600,"DCS/Capital Projects Settlement-not MTDC",600600]
[null,null,null,null,null,null,null,null,600601,"Custodial & Grounds IO Settle-not MTDC",600601]
[null,null,null,null,null,null,null,null,600602,"Campus Activit Complex IO Settl-not MTDC",600602]
[null,null,null,null,null,null,null,null,600603,"DoF Repair & Maint IO Settle-not MTDC",600603]
[null,null,null,null,null,null,null,null,600604,"Software Project Settlement",600604]
[null,null,null,null,null,null,null,null,600605,"IS Project Charges IO Settlement",600605]
[null,null,null,null,null,null,null,null,600607,"Visitor Parking-not MTDC",600607]
[null,null,null,null,null,null,null,null,600608,"MRO IO Settlement - Not MTDC",600608]
[null,null,null,null,null,null,null,null,600609,"MRO Plus IO Settlement Not MTDC",600609]
[null,null,null,null,null,null,null,null,600610,"CSG Cap. Renewal IO Settlemnt - Not MTDC",600610]
[null,null,null,null,null,null,null,null,600611,"CSG Operations IO Settlement Not MTDC",600611]
[null,null,null,null,null,null,null,null,600700,"Dof Project Administration",600700]
[null,null,null,null,null,null,null,null,600701,"DoF Custodial Labor Charges",600701]
[null,null,null,null,null,null,null,null,600702,"DoF Grounds Labor Charges",600702]
[null,null,null,null,null,null,null,null,600703,"DoF Movers' Labor Charges",600703]
[null,null,null,null,null,null,null,null,600704,"DoF Mechanics' Labor Charges",600704]
[null,null,null,null,null,null,null,null,600705,"DoF Campus Activit Complex Labor Charge",600705]
[null,null,null,null,null,null,null,null,600706,"DoF R&M Electrical Labor",600706]
[null,null,null,null,null,null,null,null,600707,"DoF Carpentry Labor",600707]
[null,null,null,null,null,null,null,null,600708,"DoF R&M HVAC Labor",600708]
[null,null,null,null,null,null,null,null,600709,"DoF R&M Plumb/Pipe Labor",600709]
[null,null,null,null,null,null,null,null,600710,"DoF Painting Labor",600710]
[null,null,null,null,null,null,null,null,600711,"DoF Locksmith Labor",600711]
[null,null,null,null,null,null,null,null,600712,"DoF Metal/Glass Labor",600712]
[null,null,null,null,null,null,null,null,600713,"DoF CSG Electrical Labor",600713]
[null,null,null,null,null,null,null,null,600714,"DOF CSG HVAC LABOR",600714]
[null,null,null,null,null,null,null,null,600715,"DOF CSG PLUMB/PIPE LABOR",600715]
[null,null,null,null,null,null,null,null,600750,"Steam-not MTDC",600750]
[null,null,null,null,null,null,null,null,600751,"Chilled Water-not MTDC",600751]
[null,null,null,null,null,null,null,null,600752,"Electricity-not MTDC",600752]
[null,null,null,null,null,null,null,null,600753,"Hot Water-not MTDC",600753]
[null,null,null,null,null,null,null,null,600760,"Visitor Parking-not MTDC",600760]
[null,null,null,null,null,null,null,null,600800,"ML- SETL - S&W EB",600800]
[null,null,null,null,null,null,null,null,600801,"ML- SETL - OPERATING EXPENSES",600801]
[null,null,null,null,null,null,null,null,600802,"ML- SETL - INDIRECT EXPENSE",600802]
[null,null,null,null,null,null,null,null,431019,"Depreciation Expense Office Equipment",431019]
[null,null,null,null,null,null,null,null,459800,"Contingency-not MTDC",459800]
[null,null,null,null,null,null,null,null,459801,"Contingency Firmcost-not MTDC",459801]
[null,null,null,null,null,null,null,null,459802,"Construction Phase Contingency-not MTDC",459802]
[null,null,null,null,null,null,null,null,459803,"Design Phase Contingency-not MTDC",459803]
[null,null,null,null,null,null,null,null,459804,"Unanticipated Cost-not MTDC",459804]
[null,null,null,null,null,null,null,null,480000,"Inter-company Expenses - CUR",480000]
[null,null,null,null,null,null,null,null,490001,"*A/P Downpayment - Vendor",490001]
[null,null,null,null,null,null,null,null,490100,"Correct Alloc S&W On-not MTDC",490100]
[null,null,null,null,null,null,null,null,490101,"Correct Alloc S&W Off-not MTDC",490101]
[null,null,null,null,null,null,null,null,490102,"*Technical or Admin Support - On",490102]
[null,null,null,null,null,null,null,null,490103,"*Technical or Admin Support - Off",490103]
[null,null,null,null,null,null,null,null,490104,"Allocated Expenses",490104]
[null,null,null,null,null,null,null,null,490105,"*Allocated Utilities-not MTDC",490105]
[null,null,null,null,null,null,null,null,490106,"*Allocated Expenses-not MTDC",490106]
[null,null,null,null,null,null,null,null,490107,"*Allocations On-not MTDC",490107]
[null,null,null,null,null,null,null,null,490108,"*Allocations Off-not MTDC",490108]
[null,null,null,null,null,null,null,null,490109,"*Allocations Offset-not MTDC",490109]
[null,null,null,null,null,null,null,null,490110,"Correct Alloc M&S On-not MTDC",490110]
[null,null,null,null,null,null,null,null,490111,"Correct Alloc M&S Off-not MTDC",490111]
[null,null,null,null,null,null,null,null,490112,"Correct Alloc Utilities On-not MTDC",490112]
[null,null,null,null,null,null,null,null,490113,"Correct Alloc Utilities Off-not MTDC",490113]
[null,null,null,null,null,null,null,null,490200,"*EB Billing Rate",490200]
[null,null,null,null,null,null,null,null,490201,"*EB Adjust to Actual",490201]
[null,null,null,null,null,null,null,null,490202,"*EB Billing Rate-not MTDC",490202]
[null,null,null,null,null,null,null,null,490203,"*EB Prior Year Adjustments",490203]
[null,null,null,null,null,null,null,null,490204,"Correct EB Res Vac Acc On",490204]
[null,null,null,null,null,null,null,null,490205,"Correct EB Res Vac Acc On-not MTDC",490205]
[null,null,null,null,null,null,null,null,490206,"Correct EB Res Vac Acc Off",490206]
[null,null,null,null,null,null,null,null,490207,"Correct EB Res Vac Acc Off-not MTDC",490207]
[null,null,null,null,null,null,null,null,490210,"Correct Current Yr EB On",490210]
[null,null,null,null,null,null,null,null,490211,"Correct Current Yr EB Off",490211]
[null,null,null,null,null,null,null,null,490212,"Correct Prior Yr EB On",490212]
[null,null,null,null,null,null,null,null,490213,"Correct Prior Yr EB Off",490213]
[null,null,null,null,null,null,null,null,490214,"Adj EB On to Spon Rate",490214]
[null,null,null,null,null,null,null,null,490215,"Adj EB Off to Spon Rate",490215]
[null,null,null,null,null,null,null,null,490216,"Correct Current Yr EB On-not MTDC",490216]
[null,null,null,null,null,null,null,null,490217,"Correct Current Yr EB Off-not MTDC",490217]
[null,null,null,null,null,null,null,null,490218,"Correct Prior Yr EB On-not MTDC",490218]
[null,null,null,null,null,null,null,null,490219,"Correct Prior Yr EB Off-not MTDC",490219]
[null,null,null,null,null,null,null,null,490220,"Adj EB On-not MTDC to Spon Rate",490220]
[null,null,null,null,null,null,null,null,490221,"Adj EB Off-not MTDC to Spon Rate",490221]
[null,null,null,null,null,null,null,null,490230,"for future use",490230]
[null,null,null,null,null,null,null,null,490300,"*F&A Billing Rate",490300]
[null,null,null,null,null,null,null,null,490301,"*Fund Fee",490301]
[null,null,null,null,null,null,null,null,490302,"*F&A Adjust To Actual",490302]
[null,null,null,null,null,null,null,null,490303,"*Current Year F&A Adjustment",490303]
[null,null,null,null,null,null,null,null,490304,"*F&A Prior Year Adjust to Actual",490304]
[null,null,null,null,null,null,null,null,490305,"*F&A Supplemental",490305]
[null,null,null,null,null,null,null,null,490306,"*F&A Supplemental Adjust To Actual",490306]
[null,null,null,null,null,null,null,null,490310,"Correct Current Yr F&A On",490310]
[null,null,null,null,null,null,null,null,490311,"Correct Current Yr F&A Off",490311]
[null,null,null,null,null,null,null,null,490312,"Correct Prior Yr F&A On",490312]
[null,null,null,null,null,null,null,null,490313,"Correct Prior Yr F&A Off",490313]
[null,null,null,null,null,null,null,null,490314,"*Correct Current Yr F&A S&W On",490314]
[null,null,null,null,null,null,null,null,490315,"*Correct Current Yr F&A S&W Off",490315]
[null,null,null,null,null,null,null,null,490316,"*Correct Prior Yr F&A S&W On",490316]
[null,null,null,null,null,null,null,null,490317,"*Correct Prior Yr F&A S&W Off",490317]
[null,null,null,null,null,null,null,null,490318,"Adj CY F&A On to Spon Base/Rate",490318]
[null,null,null,null,null,null,null,null,490319,"Adj CY F&A Off to Spon Base/Rate",490319]
[null,null,null,null,null,null,null,null,490320,"Adj PY F&A On to Spon Base/Rate",490320]
[null,null,null,null,null,null,null,null,490321,"Adj PY F&A Off to Spon Base/Rate",490321]
[null,null,null,null,null,null,null,null,490322,"*Adj CY F&A S&W On to Spon Base/Rate",490322]
[null,null,null,null,null,null,null,null,490323,"*Adj CY F&A S&W Off to Spon Base/Rate",490323]
[null,null,null,null,null,null,null,null,490324,"*Adj PY F&A S&W On to Spon Base/Rate",490324]
[null,null,null,null,null,null,null,null,490325,"*Adj PY F&A S&W Off to Spon Base/Rate",490325]
[null,null,null,null,null,null,null,null,490326,"Adjust Fund Fee",490326]
[null,null,null,null,null,null,null,null,490327,"Correct Fund Fee",490327]
[null,null,null,null,null,null,null,null,490400,"*Cost Sharing - General",490400]
[null,null,null,null,null,null,null,null,490401,"*Cost Sharing - Funded",490401]
[null,null,null,null,null,null,null,null,490402,"*Cost Sharing - Voluntary",490402]
[null,null,null,null,null,null,null,null,490502,"EB - Singapore",490502]
[null,null,null,null,null,null,null,null,490503,"EB - Provident",490503]
[null,null,null,null,null,null,null,null,490900,"Correct Internal Settlement",490900]
[null,null,null,null,null,null,null,null,490901,"Correct External Settlement",490901]
[null,null,null,null,null,null,null,null,490902,"Correct Software Project Settlement",490902]
[null,null,null,null,null,null,null,null,495000,"EB Costs Campus",495000]
[null,null,null,null,null,null,null,null,495001,"Lincoln EB",495001]
[null,null,null,null,null,null,null,null,495002,"EB Recovery",495002]
[null,null,null,null,null,null,null,null,495003,"F&A Expense",495003]
[null,null,null,null,null,null,null,null,495004,"Salary Adjustment",495004]
[null,null,null,null,null,null,null,null,495005,"Utilities, rent, repairs",495005]
[null,null,null,null,null,null,null,null,495006,"Bldg Cleaning Srvs - Manual Adj",495006]
[null,null,null,null,null,null,null,null,495007,"Grnd/Moving Assmnt - Manual Adj",495007]
[null,null,null,null,null,null,null,null,495008,"CAC Assessment - Manual Adj",495008]
[null,null,null,null,null,null,null,null,495009,"CUP Com Cost Break - Manual Adj",495009]
[null,null,null,null,null,null,null,null,495010,"DoF R&M Assessment - Manual Adj",495010]
[null,null,null,null,null,null,null,null,495011,"*MRO IO Settlement Not MTDC - Manual Adj",495011]
[null,null,null,null,null,null,null,null,495012,"*MRO Plus IO Settlement Not MTDC - Manual Adj",495012]
[null,null,null,null,null,null,null,null,495013,"*CSG Services Assessment - Manual Adj",495013]
[null,null,null,null,null,null,null,null,495014,"*CSG IO Settlement Not MTDC - Manual Adj",495014]
[null,null,null,null,null,null,null,null,495015,"*DOF/CSG EB Surcharges - Manual Adj",495015]
[null,null,null,null,null,null,null,null,495016,"*DOF/CSG Admin Charge - Manual Adj",495016]
[null,null,null,null,null,null,null,null,495017,"*DOF/CSG Labor - Manual Adj",495017]
[null,null,null,null,null,null,null,null,499001,"Forecast - Technical Staff - Input",499001]
[null,null,null,null,null,null,null,null,499002,"Forecast - Technical Staff - People Cube",499002]
[null,null,null,null,null,null,null,null,499003,"Forecast - Faculty Summer - Input",499003]
[null,null,null,null,null,null,null,null,499004,"Forecast - Faculty Summer - People Cube",499004]
[null,null,null,null,null,null,null,null,499005,"Forecast - Academic Staff - Input",499005]
[null,null,null,null,null,null,null,null,499006,"Forecast - Academic Staff - People Cube",499006]
[null,null,null,null,null,null,null,null,499007,"Forecast - Research Staff - Input",499007]
[null,null,null,null,null,null,null,null,499008,"Forecast - Research Staff - People Cube",499008]
[null,null,null,null,null,null,null,null,499009,"Forecast - Service Staff - Input",499009]
[null,null,null,null,null,null,null,null,499010,"Forecast - Service Staff - People Cube",499010]
[null,null,null,null,null,null,null,null,499011,"Forecast - Administrative Staff - Input",499011]
[null,null,null,null,null,null,null,null,499012,"Forecast - Administrative Staff - People Cube",499012]
[null,null,null,null,null,null,null,null,499013,"Forecast - Faculty Academic - Input",499013]
[null,null,null,null,null,null,null,null,499014,"Forecast - Faculty Academic - People Cube",499014]
[null,null,null,null,null,null,null,null,499015,"Forecast - Support Staff - Input",499015]
[null,null,null,null,null,null,null,null,499016,"Forecast - Support Staff - People Cube",499016]
[null,null,null,null,null,null,null,null,499017,"Forecast - Unallowable Salary - Input",499017]
[null,null,null,null,null,null,null,null,"801035-Sales","Sales",801035]
[null,null,null,null,null,null,null,null,"801050-Non Degree Program Fees","Non Degree Program Fees",801050]
[null,null,null,null,null,null,null,null,"801018-Income - Outside Services","Income - Outside Services",801018]
[null,null,null,null,null,null,null,null,"801063-Conferences & Events Revenue","Conferences & Events Revenue",801063]
[null,null,null,null,null,null,null,null,"800304-Fee Income","Fee Income",800304]
[null,null,null,null,null,null,null,null,"801053-Subscriptions Revenue","Subscriptions Revenue",801053]
[null,null,null,null,null,null,null,null,"801055-Medical/Dental Insurance Revenue","Medical/Dental Insurance Revenue",801055]
[null,null,null,null,null,null,null,null,"801054-Transcript Fees","Transcript Fees",801054]
[null,null,null,null,null,null,null,null,"800600-Sponsored Billings","Sponsored Billings",800600]
[null,null,null,null,null,null,null,null,"801019-Permissions Revenue","Permissions Revenue",801019]
[null,null,null,null,null,null,null,null,"800311-Expense Reimbursement","Expense Reimbursement",800311]
[null,null,null,null,null,null,null,null,"801021-Income - Building Usage","Income - Building Usage",801021]
[null,null,null,null,null,null,null,null,"420050-Travel Expenses","Travel Expenses",420050]
[null,null,null,null,null,null,null,null,"420070-Travel-Foreign Expenses","Travel-Foreign Expenses",420070]
[null,null,null,null,null,null,null,null,"800303-Other Receipts","Other Receipts",800303]

{"sheet":"SAP Post","index":3,"n_rows":0,"n_cols":0,"rows_kept":0,"cut":false,"hidden":true,"merged":[]}

{"sheet":"JV","index":4,"n_rows":23,"n_cols":9,"rows_kept":23,"cut":false,"hidden":true,"merged":[[0,8,0,12]]}
[null,null,100530,{"$f":"VLOOKUP(Form!E14,Sheet1!B:I,8,FALSE)","v":{"$error":"#N/A"}},{"$f":"Form!$B$15","v":"2014-05-30"},{"$f":"Form!$B$48","v":0},{"$f":"\" \"","v":" "},null,"Please do not touch anything on this sheet"]
[{"$f":"IF(NOT(D2=\" \"),IF(OR(A3=\"X\",A4=\"X\",A5=\"X\",A5=\"X\",A6=\"X\",A7=\"X\",A8=\"X\",A9=\"X\",A10=\"X\",A11=\"X\",A12=\"X\",A13=\"X\",A14=\"X\",A15=\"X\",A16=\"X\",A17=\"X\",A18=\"X\",A19=\"X\",A20=\"X\",A21=\"X\",A22=\"X\",),\" \",\"X\"),\" \")","v":" "},{"$f":"IF(NOT(G2=\" \"),Form!A26,\" \")","v":" "},{"$f":"IF(NOT(G2=\" \"),VLOOKUP(Form!C26,'Hidden List and Formulas'!I:K,3,FALSE),\" \")","v":" "},{"$f":"IF(NOT(G2=\" \"),Form!E26,\" \")","v":" "},{"$f":"IF(G2=\" \",IF(F2=\" \",\" \",IF(Form!R26>0,Form!R26,Form!$B$15)),IF(Form!R26>0,Form!R26,Form!$B$15))","v":" "},{"$f":"\" \"","v":" "},{"$f":"IF(Form!Q26>0,Form!Q26,\" \")","v":" "}]
[{"$f":"IF(NOT(D3=\" \"),IF(OR(A4=\"X\",A5=\"X\",A6=\"X\",A6=\"X\",A7=\"X\",A8=\"X\",A9=\"X\",A10=\"X\",A11=\"X\",A12=\"X\",A13=\"X\",A14=\"X\",A15=\"X\",A16=\"X\",A17=\"X\",A18=\"X\",A19=\"X\",A20=\"X\",A21=\"X\",A22=\"X\",A23=\"X\",),\" \",\"X\"),\" \")","v":" "},{"$f":"IF(NOT(G3=\" \"),Form!A27,\" \")","v":" "},{"$f":"IF(NOT(G3=\" \"),VLOOKUP(Form!C27,'Hidden List and Formulas'!I:K,3,FALSE),\" \")","v":" "},{"$f":"IF(NOT(G3=\" \"),Form!E27,\" \")","v":" "},{"$f":"IF(G3=\" \",IF(F3=\" \",\" \",IF(Form!R27>0,Form!R27,Form!$B$15)),IF(Form!R27>0,Form!R27,Form!$B$15))","v":" "},{"$f":"\" \"","v":" "},{"$f":"IF(Form!Q27>0,Form!Q27,\" \")","v":" "}]
[" ",{"$f":"IF(NOT(G4=\" \"),Form!A28,\" \")","v":" "},{"$f":"IF(NOT(G4=\" \"),VLOOKUP(Form!C28,'Hidden List and Formulas'!I:K,3,FALSE),\" \")","v":" "},{"$f":"IF(NOT(G4=\" \"),Form!E28,\" \")","v":" "},{"$f":"IF(G4=\" \",IF(F4=\" \",\" \",IF(Form!R28>0,Form!R28,Form!$B$15)),IF(Form!R28>0,Form!R28,Form!$B$15))","v":" "}," ",{"$f":"IF(Form!Q28>0,Form!Q28,\" \")","v":" "}]
[" ",{"$f":"IF(NOT(G5=\" \"),Form!A29,\" \")","v":" "},{"$f":"IF(NOT(G5=\" \"),VLOOKUP(Form!C29,'Hidden List and Formulas'!I:K,3,FALSE),\" \")","v":" "},{"$f":"IF(NOT(G5=\" \"),Form!E29,\" \")","v":" "},{"$f":"IF(G5=\" \",IF(F5=\" \",\" \",IF(Form!R29>0,Form!R29,Form!$B$15)),IF(Form!R29>0,Form!R29,Form!$B$15))","v":" "}," ",{"$f":"IF(Form!Q29>0,Form!Q29,\" \")","v":" "}]
[" ",{"$f":"IF(NOT(G6=\" \"),Form!A30,\" \")","v":" "},{"$f":"IF(NOT(G6=\" \"),VLOOKUP(Form!C30,'Hidden List and Formulas'!I:K,3,FALSE),\" \")","v":" "},{"$f":"IF(NOT(G6=\" \"),Form!E30,\" \")","v":" "},{"$f":"IF(G6=\" \",IF(F6=\" \",\" \",IF(Form!R30>0,Form!R30,Form!$B$15)),IF(Form!R30>0,Form!R30,Form!$B$15))","v":" "}," ",{"$f":"IF(Form!Q30>0,Form!Q30,\" \")","v":" "}]
[" ",{"$f":"IF(NOT(G7=\" \"),Form!A31,\" \")","v":" "},{"$f":"IF(NOT(G7=\" \"),VLOOKUP(Form!C31,'Hidden List and Formulas'!I:K,3,FALSE),\" \")","v":" "},{"$f":"IF(NOT(G7=\" \"),Form!E31,\" \")","v":" "},{"$f":"IF(G7=\" \",IF(F7=\" \",\" \",IF(Form!R31>0,Form!R31,Form!$B$15)),IF(Form!R31>0,Form!R31,Form!$B$15))","v":" "}," ",{"$f":"IF(Form!Q31>0,Form!Q31,\" \")","v":" "}]
[" ",{"$f":"IF(NOT(G8=\" \"),Form!A32,\" \")","v":" "},{"$f":"IF(NOT(G8=\" \"),VLOOKUP(Form!C32,'Hidden List and Formulas'!I:K,3,FALSE),\" \")","v":" "},{"$f":"IF(NOT(G8=\" \"),Form!E32,\" \")","v":" "},{"$f":"IF(G8=\" \",IF(F8=\" \",\" \",IF(Form!R32>0,Form!R32,Form!$B$15)),IF(Form!R32>0,Form!R32,Form!$B$15))","v":" "}," ",{"$f":"IF(Form!Q32>0,Form!Q32,\" \")","v":" "}]
[" ",{"$f":"IF(NOT(G9=\" \"),Form!A33,\" \")","v":" "},{"$f":"IF(NOT(G9=\" \"),VLOOKUP(Form!C33,'Hidden List and Formulas'!I:K,3,FALSE),\" \")","v":" "},{"$f":"IF(NOT(G9=\" \"),Form!E33,\" \")","v":" "},{"$f":"IF(G9=\" \",IF(F9=\" \",\" \",IF(Form!R33>0,Form!R33,Form!$B$15)),IF(Form!R33>0,Form!R33,Form!$B$15))","v":" "}," ",{"$f":"IF(Form!Q33>0,Form!Q33,\" \")","v":" "}]
[" ",{"$f":"IF(NOT(G10=\" \"),Form!A34,\" \")","v":" "},{"$f":"IF(NOT(G10=\" \"),VLOOKUP(Form!C34,'Hidden List and Formulas'!I:K,3,FALSE),\" \")","v":" "},{"$f":"IF(NOT(G10=\" \"),Form!E34,\" \")","v":" "},{"$f":"IF(G10=\" \",IF(F10=\" \",\" \",IF(Form!R34>0,Form!R34,Form!$B$15)),IF(Form!R34>0,Form!R34,Form!$B$15))","v":" "}," ",{"$f":"IF(Form!Q34>0,Form!Q34,\" \")","v":" "}]
[" ",{"$f":"IF(NOT(G11=\" \"),Form!A35,\" \")","v":" "},{"$f":"IF(NOT(G11=\" \"),VLOOKUP(Form!C35,'Hidden List and Formulas'!I:K,3,FALSE),\" \")","v":" "},{"$f":"IF(NOT(G11=\" \"),Form!E35,\" \")","v":" "},{"$f":"IF(G11=\" \",IF(F11=\" \",\" \",IF(Form!R35>0,Form!R35,Form!$B$15)),IF(Form!R35>0,Form!R35,Form!$B$15))","v":" "}," ",{"$f":"IF(Form!Q35>0,Form!Q35,\" \")","v":" "}]
[" ",{"$f":"IF(NOT(G12=\" \"),Form!A36,\" \")","v":" "},{"$f":"IF(NOT(G12=\" \"),VLOOKUP(Form!C36,'Hidden List and Formulas'!I:K,3,FALSE),\" \")","v":" "},{"$f":"IF(NOT(G12=\" \"),Form!E36,\" \")","v":" "},{"$f":"IF(G12=\" \",IF(F12=\" \",\" \",IF(Form!R36>0,Form!R36,Form!$B$15)),IF(Form!R36>0,Form!R36,Form!$B$15))","v":" "}," ",{"$f":"IF(Form!Q36>0,Form!Q36,\" \")","v":" "}]
[" ",{"$f":"IF(NOT(G13=\" \"),Form!A37,\" \")","v":" "},{"$f":"IF(NOT(G13=\" \"),VLOOKUP(Form!C37,'Hidden List and Formulas'!I:K,3,FALSE),\" \")","v":" "},{"$f":"IF(NOT(G13=\" \"),Form!E37,\" \")","v":" "},{"$f":"IF(G13=\" \",IF(F13=\" \",\" \",IF(Form!R37>0,Form!R37,Form!$B$15)),IF(Form!R37>0,Form!R37,Form!$B$15))","v":" "}," ",{"$f":"IF(Form!Q37>0,Form!Q37,\" \")","v":" "}]
[" ",{"$f":"IF(NOT(G14=\" \"),Form!A38,\" \")","v":" "},{"$f":"IF(NOT(G14=\" \"),VLOOKUP(Form!C38,'Hidden List and Formulas'!I:K,3,FALSE),\" \")","v":" "},{"$f":"IF(NOT(G14=\" \"),Form!E38,\" \")","v":" "},{"$f":"IF(G14=\" \",IF(F14=\" \",\" \",IF(Form!R38>0,Form!R38,Form!$B$15)),IF(Form!R38>0,Form!R38,Form!$B$15))","v":" "}," ",{"$f":"IF(Form!Q38>0,Form!Q38,\" \")","v":" "}]
[" ",{"$f":"IF(NOT(G15=\" \"),Form!A39,\" \")","v":" "},{"$f":"IF(NOT(G15=\" \"),VLOOKUP(Form!C39,'Hidden List and Formulas'!I:K,3,FALSE),\" \")","v":" "},{"$f":"IF(NOT(G15=\" \"),Form!E39,\" \")","v":" "},{"$f":"IF(G15=\" \",IF(F15=\" \",\" \",IF(Form!R39>0,Form!R39,Form!$B$15)),IF(Form!R39>0,Form!R39,Form!$B$15))","v":" "}," ",{"$f":"IF(Form!Q39>0,Form!Q39,\" \")","v":" "}]
[" ",{"$f":"IF(NOT(G16=\" \"),Form!A40,\" \")","v":" "},{"$f":"IF(NOT(G16=\" \"),VLOOKUP(Form!C40,'Hidden List and Formulas'!I:K,3,FALSE),\" \")","v":" "},{"$f":"IF(NOT(G16=\" \"),Form!E40,\" \")","v":" "},{"$f":"IF(G16=\" \",IF(F16=\" \",\" \",IF(Form!R40>0,Form!R40,Form!$B$15)),IF(Form!R40>0,Form!R40,Form!$B$15))","v":" "}," ",{"$f":"IF(Form!Q40>0,Form!Q40,\" \")","v":" "}]
[" ",{"$f":"IF(NOT(G17=\" \"),Form!A41,\" \")","v":" "},{"$f":"IF(NOT(G17=\" \"),VLOOKUP(Form!C41,'Hidden List and Formulas'!I:K,3,FALSE),\" \")","v":" "},{"$f":"IF(NOT(G17=\" \"),Form!E41,\" \")","v":" "},{"$f":"IF(G17=\" \",IF(F17=\" \",\" \",IF(Form!R41>0,Form!R41,Form!$B$15)),IF(Form!R41>0,Form!R41,Form!$B$15))","v":" "}," ",{"$f":"IF(Form!Q41>0,Form!Q41,\" \")","v":" "}]
[" ",{"$f":"IF(NOT(G18=\" \"),Form!A42,\" \")","v":" "},{"$f":"IF(NOT(G18=\" \"),VLOOKUP(Form!C42,'Hidden List and Formulas'!I:K,3,FALSE),\" \")","v":" "},{"$f":"IF(NOT(G18=\" \"),Form!E42,\" \")","v":" "},{"$f":"IF(G18=\" \",IF(F18=\" \",\" \",IF(Form!R42>0,Form!R42,Form!$B$15)),IF(Form!R42>0,Form!R42,Form!$B$15))","v":" "}," ",{"$f":"IF(Form!Q42>0,Form!Q42,\" \")","v":" "}]
[" ",{"$f":"IF(NOT(G19=\" \"),Form!A43,\" \")","v":" "},{"$f":"IF(NOT(G19=\" \"),VLOOKUP(Form!C43,'Hidden List and Formulas'!I:K,3,FALSE),\" \")","v":" "},{"$f":"IF(NOT(G19=\" \"),Form!E43,\" \")","v":" "},{"$f":"IF(G19=\" \",IF(F19=\" \",\" \",IF(Form!R43>0,Form!R43,Form!$B$15)),IF(Form!R43>0,Form!R43,Form!$B$15))","v":" "}," ",{"$f":"IF(Form!Q43>0,Form!Q43,\" \")","v":" "}]
[" ",{"$f":"IF(NOT(G20=\" \"),Form!A44,\" \")","v":" "},{"$f":"IF(NOT(G20=\" \"),VLOOKUP(Form!C44,'Hidden List and Formulas'!I:K,3,FALSE),\" \")","v":" "},{"$f":"IF(NOT(G20=\" \"),Form!E44,\" \")","v":" "},{"$f":"IF(G20=\" \",IF(F20=\" \",\" \",IF(Form!R44>0,Form!R44,Form!$B$15)),IF(Form!R44>0,Form!R44,Form!$B$15))","v":" "}," ",{"$f":"IF(Form!Q44>0,Form!Q44,\" \")","v":" "}]
[" ",{"$f":"IF(NOT(G21=\" \"),Form!A45,\" \")","v":" "},{"$f":"IF(NOT(G21=\" \"),VLOOKUP(Form!C45,'Hidden List and Formulas'!I:K,3,FALSE),\" \")","v":" "},{"$f":"IF(NOT(G21=\" \"),Form!E45,\" \")","v":" "},{"$f":"IF(G21=\" \",IF(F21=\" \",\" \",IF(Form!R45>0,Form!R45,Form!$B$15)),IF(Form!R45>0,Form!R45,Form!$B$15))","v":" "}," ",{"$f":"IF(Form!Q45>0,Form!Q45,\" \")","v":" "}]
[]
[null,null,null,null,null,null,{"$f":"\" \"","v":" "}]